Workbook

Sheet Overblik
A1: =A907 -> Retten i Holstebro | B1: =B907 -> 89.72928256 | C1: 93.05673734 | D1: 87.76887982 | E1: 86.07588518 | F1: 94.82739817 | G1: 105.1768084 | H1: 0.2243518769 | I1: 0.2213445941 | J1: 79 | K1: 69 | L1: 474.4166667 | M1: 419.8412698 | N1: 32.42947 | O1: 38.45575221 | P1: 37.03 | Q1: 50.92 | R1: 55.55555556 | S1: 56 | T1: 50 | U1: 50 | V1: 7.8 | W1: 8.443035636 | X1: 11.24047376 | Y1: 15.80137134 | Z1: 36.90905 | AA1: 34.44871 | AB1: 9.9987 | AC1: 10.09303 | AD1: 20.2146 | AE1: 17.99253 | AF1: 19.50211312 | AG1: 18.47919505 | AH1: 0 | AI1: =AI902 -> 0 | AJ1: 0
A2: =A ->  | B2: =AH1 -> 0
B3: ÅRSNØGLETAL 2016
I4: Evt. sammenligning
B5: =A1 -> Retten i Holstebro | I5: =B35 -> Retten i Herning | L5: Datatabeller
D6: 2015 | E6: 2016 | F6: Gnst. BR 2016 | G6: 5. bedste 2016 | I6: 2015 | J6: 2016 | L6: KLIK PÅ PILENE FOR AT HOPPE TIL DATA:
B7: Samlet produktivitet, retten (indeks) | D7: =B1 -> 89.72928256 | E7: =C1 -> 93.05673734 | F7: 101.3250951 | G7: 104.9549343 | I7: =IF($B$5=$I$5,"",C35) -> 92.25562242 | J7: =IF($B$5=$I$5,"",D35) -> 104.9324679 | M7: Produktivitet, samlet for retten
B8: Samlet produktivitet, jurister (indeks) | D8: =D1 -> 87.76887982 | E8: =E1 -> 86.07588518 | F8: 98.20979884 | G8: 102.0933223 | I8: =IF($B$5=$I$5,"",E35) -> 84.33840594 | J8: =IF($B$5=$I$5,"",F35) -> 98.27365151 | M8: Produktivitet, jurister
B9: Samlet produktivitet, kontorfunktionærer (indeks) | D9: =F1 -> 94.82739817 | E9: =G1 -> 105.1768084 | F9: 104.8405252 | G9: 114.5475658 | I9: =IF($B$5=$I$5,"",G35) -> 100.9936039 | J9: =IF($B$5=$I$5,"",H35) -> 112.3184893 | M9: Produktivitet, kontor
B10: Årsværksandel til generel ledelse og administration (pct.) | D10: =H1*100 -> 22.43518769 | E10: =I1*100 -> 22.13445941 | F10: 17.41743696 | I10: =IF($B$5=$I$5,"",I35*100) -> 17.24891131 | J10: =IF($B$5=$I$5,"",J35*100) -> 14.12712832 | M10: Årsværk, ledelse og administration
B11: Gnst. sagsbehandlingstid, domsmandssager (dage) | D11: =J1 -> 79 | E11: =K1 -> 69 | F11: 128.9523233 | G11: 100 | I11: =IF($B$5=$I$5,"",K35) -> 89 | J11: =IF($B$5=$I$5,"",L35) -> 106 | M11: Aktivitet ved retten
B12: Gnst. sagsbehandlingstid, hovedforhandlet alm. civil sag (dage) | D12: =L1 -> 474.4166667 | E12: =M1 -> 419.8412698 | F12: 494.6724138 | G12: 452.3401361 | I12: =IF($B$5=$I$5,"",M35) -> 492.2277228 | J12: =IF($B$5=$I$5,"",N35) -> 499.7058824 | M12: Målopfyldelse, straffesager
B13: Gnst. sagsbehandlingstid, almindelig fogedsag (dage) | D13: =N1 -> 32.42947 | E13: =O1 -> 38.45575221 | F13: 69.13326953 | G13: 49.91486968 | I13: =IF($B$5=$I$5,"",O35) -> 55.02592 | J13: =IF($B$5=$I$5,"",P35) -> 57.83672357 | M13: Målopfyldelse, civile sager
B14: Gnst. sagsbehandlingstid, boudlæg (dage) | D14: =P1 -> 37.03 | E14: =Q1 -> 50.92 | F14: 44.74482595 | G14: 38.28 | I14: =IF($B$5=$I$5,"",Q35) -> 66.98 | J14: =IF($B$5=$I$5,"",R35) -> 59.6 | M14: Målopfyldelse, fogedsager
B15: Målopfyldelse, voldssager 37-dages frist (procent) | D15: =R1 -> 55.55555556 | E15: =S1 -> 56 | F15: 43.42948718 | G15: 57.14285714 | I15: =IF($B$5=$I$5,"",S35) -> 53.84615385 | J15: =IF($B$5=$I$5,"",T35) -> 42.85714286 | M15: Målopfyldelse, skiftesager
B16: Målopfyldelse, voldtægtssager 37-dages frist (procent) | D16: =IF(T1=999," -",T1) -> 50 | E16: =IF(U1=999," -",U1) -> 50 | F16: 28.68217054 | G16: 50 | I16: =IF($B$5=$I$5,"",U35) -> 100 | J16: =IF($B$5=$I$5,"",V35) -> 0 | M16: Gnst. Sagsbehandlingstid, straffesager
B17: Gnst. sygefravær pr. medarbejder (dage pr. år) | D17: =V1 -> 7.8 | E17: =W1 -> 8.443035636 | F17: 9.528843231 | G17: 7.42811166 | I17: =IF($B$5=$I$5,"",W35) -> 4.1 | J17: =IF($B$5=$I$5,"",X35) -> 8.784040007 | M17: Gnst. Sagsbehandlingstid, civile sager
B18: Personaleomsætningsprocent (procent) | D18: =X1 -> 11.24047376 | E18: =Y1 -> 15.80137134 | F18: 9.179952331 | I18: =IF($B$5=$I$5,"",Y35) -> 13.30282802 | J18: =IF($B$5=$I$5,"",Z35) -> 12.52412276 | M18: Gnst. Sagsbehandlingstid, fogedsager
B19: Samlet årsværksforbrug, retten (årsværk) | D19: =Z1 -> 36.90905 | E19: =AA1 -> 34.44871 | F19: 58.66643 | I19: =IF($B$5=$I$5,"",AA35) -> 37.31716 | J19: =IF($B$5=$I$5,"",AB35) -> 35.45019 | M19: Gnst. Sagsbehandlingstid, skiftesager
B20: Samlet årsværksforbrug, jurister (årsværk) | D20: =AB1 -> 9.9987 | E20: =AC1 -> 10.09303 | F20: 17.6311275 | I20: =IF($B$5=$I$5,"",AC35) -> 11.45896 | J20: =IF($B$5=$I$5,"",AD35) -> 10.8528 | M20: HR-nøgletal
B21: Samlet årsværksforbrug, kontorfunktionærer (årsværk) | D21: =AD1 -> 20.2146 | E21: =AE1 -> 17.99253 | F21: 32.46338833 | I21: =IF($B$5=$I$5,"",AE35) -> 20.62696 | J21: =IF($B$5=$I$5,"",AF35) -> 19.73039 | M21: Årsværksforbrug, personalekategorier
B22: Samlet lønsumsforbrug (mio. kr.) | D22: =AF1 -> 19.50211312 | E22: =AG1 -> 18.47919505 | F22: 31.24079849 | I22: =IF($B$5=$I$5,"",AG35) -> 18.83885141 | J22: =IF($B$5=$I$5,"",AH35) -> 18.19917992 | M22: Årsværksforbrug, sagsområder
B24: Noter:
B25: 1) Ved beregningen af indeks for produktivitet samlet for retten, for jurister og kontor er indeks 100 lig gennemsnittet ved byretterne i 2012. Der er sket en genberegning af indeks, da vægten for civile sager som tidligere nævnt er kvalitetssikret.
B27: 2) Årsværksandel til generel ledelse og administration er samlet for retten og inkluderer alle personalegrupper.
B28: 3) Den gennemsnitlige sagsbehandlingstid for en hovedforhandlet almindelig civil sag inkluderer sagstypen almindelige sager. Boligretssager og småsager indgår ikke.
B29: 4) Ansatte under socialt kapitel indgår ikke i beregningen af det gennemsnitlige sygefravær pr. medarbejder (årsværk).
B30: 5) Lønsumsforbruget inkluderer egentlig løn, over- og merarbejde, stævningsmænd, refusioner og pensionsbidrag.
B32: KLIK FOR AT AKTIVERE SAMMENLIGNING:
B34: =A926 -> 0 | C34: =B925 -> 57.5946498 | D34: 62.41298617 | E34: 56.52367189 | F34: 62.96127296 | G34: 69.58965727 | H34: 71.82940512 | I34: 0.3349244913 | J34: 0.2855691176 | K34: 35 | L34: 49 | M34: 267 | N34: 298 | O34: 29.08736 | P34: 33.87987271 | Q34: 20.89 | R34: 22.55 | S34: 100 | T34: 66.66666667 | U34: 100 | V34: - | W34: 1.8 | X34: 5.995101458 | Y34: 22.46359746 | Z34: 0 | AA34: 13.87751 | AB34: 13.56407 | AC34: 3.45026 | AD34: 3.34178 | AE34: 6.70088 | AF34: 6.67167 | AG34: 7.083786483
B35: =A908 -> Retten i Herning | C35: =B908 -> 92.25562242 | D35: 104.9324679 | E35: 84.33840594 | F35: 98.27365151 | G35: 100.9936039 | H35: 112.3184893 | I35: 0.1724891131 | J35: 0.1412712832 | K35: 89 | L35: 106 | M35: 492.2277228 | N35: 499.7058824 | O35: 55.02592 | P35: 57.83672357 | Q35: 66.98 | R35: 59.6 | S35: 53.84615385 | T35: 42.85714286 | U35: 100 | V35: 0 | W35: 4.1 | X35: 8.784040007 | Y35: 13.30282802 | Z35: 12.52412276 | AA35: 37.31716 | AB35: 35.45019 | AC35: 11.45896 | AD35: 10.8528 | AE35: 20.62696 | AF35: 19.73039 | AG35: 18.83885141 | AH35: 18.19917992 | AI35: 0
B900: Samlet produktivitet, retten | D900: Samlet produktivitet, jurister | F900: Samlet produktivitet, kontor | H900: ÅRVK ledelse og adm. (andel) | J900: Sagstider domsmandssager | L900: Sagstider hfh. alm. Civil | N900: Sagstid alm. fogedsag | P900: Sagstider boudlæg | R900: Målopfyldelse vold | T900: Målopfyldelse voldtægt | V900: Sygefravær | X900: Personaleomsætning | Z900: Årsværk retten | AB900: Årsværk jurist | AD900: Årsværk kontor | AF900: Samlet lønsum
A901: Ret | B901: 2015 | C901: 2016 | D901: 2015 | E901: 2016 | F901: 2015 | G901: 2016 | H901: 2015 | I901: 2016 | J901: 2015 | K901: 2016 | L901: 2015 | M901: 2016 | N901: 2015 | O901: 2016 | P901: 2015 | Q901: 2016 | R901: 2015 | S901: 2016 | T901: 2015 | U901: 2016 | V901: 2015 | W901: 2016 | X901: 2015 | Y901: 2016 | Z901: 2015 | AA901: 2016 | AB901: 2015 | AC901: 2016 | AD901: 2015 | AE901: 2016 | AF901: 2015 | AG901: 2016
A902: Retten i Hjørring | B902: 99.65751808 | C902: 100.7666106 | D902: 101.2746555 | E902: 101.8581145 | F902: 99.36860825 | G902: 100.5558502 | H902: 0.1644849826 | I902: 0.1407695713 | J902: 117 | K902: 107 | L902: 545.483871 | M902: 491.1612903 | N902: 59.71777 | O902: 64.53514563 | P902: 54.05 | Q902: 51.71 | R902: 55.55555556 | S902: 68.29268293 | T902: 41.66666667 | U902: 35 | V902: 5.9 | W902: 7.42811166 | X902: 5.831347077 | Y902: 9.614683161 | Z902: 50.40589 | AA902: 50.0274 | AB902: 13.18267 | AC902: 13.09029 | AD902: 28.19354 | AE902: 28.01293 | AF902: 24.0953827 | AG902: 23.73664065
A903: Retten i Aalborg | B903: 103.1478737 | C903: 102.0401416 | D903: 102.8004801 | E903: 100.592683 | F903: 100.5825083 | G903: 99.20429628 | H903: 0.1424679654 | I903: 0.1538765506 | J903: 125 | K903: 124 | L903: 564.0818713 | M903: 552.4871795 | N903: 64.81348 | O903: 65.18546196 | P903: 43.56 | Q903: 44.55 | R903: 43.47826087 | S903: 50 | T903: 42.85714286 | U903: 50 | V903: 9.8 | W903: 5.752183986 | X903: 5.957693956 | Y903: 12.82245102 | Z903: 70.46448 | AA903: 70.41211 | AB903: 20.9191 | AC903: 21.04804 | AD903: 41.67825 | AE903: 40.85833 | AF903: 35.58190866 | AG903: 36.32340593
A904: Retten i Randers | B904: 101.3335993 | C904: 97.72230797 | D904: 95.13066458 | E904: 89.82215475 | F904: 115.3690612 | G904: 114.5475658 | H904: 0.2284243474 | I904: 0.1837404473 | J904: 123 | K904: 133 | L904: 526.6923077 | M904: 477.2135922 | N904: 41.02233 | O904: 47.4419418 | P904: 43.53 | Q904: 45.94 | R904: 30.95238095 | S904: 37.5 | T904: 44.44444444 | U904: 33.33333333 | V904: 7.5 | W904: 8.634346523 | X904: 7.222979115 | Y904: 10.34776398 | Z904: 51.2652 | AA904: 47.81164 | AB904: 14.40619 | AC904: 14.09916 | AD904: 25.55332 | AE904: 23.69363 | AF904: 25.68027386 | AG904: 24.83670107
A905: Retten i Århus | B905: 94.81171575 | C905: 94.17890149 | D905: 88.37857354 | E905: 89.92279501 | F905: 104.8015741 | G905: 100.7600439 | H905: 0.1435032556 | I905: 0.1541494376 | J905: 157 | K905: 172 | L905: 533.1290323 | M905: 490.6065574 | N905: 62.2823 | O905: 76.49530957 | P905: 61.94 | Q905: 68.28 | R905: 15.68627451 | S905: 40.54054054 | T905: 50 | U905: 0 | V905: 8 | W905: 7.978979748 | X905: 12.34075341 | Y905: 12.21683291 | Z905: 79.3148 | AA905: 76.92565 | AB905: 25.42637 | AC905: 24.42019 | AD905: 40.34725 | AE905: 41.19717 | AF905: 41.18662406 | AG905: 40.85150004
A906: Retten i Viborg | B906: 94.80173877 | C906: 104.9549343 | D906: 85.87584261 | E906: 101.0458473 | F906: 109.3683847 | G906: 113.3188851 | H906: 0.1551418865 | I906: 0.1652702733 | J906: 100 | K906: 113 | L906: 481.7142857 | M906: 520.3565217 | N906: 59.8391 | O906: 54.37966833 | P906: 38.33 | Q906: 41.15 | R906: 45 | S906: 37.5 | T906: 60 | U906: 0 | V906: 5 | W906: 10.69045596 | X906: 7.397322094 | Y906: 14.54596076 | Z906: 51.74993 | AA906: 47.90858 | AB906: 15.68988 | AC906: 13.99976 | AD906: 25.75541 | AE906: 24.30079 | AF906: 25.24045426 | AG906: 24.07442473
A907: Retten i Holstebro | B907: 89.72928256 | C907: 93.05673734 | D907: 87.76887982 | E907: 86.07588518 | F907: 94.82739817 | G907: 105.1768084 | H907: 0.2243518769 | I907: 0.2213445941 | J907: 79 | K907: 69 | L907: 474.4166667 | M907: 419.8412698 | N907: 32.42947 | O907: 38.45575221 | P907: 37.03 | Q907: 50.92 | R907: 55.55555556 | S907: 56 | T907: 50 | U907: 50 | V907: 7.8 | W907: 8.443035636 | X907: 11.24047376 | Y907: 15.80137134 | Z907: 36.90905 | AA907: 34.44871 | AB907: 9.9987 | AC907: 10.09303 | AD907: 20.2146 | AE907: 17.99253 | AF907: 19.50211312 | AG907: 18.47919505
A908: Retten i Herning | B908: 92.25562242 | C908: 104.9324679 | D908: 84.33840594 | E908: 98.27365151 | F908: 100.9936039 | G908: 112.3184893 | H908: 0.1724891131 | I908: 0.1412712832 | J908: 89 | K908: 106 | L908: 492.2277228 | M908: 499.7058824 | N908: 55.02592 | O908: 57.83672357 | P908: 66.98 | Q908: 59.6 | R908: 53.84615385 | S908: 42.85714286 | T908: 100 | U908: 0 | V908: 4.1 | W908: 8.784040007 | X908: 13.30282802 | Y908: 12.52412276 | Z908: 37.31716 | AA908: 35.45019 | AB908: 11.45896 | AC908: 10.8528 | AD908: 20.62696 | AE908: 19.73039 | AF908: 18.83885141 | AG908: 18.19917992
A909: Retten i Horsens | B909: 93.06163915 | C909: 96.34604569 | D909: 84.64676519 | E909: 89.19656434 | F909: 106.9116525 | G909: 114.7481586 | H909: 0.1879155474 | I909: 0.1796089045 | J909: 109 | K909: 143 | L909: 512.7837838 | M909: 452.3401361 | N909: 54.81712 | O909: 60.74822372 | P909: 49.9 | Q909: 52.64 | R909: 46.66666667 | S909: 20 | T909: 0 | U909: 60 | V909: 14.6 | W909: 13.02269107 | X909: 23.15125765 | Y909: 6.447852629 | Z909: 44.84206 | AA909: 42.66576 | AB909: 14.10508 | AC909: 13.10784 | AD909: 21.75263 | AE909: 20.12447 | AF909: 23.20954802 | AG909: 22.92565475
A910: Retten i Kolding | B910: 106.3404052 | C910: 108.1864949 | D910: 100.841766 | E910: 104.7398676 | F910: 112.5352412 | G910: 109.8548711 | H910: 0.1593273284 | I910: 0.1423580005 | J910: 98 | K910: 121 | L910: 496.2196532 | M910: 453.248227 | N910: 50.98938 | O910: 44.44932058 | P910: 37 | Q910: 34.41 | R910: 45.23809524 | S910: 53.84615385 | T910: 0 | U910: - | V910: 8.6 | W910: 8.541325877 | X910: 11.24208631 | Y910: 8.021751175 | Z910: 65.77966 | AA910: 65.17976 | AB910: 19.39277 | AC910: 19.00959 | AD910: 35.57804 | AE910: 36.55367 | AF910: 33.68393265 | AG910: 33.52274704
A911: Retten i Esbjerg | B911: 92.45433117 | C911: 99.21631248 | D911: 86.22696486 | E911: 90.05202775 | F911: 101.3112499 | G911: 111.3423652 | H911: 0.1476089249 | I911: 0.141765627 | J911: 144 | K911: 141 | L911: 525.8019802 | M911: 548.9242424 | N911: 45.02331 | O911: 52.5408805 | P911: 42.53 | Q911: 42.24 | R911: 51.51515152 | S911: 60.71428571 | T911: 20 | U911: 75 | V911: 8.7 | W911: 7.828831644 | X911: 19.63383419 | Y911: 6.157762877 | Z911: 49.17026 | AA911: 45.84075 | AB911: 14.08996 | AC911: 13.98767 | AD911: 25.86657 | AE911: 24.25812 | AF911: 24.21435768 | AG911: 22.92695405
A912: Retten i Sønderborg | B912: 99.37367473 | C912: 106.9929863 | D912: 94.38402225 | E912: 102.0933223 | F912: 106.4882161 | G912: 115.1153884 | H912: 0.14123448 | I912: 0.1712239433 | J912: 84 | K912: 88 | L912: 447.8636364 | M912: 469.2857143 | N912: 62.44327 | O912: 69.92268261 | P912: 55.72 | Q912: 46.23 | R912: 60.71428571 | S912: 26.66666667 | T912: 0 | U912: 0 | V912: - | W912: 10.25191296 | X912: 7.837964984 | Y912: 5.413876114 | Z912: 54.77322 | AA912: 52.40571 | AB912: 16.37808 | AC912: 15.79957 | AD912: 30.6954 | AE912: 29.77665 | AF912: 31.52963165 | AG912: 30.17495846
A913: Retten i Odense | B913: 103.1986795 | C913: 101.1456782 | D913: 92.41555286 | E913: 94.6131613 | F913: 117.8282467 | G913: 108.6484782 | H913: 0.1881572329 | I913: 0.1427970106 | J913: 91 | K913: 100 | L913: 444 | M913: 489.2846715 | N913: 64.28043 | O913: 84.49412313 | P913: 56.57 | Q913: 38.28 | R913: 37.25490196 | S913: 31.11111111 | T913: 21.05263158 | U913: 23.52941176 | V913: 8.4 | W913: 7.91835029 | X913: 11.27188726 | Y913: 9.339614332 | Z913: 69.33496 | AA913: 71.18115 | AB913: 22.71669 | AC913: 22.41219 | AD913: 37.21079 | AE913: 40.05602 | AF913: 37.86168812 | AG913: 37.72660619
A914: Retten i Svendborg | B914: 97.36672868 | C914: 96.04366106 | D914: 93.06905089 | E914: 95.96751974 | F914: 109.664697 | G914: 100.2980697 | H914: 0.1875248153 | I914: 0.2185807879 | J914: 107 | K914: 135 | L914: 415.9333333 | M914: 479.5522388 | N914: 54.69889 | O914: 86.08307045 | P914: 31.89 | Q914: 51.7 | R914: 22.22222222 | S914: 35.29411765 | T914: 0 | U914: 9.090909091 | V914: 7.6 | W914: 7.740658599 | X914: 7.017501934 | Y914: 12.63463817 | Z914: 36.30126 | AA914: 35.67732 | AB914: 9.97958 | AC914: 9.81133 | AD914: 19.38742 | AE914: 20.09274 | AF914: 18.47056489 | AG914: 17.96306117
A915: Retten i Nykøbing F. | B915: 95.20256153 | C915: 102.5324871 | D915: 94.00977328 | E915: 103.4003237 | F915: 96.96617198 | G915: 103.2797536 | H915: 0.1802885372 | I915: 0.174611391 | J915: 101 | K915: 108 | L915: 345.7846154 | M915: 391.3584906 | N915: 47.93633 | O915: 66.31437655 | P915: 37.36 | Q915: 36.59 | R915: 45.83333333 | S915: 46.875 | T915: 50 | U915: 50 | V915: 6.1 | W915: 5.917867437 | X915: 6.200338612 | Y915: 2.038092413 | Z915: 48.39527 | AA915: 46.42736 | AB915: 14.06912 | AC915: 13.56433 | AD915: 29.58863 | AE915: 28.51952 | AF915: 25.02267429 | AG915: 24.71422188
A916: Retten i Næstved | B916: 103.4141734 | C916: 104.1711982 | D916: 100.5511498 | E916: 98.11874151 | F916: 105.2356343 | G916: 107.8669948 | H916: 0.219689813 | I916: 0.1966801074 | J916: 169 | K916: 122 | L916: 488.46875 | M916: 492.1463415 | N916: 71.02566 | O916: 90.70906404 | P916: 42.57 | Q916: 48.33 | R916: 15.15151515 | S916: 57.14285714 | T916: 33.33333333 | U916: 45.45454545 | V916: 9 | W916: 13.46418958 | X916: 6.829375472 | Y916: 6.674636951 | Z916: 59.86801 | AA916: 59.26503 | AB916: 16.36537 | AC916: 17.20789 | AD916: 33.32264 | AE916: 32.20663 | AF916: 28.82409679 | AG916: 28.72501881
A917: Retten i Holbæk | B917: 95.98991924 | C917: 92.61511522 | D917: 96.30988668 | E917: 90.66960469 | F917: 96.14687891 | G917: 95.0595337 | H917: 0.1936312096 | I917: 0.1715712256 | J917: 82 | K917: 84 | L917: 430.8681319 | M917: 464.6944444 | N917: 56.77488 | O917: 59.35607235 | P917: 39.28 | Q917: 39.48 | R917: 44 | S917: 27.77777778 | T917: 50 | U917: 0 | V917: 8.7 | W917: 6.445137148 | X917: 8.722233581 | Y917: 6.290714062 | Z917: 45.11286 | AA917: 46.19257 | AB917: 12.4593 | AC917: 12.5207 | AD917: 25.75207 | AE917: 25.33596 | AF917: 22.55318069 | AG917: 22.67363671
A918: Retten i Roskilde | B918: 102.9018507 | C918: 118.7079218 | D918: 104.1290927 | E918: 120.3344471 | F918: 97.09230532 | G918: 111.3127937 | H918: 0.1378299924 | I918: 0.1533749785 | J918: 144 | K918: 145 | L918: 510.5789474 | M918: 532.6766467 | N918: 61.36073 | O918: 60.50785591 | P918: 54.44 | Q918: 41.51 | R918: 47.36842105 | S918: 35.29411765 | T918: 0 | U918: 0 | V918: 12.6 | W918: 11.56328699 | X918: 2.8783604 | Y918: 8.867312056 | Z918: 67.56438 | AA918: 61.96581 | AB918: 19.29365 | AC918: 18.59425 | AD918: 42.26722 | AE918: 36.45566 | AF918: 36.30948942 | AG918: 34.74419661
A919: Retten i Hillerød | B919: 92.35534234 | C919: 103.8677381 | D919: 88.87846284 | E919: 101.7466393 | F919: 102.7141477 | G919: 115.5215668 | H919: 0.185277248 | I919: 0.1756333422 | J919: 97 | K919: 111 | L919: 578.5504587 | M919: 452.7142857 | N919: 58.339 | O919: 62.57556071 | P919: 32.3 | Q919: 43.87 | R919: 28.57142857 | S919: 52.63157895 | T919: 0 | U919: 0 | V919: - | W919: 11.70379962 | X919: 7.402073881 | Y919: 7.981119575 | Z919: 49.13895 | AA919: 47.63132 | AB919: 14.2453 | AC919: 13.65091 | AD919: 24.07071 | AE919: 23.01597 | AF919: 24.63854698 | AG919: 24.26868614
A920: Retten i Helsingør | B920: 96.41779513 | C920: 98.02279549 | D920: 88.99550622 | E920: 90.70887356 | F920: 104.6044636 | G920: 104.9829353 | H920: 0.1838594629 | I920: 0.1704134393 | J920: 163 | K920: 232 | L920: 470.9816514 | M920: 540.5882353 | N920: 77.39692 | O920: 74.9231835 | P920: 43.7 | Q920: 44.48 | R920: 31.03448276 | S920: 30 | T920: 20 | U920: 16.66666667 | V920: 11 | W920: 9.210220221 | X920: 10.94594082 | Y920: 10.01239211 | Z920: 48.16947 | AA920: 46.77993 | AB920: 14.06693 | AC920: 13.55784 | AD920: 24.38135 | AE920: 23.56972 | AF920: 23.80538969 | AG920: 23.48838307
A921: Retten i Lyngby | B921: 94.92035374 | C921: 110.6822239 | D921: 91.96473443 | E921: 104.6807489 | F921: 99.31084811 | G921: 116.877276 | H921: 0.1908652173 | I921: 0.1760621233 | J921: 107 | K921: 146 | L921: 428.1336406 | M921: 431.483871 | N921: 48.69579 | O921: 49.91486968 | P921: 46.93 | Q921: 47.64 | R921: 87.5 | S921: 75 | T921: 100 | U921: 50 | V921: 5.6 | W921: 9.927967883 | X921: 16.60854648 | Y921: 8.96421104 | Z921: 51.96079 | AA921: 52.95963 | AB921: 15.98318 | AC921: 17.7778 | AD921: 29.50248 | AE921: 28.88693 | AF921: 28.44037323 | AG921: 28.65437696
A922: Retten i Glostrup | B922: 100.868332 | C922: 102.7652194 | D922: 97.33212993 | E922: 98.43980794 | F922: 103.6295986 | G922: 104.4633785 | H922: 0.1595673049 | I922: 0.1445192868 | J922: 148 | K922: 147 | L922: 528.0311111 | M922: 549.8122449 | N922: 88.04801 | O922: 87.73820572 | P922: 39.48 | Q922: 41.87 | R922: 27.5 | S922: 38.88888889 | T922: 18.18181818 | U922: 12.5 | V922: 8.6 | W922: 10.72348178 | X922: 6.612525858 | Y922: 10.13389133 | Z922: 103.23335 | AA922: 97.68429 | AB922: 30.90904 | AC922: 30.66644 | AD922: 59.56152 | AE922: 56.97563 | AF922: 52.96845268 | AG922: 52.04283591
A923: Retten på Frederiksberg | B923: 100.1289751 | C923: 100.1675279 | D923: 93.94230873 | E923: 98.25900066 | F923: 106.8812894 | G923: 102.9435532 | H923: 0.1551736831 | I923: 0.165116252 | J923: 181 | K923: 145 | L923: 563.4674556 | M923: 522.59375 | N923: 85.7729 | O923: 81.82170137 | P923: 44.35 | Q923: 49.19 | R923: 27.77777778 | S923: 46.875 | T923: 9.090909091 | U923: 33.33333333 | V923: 17 | W923: 19.81958458 | X923: 4.483734059 | Y923: 10.07988466 | Z923: 79.29932 | AA923: 78.01156 | AB923: 24.85565 | AC923: 23.17093 | AD923: 42.96383 | AE923: 43.03292 | AF923: 43.04067917 | AG923: 44.50388388
A924: Københavns Byret | B924: 93.33632485 | C924: 98.44655391 | D924: 96.28094146 | E924: 100.2374104 | F924: 86.24955551 | G924: 92.84226832 | H924: 0.213042176 | I924: 0.2316527362 | J924: 141 | K924: 143 | L924: 497.8881579 | M924: 501.9934354 | N924: 93.59561 | O924: 88.75109825 | P924: 33.35 | Q924: 33.82 | R924: 31.66666667 | S924: 32.43243243 | T924: 0 | U924: 20 | V924: 12.7 | W924: 12.13076452 | X924: 2.483572843 | Y924: 8.467714351 | Z924: 185.15239 | AA924: 181.57802 | AB924: 58.22402 | AC924: 57.36273 | AD924: 110.58845 | AE924: 107.80327 | AF924: 105.121274 | AG924: 106.718567
A925: Retten på Bornholm | B925: 57.5946498 | C925: 62.41298617 | D925: 56.52367189 | E925: 62.96127296 | F925: 69.58965727 | G925: 71.82940512 | H925: 0.3349244913 | I925: 0.2855691176 | J925: 35 | K925: 49 | L925: 267 | M925: 298 | N925: 29.08736 | O925: 33.87987271 | P925: 20.89 | Q925: 22.55 | R925: 100 | S925: 66.66666667 | T925: 100 | U925: - | V925: 1.8 | W925: 5.995101458 | X925: 22.46359746 | Y925: 0 | Z925: 13.87751 | AA925: 13.56407 | AB925: 3.45026 | AC925: 3.34178 | AD925: 6.70088 | AE925: 6.67167 | AF925: 7.083786483 | AG925: 7.50432764

Sheet Produkt.SAML.
B2: PRODUKTIVITETSINDEKS SAMLET FOR RETTEN
D4: Samlet | F4: Retssager | H4: Straffesager | J4: Civile sager | L4: Fogedsager | N4: Skiftesager
D5: 2015 | E5: 2016 | F5: 2015 | G5: 2016 | H5: 2015 | I5: 2016 | J5: 2015 | K5: 2016 | L5: 2015 | M5: 2016 | N5: 2015 | O5: 2016
C6: 5. BEDSTE RET | D6: 102.9018507 | E6: 104.9549343 | F6: 99.73906153 | G6: 103.4123195 | H6: 100.8626959 | I6: 106.8127472 | J6: 101.0994576 | K6: 107.7618302 | L6: 107.1349714 | M6: 105.474623 | N6: 125.9170608 | O6: 132.3917243
C7: SAMLET BYRETTERNE | D7: 97.39935165 | E7: 101.3250951 | F7: 95.16760909 | G7: 100.0688149 | H7: 94.58777116 | I7: 98.32565132 | J7: 95.69197537 | K7: 101.9852954 | L7: 97.19644483 | M7: 97.33872994 | N7: 108.9469364 | O7: 112.8552886
B8: EID | C8: Ret
B9: 901 | C9: Retten i Hjørring | D9: 99.65751808 | E9: 100.7666106 | F9: 96.21532545 | G9: 94.68711695 | H9: 93.48434924 | I9: 86.45533924 | J9: 99.15136742 | K9: 102.8098446 | L9: 96.64374966 | M9: 100.2049454 | N9: 117.2781124 | O9: 125.8075163
B10: 902 | C10: Retten i Aalborg | D10: 103.1478737 | E10: 102.0401416 | F10: 103.7542537 | G10: 101.9208673 | H10: 100.7595191 | I10: 98.52032169 | J10: 106.847994 | K10: 105.3458254 | L10: 88.36327574 | M10: 88.71889368 | N10: 120.821253 | O10: 120.9234436
B11: 903 | C11: Retten i Randers | D11: 101.3335993 | E11: 97.72230797 | F11: 88.3263089 | G11: 85.99601389 | H11: 82.76885519 | I11: 85.2648702 | J11: 93.57930765 | K11: 86.78656549 | L11: 129.1044997 | M11: 115.2670536 | N11: 125.9170608 | O11: 126.2838206
B12: 904 | C12: Retten i Århus | D12: 94.81171575 | E12: 94.17890149 | F12: 89.8641637 | G12: 87.06175407 | H12: 78.32394046 | I12: 80.52919021 | J12: 104.8040956 | K12: 95.28378499 | L12: 107.1349714 | M12: 96.06101291 | N12: 106.4166227 | O12: 127.0925678
B13: 905 | C13: Retten i Viborg | D13: 94.80173877 | E13: 104.9549343 | F13: 87.37702827 | G13: 102.4137192 | H13: 91.61118933 | I13: 98.97674663 | J13: 84.33746462 | K13: 105.6058645 | L13: 83.72314348 | M13: 84.35046497 | N13: 166.3190143 | O13: 156.6031784
B14: 906 | C14: Retten i Holstebro | D14: 89.72928256 | E14: 93.05673734 | F14: 87.2359787 | G14: 88.96250561 | H14: 80.66920402 | I14: 91.54451813 | J14: 96.07934682 | K14: 85.67221674 | L14: 109.1422595 | M14: 108.3806809 | N14: 84.90832185 | O14: 95.26751663
B15: 907 | C15: Retten i Herning | D15: 92.25562242 | E15: 104.9324679 | F15: 90.19765872 | G15: 103.2294331 | H15: 91.61327473 | I15: 102.9971947 | J15: 88.49063051 | K15: 103.4235923 | L15: 100.8325681 | M15: 102.0849881 | N15: 92.19202418 | O15: 117.4190507
B16: 908 | C16: Retten i Horsens | D16: 93.06163915 | E16: 96.34604569 | F16: 94.7665993 | G16: 95.97606769 | H16: 99.40708467 | I16: 107.2016325 | J16: 90.83563396 | K16: 87.53420724 | L16: 80.32691857 | M16: 90.28685419 | N16: 106.855201 | O16: 108.9542727
B17: 909 | C17: Retten i Kolding | D17: 106.3404052 | E17: 108.1864949 | F17: 99.74126972 | G17: 102.6897662 | H17: 105.0504838 | I17: 105.924723 | J17: 95.36666319 | K17: 99.03892022 | L17: 119.1896441 | M17: 112.3082637 | N17: 123.8498058 | O17: 132.3917243
B18: 910 | C18: Retten i Esbjerg | D18: 92.45433117 | E18: 99.21631248 | F18: 87.93254199 | G18: 92.4999739 | H18: 87.95619488 | I18: 84.23351001 | J18: 87.21328944 | K18: 107.2066238 | L18: 88.0784206 | M18: 97.3259645 | N18: 118.7138723 | O18: 135.7661819
B19: 911 | C19: Retten i Sønderborg | D19: 99.37367473 | E19: 106.9929863 | F19: 93.50502137 | G19: 102.6282472 | H19: 109.9809527 | I19: 123.2306167 | J19: 77.31621188 | K19: 79.39502043 | L19: 101.7656576 | M19: 108.004487 | N19: 129.0811126 | O19: 129.9129653
B20: 912 | C20: Retten i Odense | D20: 103.1986795 | E20: 101.1456782 | F20: 101.6292947 | G20: 103.1372855 | H20: 112.2086337 | I20: 106.522133 | J20: 88.0719606 | K20: 97.98270492 | L20: 99.12898126 | M20: 98.31198705 | N20: 117.9513423 | O20: 98.33414925
B21: 913 | C21: Retten i Svendborg | D21: 97.36672868 | E21: 96.04366106 | F21: 84.43163469 | G21: 90.17034952 | H21: 74.46873041 | I21: 79.18912704 | J21: 97.54974914 | K21: 105.4764511 | L21: 106.0775778 | M21: 88.25627975 | N21: 134.0033757 | O21: 130.5157987
B22: 914 | C22: Retten i Nykøbing F. | D22: 95.20256153 | E22: 102.5324871 | F22: 96.15217404 | G22: 103.8229484 | H22: 98.19876179 | I22: 101.0818442 | J22: 92.89225759 | K22: 107.7618302 | L22: 96.12057661 | M22: 97.36931047 | N22: 92.5214105 | O22: 107.180503
B23: 915 | C23: Retten i Næstved | D23: 103.4141734 | E23: 104.1711982 | F23: 99.73906153 | G23: 103.4123195 | H23: 100.8626959 | I23: 97.7447084 | J23: 98.01649204 | K23: 110.8752603 | L23: 104.7028529 | M23: 97.70087352 | N23: 117.0249226 | O23: 116.8884319
B24: 916 | C24: Retten i Holbæk | D24: 95.98991924 | E24: 92.61511522 | F24: 94.58972236 | G24: 89.23892494 | H24: 82.62092822 | I24: 76.22660339 | J24: 109.0719693 | K24: 105.0765113 | L24: 99.94254113 | M24: 89.40554795 | N24: 98.22416705 | O24: 111.8653091
B25: 917 | C25: Retten i Roskilde | D25: 102.9018507 | E25: 118.7079218 | F25: 97.64377545 | G25: 116.676187 | H25: 99.09282077 | I25: 95.75939915 | J25: 95.81546706 | K25: 141.0657799 | L25: 97.97101897 | M25: 100.552608 | N25: 136.0194197 | O25: 156.0218767
B26: 918 | C26: Retten i Hillerød | D26: 92.35534234 | E26: 103.8677381 | F26: 88.89388561 | G26: 103.2346839 | H26: 83.44213345 | I26: 106.8127472 | J26: 95.15443435 | K26: 98.93587296 | L26: 95.25336003 | M26: 98.31553717 | N26: 106.9268892 | O26: 117.9669524
B27: 919 | C27: Retten i Helsingør | D27: 96.41779513 | E27: 98.02279549 | F27: 91.73442756 | G27: 89.85539134 | H27: 92.41310462 | I27: 86.7657956 | J27: 91.18951911 | K27: 92.83091558 | L27: 93.24150136 | M27: 94.45654749 | N27: 121.2610471 | O27: 142.184963
B28: 920 | C28: Retten i Lyngby | D28: 94.92035374 | E28: 110.6822239 | F28: 94.87397225 | G28: 118.8896137 | H28: 99.0931083 | I28: 162.4904882 | J28: 92.7421138 | K28: 90.54007617 | L28: 109.8932508 | M28: 105.2872264 | N28: 81.10610825 | O28: 76.27151318
B29: 921 | C29: Retten i Glostrup | D29: 100.868332 | E29: 102.7652194 | F29: 99.67708407 | G29: 100.9426893 | H29: 95.73657846 | I29: 94.3825675 | J29: 104.5602155 | K29: 109.6406222 | L29: 99.96123024 | M29: 105.474623 | N29: 111.3445752 | O29: 109.4509444
B30: 922 | C30: Retten på Frederiksberg | D30: 100.1289751 | E30: 100.1675279 | F30: 104.8091248 | G30: 107.0047964 | H30: 117.0715584 | I30: 113.3685184 | J30: 90.91767142 | K30: 99.56281209 | L30: 101.9731905 | M30: 91.50298058 | N30: 70.19507982 | O30: 73.5356323
B31: 923 | C31: Københavns Byret | D31: 93.33632485 | E31: 98.44655391 | F31: 95.04648953 | G31: 101.0999202 | H31: 91.00397043 | I31: 95.55893701 | J31: 101.0994576 | K31: 109.4587519 | L31: 82.45852813 | M31: 92.48733185 | N31: 74.77588641 | O31: 61.96460904
B32: 924 | C32: Retten på Bornholm | D32: 57.5946498 | E32: 62.41298617 | F32: 68.63153266 | G32: 65.59120489 | H32: 64.22049226 | I32: 62.95182956 | J32: 74.11429545 | K32: 69.36535739 | L32: 34.24378558 | M32: 52.79067285 | N32: 70.55304991 | O32: 65.73039152
B35: 1) Indeks 100 svarer til gennemsnittet ved byretterne i 2012.
B36: 2) Tal for 2015 er genberegnet grundet kvalitetssikring af vægtene for de civile sager samt fastsættelse af 2012 som indeks 100.
B37: 3) "Retssager" svarer til den samlede produktivitet for straffesager og civile sager, "Fogedsager" til den samlede produktivitet for øvrige fogedsager og tvangsauktioner, "Skiftesager" til den samlede produktivitet for Insolvensskifter og Dødsboskifter.
B38: 4) Ved beregningen af den samlede produktivitet, samlet for retten, anvendes rettens samlede vægtede årsværksforbrug - dvs. også årsværksforbruget til generel ledelse og administration mv. Ved beregning af produktiviteten på de enkelte sagsområder er årsværkforbruget til generel ledelse og administration mv. nøgletalsfordelt, således at forskelle i andele i årsværksforbrug til generel ledelse og administration mv. ikke vanskeliggør en sammenligning af de enkelte retter.

Sheet Produkt.JUR
B2: PRODUKTIVITETSINDEKS JURISTER
D4: Samlet | F4: Retssager | H4: Straffesager | J4: Civile sager | L4: Fogedsager | N4: Skiftesager
D5: 2015 | E5: 2016 | F5: 2015 | G5: 2016 | H5: 2015 | I5: 2016 | J5: 2015 | K5: 2016 | L5: 2015 | M5: 2016 | N5: 2015 | O5: 2016
C6: 5. BEDSTE RET | D6: 100.5511498 | E6: 102.0933223 | F6: 96.79610313 | G6: 100.8540931 | H6: 98.84159075 | I6: 98.99191682 | J6: 103.3173904 | K6: 106.9268392 | L6: 127.6549318 | M6: 116.6183708 | N6: 159.7221238 | O6: 142.0024695
C7: SAMLET BYRETTERNE | D7: 93.92086538 | E7: 98.20979884 | F7: 91.38353894 | G7: 95.35856966 | H7: 90.49814447 | I7: 92.14104546 | J7: 92.20136215 | K7: 98.89379819 | L7: 103.1314693 | M7: 101.4770997 | N7: 114.2028798 | O7: 113.1950315
B8: EID | C8: Ret
B9: 901 | C9: Retten i Hjørring | D9: 101.2746555 | E9: 101.8581145 | F9: 100.7359181 | G9: 91.15784941 | H9: 94.80431776 | I9: 80.90921716 | J9: 107.049176 | K9: 100.811858 | L9: 134.0226804 | M9: 135.2523604 | N9: 152.9865857 | O9: 142.0024695
B10: 902 | C10: Retten i Aalborg | D10: 102.8004801 | E10: 100.592683 | F10: 95.5882998 | G10: 93.91838 | H10: 88.13348183 | I10: 85.50422449 | J10: 103.2543735 | K10: 102.1037218 | L10: 97.0785538 | M10: 88.89266564 | N10: 140.5145026 | O10: 119.6309033
B11: 903 | C11: Retten i Randers | D11: 95.13066458 | E11: 89.82215475 | F11: 89.73107446 | G11: 80.5562791 | H11: 79.45280992 | I11: 75.30087557 | J11: 99.5872488 | K11: 85.76501331 | L11: 119.5778957 | M11: 91.57316926 | N11: 159.7221238 | O11: 140.6875968
B12: 904 | C12: Retten i Århus | D12: 88.37857354 | E12: 89.92279501 | F12: 85.02466238 | G12: 82.66926146 | H12: 72.94981857 | I12: 74.53488763 | J12: 99.59519938 | K12: 92.72102973 | L12: 104.9697478 | M12: 83.98402823 | N12: 110.9250224 | O12: 127.8605968
B13: 905 | C13: Retten i Viborg | D13: 85.87584261 | E13: 101.0458473 | F13: 82.01550064 | G13: 100.8540931 | H13: 84.60113245 | I13: 93.83598525 | J13: 80.32976278 | K13: 106.8485536 | L13: 82.51865071 | M13: 85.79211928 | N13: 138.6491917 | O13: 141.3554992
B14: 906 | C14: Retten i Holstebro | D14: 87.76887982 | E14: 86.07588518 | F14: 91.54411222 | G14: 88.02791606 | H14: 82.46625124 | I14: 87.05847008 | J14: 103.59411 | K14: 88.93000995 | L14: 102.2532358 | M14: 114.8080608 | N14: 74.71185563 | O14: 81.59679769
B15: 907 | C15: Retten i Herning | D15: 84.33840594 | E15: 98.27365151 | F15: 83.06356571 | G15: 91.23398827 | H15: 87.09339188 | I15: 90.29785955 | J15: 79.01111951 | K15: 92.13359908 | L15: 97.20315145 | M15: 116.2499631 | N15: 96.75587405 | O15: 107.03131
B16: 908 | C16: Retten i Horsens | D16: 84.64676519 | E16: 89.19656434 | F16: 85.89283675 | G16: 86.092368 | H16: 91.53692356 | I16: 93.34038866 | J16: 81.54826164 | K16: 80.75899944 | L16: 75.49139028 | M16: 89.71536438 | N16: 97.55626953 | O16: 101.0168003
B17: 909 | C17: Retten i Kolding | D17: 100.841766 | E17: 104.7398676 | F17: 89.04686588 | G17: 94.55793128 | H17: 90.69296749 | I17: 94.3616984 | J17: 87.79118748 | K17: 94.61356683 | L17: 131.1023838 | M17: 118.7413759 | N17: 190.6899106 | O17: 200.5491615
B18: 910 | C18: Retten i Esbjerg | D18: 86.22696486 | E18: 90.05202775 | F18: 79.23804313 | G18: 82.73728746 | H18: 72.66289353 | I18: 69.7215752 | J18: 91.48791801 | K18: 110.2128787 | L18: 81.54215272 | M18: 107.855321 | N18: 204.41791 | O18: 138.7859417
B19: 911 | C19: Retten i Sønderborg | D19: 94.38402225 | E19: 102.0933223 | F19: 83.21952901 | G19: 91.09513024 | H19: 98.88228209 | I19: 111.8120016 | J19: 68.72784522 | K19: 69.71632711 | L19: 119.1523854 | M19: 137.1125052 | N19: 187.9023122 | O19: 179.4498432
B20: 912 | C20: Retten i Odense | D20: 92.41555286 | E20: 94.6131613 | F20: 93.14817389 | G20: 97.99077141 | H20: 102.721104 | I20: 98.76921888 | J20: 81.37318447 | K20: 96.40526639 | L20: 88.00931651 | M20: 88.65484692 | N20: 110.2821067 | O20: 107.4158335
B21: 913 | C21: Retten i Svendborg | D21: 93.06905089 | E21: 95.96751974 | F21: 85.34490356 | G21: 93.0862179 | H21: 72.00841862 | I21: 79.66923452 | J21: 103.3173904 | K21: 111.4842852 | L21: 110.4494147 | M21: 105.076586 | N21: 146.2392349 | O21: 136.0190594
B22: 914 | C22: Retten i Nykøbing F. | D22: 94.00977328 | E22: 103.4003237 | F22: 90.61877441 | G22: 99.91730046 | H22: 96.49259907 | I22: 97.90124027 | J22: 83.31777419 | K22: 102.3390043 | L22: 146.290998 | M22: 114.4858391 | N22: 87.68851455 | O22: 105.9216067
B23: 915 | C23: Retten i Næstved | D23: 100.5511498 | E23: 98.11874151 | F23: 95.05626965 | G23: 93.58965774 | H23: 96.99778144 | I23: 84.33127419 | J23: 92.44761838 | K23: 106.3199719 | L23: 123.6959932 | M23: 116.6183708 | N23: 127.2902779 | O23: 129.2086686
B24: 916 | C24: Retten i Holbæk | D24: 96.30988668 | E24: 90.66960469 | F24: 100.6908981 | G24: 92.2437611 | H24: 87.64615009 | I24: 77.54989955 | J24: 115.3092653 | K24: 109.2148489 | L24: 106.7469797 | M24: 74.97482352 | N24: 121.2388548 | O24: 108.389377
B25: 917 | C25: Retten i Roskilde | D25: 104.1290927 | E25: 120.3344471 | F25: 96.86084748 | G25: 115.5718747 | H25: 98.84159075 | I25: 88.70449972 | J25: 94.53089619 | K25: 146.4349167 | L25: 99.77779106 | M25: 93.34806285 | N25: 180.2884864 | O25: 194.3934836
B26: 918 | C26: Retten i Hillerød | D26: 88.87846284 | E26: 101.7466393 | F26: 86.71768242 | G26: 98.62166927 | H26: 83.24642836 | I26: 107.4397361 | J26: 90.24587648 | K26: 89.93077277 | L26: 94.00072447 | M26: 94.60829301 | N26: 108.8696299 | O26: 135.6886738
B27: 919 | C27: Retten i Helsingør | D27: 88.99550622 | E27: 90.70887356 | F27: 86.58956053 | G27: 82.2240181 | H27: 89.85365573 | I27: 79.13943479 | J27: 83.8390381 | K27: 85.02388666 | L27: 77.45263929 | M27: 94.33542534 | N27: 116.4113526 | O27: 160.2713871
B28: 920 | C28: Retten i Lyngby | D28: 91.96473443 | E28: 104.6807489 | F28: 88.71568303 | G28: 107.0089393 | H28: 96.18356747 | I28: 143.7585027 | J28: 85.12228624 | K28: 84.36576074 | L28: 127.6549318 | M28: 92.97169255 | N28: 65.63254584 | O28: 59.25793936
B29: 921 | C29: Retten i Glostrup | D29: 97.33212993 | E29: 98.43980794 | F29: 94.38417948 | G29: 94.91966102 | H29: 88.06516773 | I29: 86.05198859 | J29: 102.2832864 | K29: 106.9268392 | L29: 109.1798014 | M29: 123.5180799 | N29: 96.01094596 | O29: 79.49987807
B30: 922 | C30: Retten på Frederiksberg | D30: 93.94230873 | E30: 98.25900066 | F30: 94.97979402 | G30: 101.6574011 | H30: 103.9381457 | I30: 104.7987585 | J30: 84.80290441 | K30: 97.82770479 | L30: 152.5233305 | M30: 114.6216244 | N30: 39.1049452 | O30: 46.75659378
B31: 923 | C31: Københavns Byret | D31: 96.28094146 | E31: 100.2374104 | F31: 96.79610313 | G31: 101.9400058 | H31: 94.89581551 | I31: 98.99191682 | J31: 98.98135568 | K31: 105.6132879 | L31: 83.51493794 | M31: 98.65079893 | N31: 44.7234166 | O31: 30.12855269
B32: 924 | C32: Retten på Bornholm | D32: 56.52367189 | E32: 62.96127296 | F32: 122.7003292 | G32: 89.91715632 | H32: 107.7290706 | I32: 81.85156329 | J32: 143.006966 | K32: 103.2744743 | L32: 35.86328523 | M32: 47.2891766 | N32: 73.97247609 | O32: 57.83217746
B35: 1) Indeks 100 svarer til gennemsnittet ved byretterne i 2012.
B36: 2) Tal for 2015 er genberegnet grundet kvalitetssikring af vægtene for de civile sager samt fastsættelse af 2012 som indeks 100.
B37: 3) "Retssager" svarer til den samlede produktivitet for straffesager og civile sager, "Fogedsager" til den samlede produktivitet for øvrige fogedsager og tvangsauktioner, "Skiftesager" til den samlede produktivitet for Insolvensskifter og Dødsboskifter.
B38: 4) Ved beregningen af den samlede produktivitet for juristerne anvendes det samlede årsværksforbrug for gruppen - dvs. også årsværksforbruget til generel ledelse og administration mv. Ved beregning af produktiviteten på de enkelte sagsområder er kun medtaget det direkte årsværksforbrug - dvs. der er ikke foretaget en nøgletalsfordeling af årsværkforbruget til generel ledelse og administration mv.

Sheet Produkt.KON
B2: PRODUKTIVITETSINDEKS KONTORPERSONALE
D4: Samlet | F4: Retssager | H4: Straffesager | J4: Civile sager | L4: Fogedsager | N4: Skiftesager
D5: 2015 | E5: 2016 | F5: 2015 | G5: 2016 | H5: 2015 | I5: 2016 | J5: 2015 | K5: 2016 | L5: 2015 | M5: 2016 | N5: 2015 | O5: 2016
C6: 5. BEDSTE RET | D6: 109.3683847 | E6: 114.5475658 | F6: 108.4322533 | G6: 120.2945577 | H6: 118.0331142 | I6: 123.7906117 | J6: 110.8529912 | K6: 113.1918337 | L6: 109.2854822 | M6: 100.3784252 | N6: 117.0579264 | O6: 122.8837921
C7: SAMLET BYRETTERNE | D7: 101.5439711 | E7: 104.8405252 | F7: 98.56082909 | G7: 104.16103 | H7: 97.9588459 | I7: 105.4817885 | J7: 99.0958304 | K7: 102.1777211 | L7: 93.66333743 | M7: 93.26781 | N7: 104.474144 | O7: 108.492846
B8: EID | C8: Ret
B9: 901 | C9: Retten i Hjørring | D9: 99.36860825 | E9: 100.5558502 | F9: 92.61439227 | G9: 91.81070471 | H9: 94.92209217 | I9: 87.09034297 | J9: 90.08726833 | K9: 97.12566059 | L9: 85.2257445 | M9: 83.62764468 | N9: 105.5760845 | O9: 110.4028936
B10: 902 | C10: Retten i Aalborg | D10: 100.5825083 | E10: 99.20429628 | F10: 102.82812 | G10: 106.1208239 | H10: 109.1105519 | I10: 115.0478318 | J10: 96.72804828 | K10: 97.37757127 | L10: 91.71800717 | M10: 97.5594507 | N10: 101.6811155 | O10: 112.3590035
B11: 903 | C11: Retten i Randers | D11: 115.3690612 | E11: 114.5475658 | F11: 88.55474657 | G11: 88.4224337 | H11: 91.42578785 | I11: 97.66631 | J11: 86.5284781 | K11: 80.91066185 | L11: 144.1974325 | M11: 130.2161594 | N11: 112.3518612 | O11: 112.0730934
B12: 904 | C12: Retten i Århus | D12: 104.8015741 | E12: 100.7600439 | F12: 91.79663879 | G12: 84.77729168 | H12: 78.63110687 | I12: 81.37496292 | J12: 113.3932694 | K12: 89.18082872 | L12: 97.5981555 | M12: 92.57430274 | N12: 99.46978128 | O12: 113.3359179
B13: 905 | C13: Retten i Viborg | D13: 109.3683847 | E13: 113.3188851 | F13: 93.20162052 | G13: 107.4937497 | H13: 100.1820918 | I13: 115.5305358 | J13: 87.716253 | K13: 100.8433228 | L13: 89.17160109 | M13: 88.00207768 | N13: 182.1564202 | O13: 164.2081637
B14: 906 | C14: Retten i Holstebro | D14: 94.82739817 | E14: 105.1768084 | F14: 79.19262971 | G14: 88.13949355 | H14: 77.06506631 | I14: 96.79537678 | J14: 81.89811775 | K14: 77.56180589 | L14: 109.7755434 | M14: 103.884662 | N14: 90.9435636 | O14: 109.1053825
B15: 907 | C15: Retten i Herning | D15: 100.9936039 | E15: 112.3184893 | F15: 101.8178896 | G15: 113.0079831 | H15: 95.54984461 | I15: 112.2599676 | J15: 110.8529912 | K15: 113.7849359 | L15: 99.0906663 | M15: 88.66221421 | N15: 87.87883643 | O15: 114.3535309
B16: 908 | C16: Retten i Horsens | D16: 106.9116525 | E16: 114.7481586 | F16: 116.8101583 | G16: 129.0841845 | H16: 118.4631732 | I16: 173.3894709 | J16: 115.2204533 | K16: 101.7844489 | L16: 82.07529251 | M16: 98.00572616 | N16: 121.4472813 | O16: 113.3320579
B17: 909 | C17: Retten i Kolding | D17: 112.5352412 | E17: 109.8548711 | F17: 109.5592398 | G17: 101.7984232 | H17: 121.2790082 | I17: 110.6827919 | J17: 99.41953404 | K17: 91.93458978 | L17: 115.6328551 | M17: 100.3784252 | N17: 96.43606638 | O17: 101.0023407
B18: 910 | C18: Retten i Esbjerg | D18: 101.3112499 | E18: 111.3423652 | F18: 97.4181606 | G18: 102.4536239 | H18: 118.0331142 | I18: 110.4065571 | J18: 73.15909616 | K18: 91.12878177 | L18: 85.67872695 | M18: 86.83708654 | N18: 93.18483248 | O18: 126.179535
B19: 911 | C19: Retten i Sønderborg | D19: 106.4882161 | E19: 115.1153884 | F19: 99.06144342 | G19: 120.2945577 | H19: 111.9163811 | I19: 130.7298801 | J19: 84.20271588 | K19: 103.5465142 | L19: 90.83884397 | M19: 95.58495961 | N19: 101.2987629 | O19: 105.6143284
B20: 912 | C20: Retten i Odense | D20: 117.8282467 | E20: 108.6484782 | F20: 111.8455468 | G20: 101.6265816 | H20: 122.2359947 | I20: 108.9961575 | J20: 96.76548818 | K20: 90.45919728 | L20: 99.76543043 | M20: 96.20116055 | N20: 118.2736691 | O20: 88.14341203
B21: 913 | C21: Retten i Svendborg | D21: 109.664697 | E21: 100.2980697 | F21: 83.83679403 | G21: 88.64595787 | H21: 79.18413428 | I21: 81.00882081 | J21: 89.79845023 | K21: 99.58162401 | L21: 110.4348924 | M21: 88.469735 | N21: 126.4333343 | O21: 130.6199685
B22: 914 | C22: Retten i Nykøbing F. | D22: 96.96617198 | E22: 103.2797536 | F22: 103.4619554 | G22: 104.8212373 | H22: 96.76915214 | I22: 100.0563608 | J22: 115.2375374 | K22: 113.1918337 | L22: 79.46246271 | M22: 86.91216005 | N22: 94.02161504 | O22: 104.6880057
B23: 915 | C23: Retten i Næstved | D23: 105.2356343 | E23: 107.8669948 | F23: 108.4322533 | G23: 123.4358345 | H23: 107.7465221 | I23: 127.3249559 | J23: 108.9094344 | K23: 118.024466 | L23: 94.99394653 | M23: 87.78874966 | N23: 109.2585657 | O23: 107.2303874
B24: 916 | C24: Retten i Holbæk | D24: 96.14687891 | E24: 95.0595337 | F24: 86.35291687 | G24: 79.63713902 | H24: 76.37412372 | I24: 70.6001461 | J24: 100.1130967 | K24: 91.5056079 | L24: 96.73724238 | M24: 93.52333818 | N24: 93.78476919 | O24: 109.2469477
B25: 917 | C25: Retten i Roskilde | D25: 97.09230532 | E25: 111.3127937 | F25: 83.64118329 | G25: 102.8739322 | H25: 84.16042988 | I25: 95.38676866 | J25: 82.79872345 | K25: 111.9870163 | L25: 87.64355131 | M25: 95.73675837 | N25: 107.168679 | O25: 125.736642
B26: 918 | C26: Retten i Hillerød | D26: 102.7141477 | E26: 115.5215668 | F26: 99.42019237 | G26: 122.7793673 | H26: 93.68602049 | I26: 123.1298361 | J26: 106.9044313 | K26: 121.8109549 | L26: 99.7920133 | M26: 106.8140962 | N26: 102.1843234 | O26: 106.0058534
B27: 919 | C27: Retten i Helsingør | D27: 104.6044636 | E27: 104.9829353 | F27: 93.77095107 | G27: 94.30987427 | H27: 86.64979819 | I27: 89.80695561 | J27: 102.2837185 | K27: 99.32236922 | L27: 95.74619899 | M27: 87.34406805 | N27: 117.0579264 | O27: 122.8837921
B28: 920 | C28: Retten i Lyngby | D28: 99.31084811 | E28: 116.877276 | F28: 103.4319449 | G28: 137.4181982 | H28: 98.57772089 | I28: 191.5355051 | J28: 108.1229515 | K28: 97.63293746 | L28: 109.2854822 | M28: 105.8344434 | N28: 87.10001665 | O28: 81.83508172
B29: 921 | C29: Retten i Glostrup | D29: 103.6295986 | E29: 104.4633785 | F29: 102.6037229 | G29: 96.38821485 | H29: 106.0064264 | I29: 95.31002188 | J29: 98.08535994 | K29: 97.56115721 | L29: 89.95653857 | M29: 91.03978357 | N29: 116.4175998 | O29: 114.9448525
B30: 922 | C30: Retten på Frederiksberg | D30: 106.8812894 | E30: 102.9435532 | F30: 117.6885371 | G30: 111.5382376 | H30: 135.1356941 | I30: 123.7906117 | J30: 97.35504632 | K30: 97.32637857 | L30: 85.10896935 | M30: 81.68596973 | N30: 88.20984711 | O30: 88.68953226
B31: 923 | C31: Københavns Byret | D31: 86.24955551 | E31: 92.84226832 | F31: 97.27976795 | G31: 110.9761012 | H31: 87.84084633 | I31: 99.12823878 | J31: 116.1643642 | K31: 133.7992565 | L31: 84.73422085 | M31: 94.94102228 | N31: 96.57790104 | O31: 95.89989867
B32: 924 | C32: Retten på Bornholm | D32: 69.58965727 | E32: 71.82940512 | F32: 61.76470228 | G32: 58.20079774 | H32: 62.51259585 | I32: 59.76546797 | J32: 60.83371526 | K32: 55.71594428 | L32: 53.51038105 | M32: 69.26467452 | N32: 109.8937701 | O32: 91.96607901
B35: 1) Indeks 100 svarer til gennemsnittet ved byretterne i 2012.
B36: 2) Tal for 2015 er genberegnet grundet kvalitetssikring af vægtene for de civile sager samt fastsættelse af 2012 som indeks 100.
B37: 3) "Retssager" svarer til den samlede produktivitet for straffesager og civile sager, "Fogedsager" til den samlede produktivitet for øvrige fogedsager og tvangsauktioner, "Skiftesager" til den samlede produktivitet for Insolvensskifter og Dødsboskifter.
B38: 4) Ved beregningen af den samlede produktivitet for juristerne anvendes det samlede årsværksforbrug for gruppen - dvs. også årsværksforbruget til generel ledelse og administration mv. Ved beregning af produktiviteten på de enkelte sagsområder er kun medtaget det direkte årsværksforbrug - dvs. der er ikke foretaget en nøgletalsfordeling af årsværkforbruget til generel ledelse og administration mv.

Sheet Generel ledelse_Adm.
B3: ÅRSVÆRKSFORBRUG ANVENDT TIL GENEREL LEDELSE OG ADMINISTRATION MV.
E5: Årsværk til generel ledelse og administration | H5: %-del til generel ledelse og administration
E6: 2014 | F6: 2015 | G6: 2016 | H6: 2014 | I6: 2015 | J6: 2016
C8: SAMLET BYRETTERNE | D8: Jurister | E8: 37.33012859 | F8: 35.64509689 | G8: 30.09684542 | H8: 0.08366433883 | I8: 0.08257567217 | J8: 0.0711262071
D9: Kontor | E9: 135.7750836 | F9: 123.1166614 | G9: 122.2081497 | H9: 0.1649528892 | I9: 0.1535963216 | J9: 0.1568538128
D10: Elev | E10: 10.58040017 | F10: 7.164550744 | G10: 6.700152686 | H10: 0.1262837989 | I10: 0.09036842666 | J10: 0.08553245916
D11: Fleks | E11: 21.51095487 | F11: 21.73261409 | G11: 16.38041499 | H11: 0.4263307055 | I11: 0.4398293369 | J11: 0.3836650654
D12: Øvrige | E12: 71.75058444 | F12: 70.9377161 | G12: 69.85096034 | H12: 0.8260964736 | I12: 0.8108893127 | J12: 0.8247183078
C13: Samlet byretterne | D13: Samlet | E13: 276.9471517 | F13: 258.5966392 | G13: 245.2365232 | H13: 0.185821026 | I13: 0.1784163102 | J13: 0.1741743696
D14: - ekskl. fleks og elever | E14: 244.8557966 | F14: 229.6994744 | G14: 222.1559555 | H14: 0.1805510132 | I14: 0.1739215761 | J14: 0.172620027
B15: EID | C15: Ret
B16: 901 | C16: Retten i Hjørring | D16: Jurister | E16: 1.238467118 | F16: 1.927718998 | G16: 0.916099879 | H16: 0.09019812202 | I16: 0.146231302 | J16: 0.06998316149
B17: 901 | C17: Retten i Hjørring | D17: Kontor | E17: 4.067881552 | F17: 3.557959968 | G17: 3.21182055 | H17: 0.1426468977 | I17: 0.1261977023 | J17: 0.1146549308
B18: 901 | C18: Retten i Hjørring | D18: Elev | E18: 0.08265622103 | F18: 0.08961122894 | G18: 0.236130532 | H18: 0.03411739837 | I18: 0.0322398216 | J18: 0.09017434203
B19: 901 | C19: Retten i Hjørring | D19: Fleks | E19: 0.0196392862 | F19: 0.01620549656 | G19: 0.01356630004 | H19: 0.006095806403 | I19: 0.005032794167 | J19: 0.003954463185
B20: 901 | C20: Retten i Hjørring | D20: Øvrige | E20: 2.088980048 | F20: 2.699516249 | G20: 2.664718388 | H20: 0.9662793715 | I20: 0.8908765317 | J20: 0.9268746894
B21: 901 | C21: Retten i Hjørring | D21: Samlet | E21: 7.497624225 | F21: 8.29101194 | G21: 7.042335649 | H21: 0.1497906806 | I21: 0.1644849826 | J21: 0.1407695713
D22: - ekskl. fleks og elever | E22: 7.395328718 | F22: 8.185195215 | G22: 6.792638817 | H22: 0.1665256771 | I22: 0.1843247158 | J22: 0.1544547856
B23: 902 | C23: Retten i Aalborg | D23: Jurister | E23: 0.9682438502 | F23: 1.049419821 | G23: 0.7171857399 | H23: 0.04163565635 | I23: 0.05016562953 | J23: 0.03407375413
B24: 902 | C24: Retten i Aalborg | D24: Kontor | E24: 5.711289982 | F24: 6.955717691 | G24: 9.090363109 | H24: 0.1412844228 | I24: 0.1668908289 | J24: 0.2224849403
B25: 902 | C25: Retten i Aalborg | D25: Elev | E25: 0.2571238669 | F25: 0.3529961556 | G25: 0.1486420445 | H25: 0.06124855097 | I25: 0.107457627 | J25: 0.03637712963
B26: 902 | C26: Retten i Aalborg | D26: Fleks | E26: 0.833058283 | F26: 0.4149964316 | G26: 0.3187081947 | H26: 0.4083138665 | I26: 0.2986660177 | J26: 0.1783332091
B27: 902 | C27: Retten i Aalborg | D27: Øvrige | E27: 1.524294606 | F27: 1.265801002 | G27: 0.5598735184 | H27: 0.3145813731 | I27: 0.3964734631 | J27: 0.2126815394
B28: 902 | C28: Retten i Aalborg | D28: Samlet | E28: 9.294010589 | F28: 10.0389311 | G28: 10.83477261 | H28: 0.1243130201 | I28: 0.1424679654 | J28: 0.1538765506
D29: - ekskl. fleks og elever | E29: 8.203828439 | F29: 9.270938514 | G29: 10.36742237 | H29: 0.1197207669 | I29: 0.1409171381 | J29: 0.1606385485
B30: 903 | C30: Retten i Randers | D30: Jurister | E30: 1.936296865 | F30: 1.780031634 | G30: 0.9052661961 | H30: 0.1330848592 | I30: 0.1235601942 | J30: 0.06420710142
B31: 903 | C31: Retten i Randers | D31: Kontor | E31: 2.909723753 | F31: 2.963392888 | G31: 2.228643395 | H31: 0.1112681666 | I31: 0.1159689969 | J31: 0.09406086762
B32: 903 | C32: Retten i Randers | D32: Elev | E32: 0.7255616404 | F32: 0.2166317332 | G32: 0.1032077728 | H32: 0.2096447583 | I32: 0.05351719865 | J32: 0.02734545756
B33: 903 | C33: Retten i Randers | D33: Fleks | E33: 1.961935784 | F33: 2.794174135 | G33: 1.696882529 | H33: 0.753625466 | I33: 0.9419887516 | J33: 0.8179166162
B34: 903 | C34: Retten i Randers | D34: Øvrige | E34: 3.839575243 | F34: 3.955989466 | G34: 3.850932225 | H34: 0.8920759656 | I34: 0.9218090121 | J34: 0.9234871607
B35: 903 | C35: Retten i Randers | D35: Samlet | E35: 11.37309329 | F35: 11.71021986 | G35: 8.784932118 | H35: 0.2227039299 | I35: 0.2284243474 | J35: 0.1837404473
D36: - ekskl. fleks og elever | E36: 8.685595861 | F36: 8.699413987 | G36: 6.984841816 | H36: 0.1929961719 | I36: 0.1965922169 | J36: 0.1664532668
B37: 904 | C37: Retten i Århus | D37: Jurister | E37: 1.892102974 | F37: 2.026770779 | G37: 1.226600071 | H37: 0.07490397905 | I37: 0.0797113697 | J37: 0.05022893235
B38: 904 | C38: Retten i Århus | D38: Kontor | E38: 4.464206871 | F38: 4.046671597 | G38: 4.506457794 | H38: 0.1080037072 | I38: 0.1002960945 | J38: 0.1093875573
B39: 904 | C39: Retten i Århus | D39: Elev | E39: 0.2122014787 | F39: 0.02006919433 | G39: 0.09764551541 | H39: 0.1012658036 | I39: 0.01006514488 | J39: 0.04942174931
B40: 904 | C40: Retten i Århus | D40: Fleks | E40: 1.837616393 | F40: 1.939036151 | G40: 1.597962451 | H40: 0.342262907 | I40: 0.3249512584 | J40: 0.4055083567
B41: 904 | C41: Retten i Århus | D41: Øvrige | E41: 4.828655008 | F41: 3.349384299 | G41: 4.429379856 | H41: 0.6760625411 | I41: 0.600238401 | J41: 0.8214892841
B42: 904 | C42: Retten i Århus | D42: Samlet | E42: 13.23478273 | F42: 11.38193202 | G42: 11.85804569 | H42: 0.1629878475 | I42: 0.1435032556 | J42: 0.1541494376
D43: - ekskl. fleks og elever | E43: 11.18496485 | F43: 9.422826676 | G43: 10.16243772 | H43: 0.1516882453 | I43: 0.1320579781 | J43: 0.1431142805
B44: 905 | C44: Retten i Viborg | D44: Jurister | E44: 1.525485417 | F44: 1.405995945 | G44: 1.38583974 | H44: 0.09873807055 | I44: 0.08961164428 | J44: 0.09899024986
B45: 905 | C45: Retten i Viborg | D45: Kontor | E45: 3.996436188 | F45: 3.540452682 | G45: 3.696431963 | H45: 0.1515830158 | I45: 0.1374644271 | J45: 0.1521115965
B46: 905 | C46: Retten i Viborg | D46: Elev | E46: 0.2894278293 | F46: 0.2880265444 | G46: 0.3290571106 | H46: 0.06747167099 | I46: 0.06940014033 | J46: 0.08106552125
B47: 905 | C47: Retten i Viborg | D47: Fleks | E47: 0.2713005559 | F47: 0.156245565 | G47: 0.1142296454 | H47: 0.1064157446 | I47: 0.06324835143 | J47: 0.05711310929
B48: 905 | C48: Retten i Viborg | D48: Øvrige | E48: 2.509462845 | F48: 2.637861028 | G48: 2.39230565 | H48: 0.7417906239 | I48: 0.7160201049 | J48: 0.674112987
B49: 905 | C49: Retten i Viborg | D49: Samlet | E49: 8.592112835 | F49: 8.028581764 | G49: 7.91786411 | H49: 0.1651169445 | I49: 0.1551418865 | J49: 0.1652702733
D50: - ekskl. fleks og elever | E50: 8.03138445 | F50: 7.584309655 | G50: 7.474577354 | H50: 0.1776954429 | I50: 0.1680571436 | J50: 0.1786066876
B51: 906 | C51: Retten i Holstebro | D51: Jurister | E51: 0.9828585471 | F51: 0.9785960657 | G51: 1.119924859 | H51: 0.1034779651 | I51: 0.09787242785 | J51: 0.110960223
B52: 906 | C52: Retten i Holstebro | D52: Kontor | E52: 3.21810841 | F52: 2.705851618 | G52: 1.994423064 | H52: 0.1594088109 | I52: 0.1338563028 | J52: 0.1108472829
B53: 906 | C53: Retten i Holstebro | D53: Elev | E53: 0.260219673 | F53: 0.2987936929 | G53: 0.1155743702 | H53: 0.09441350604 | I53: 0.1416278507 | J53: 0.06668880705
B54: 906 | C54: Retten i Holstebro | D54: Fleks | E54: 2.00006 | F54: 2.00006 | G54: 2.06642 | H54: 1 | I54: 1 | J54: 1
B55: 906 | C55: Retten i Holstebro | D55: Øvrige | E55: 2.403162531 | F55: 2.297311023 | G55: 2.32869344 | H55: 0.9252398729 | I55: 0.8883715355 | J55: 0.9083365928
B56: 906 | C56: Retten i Holstebro | D56: Samlet | E56: 8.864409162 | F56: 8.2806124 | G56: 7.625035733 | H56: 0.2393226155 | I56: 0.2243518769 | J56: 0.2213445941
D57: - ekskl. fleks og elever | E57: 6.604129489 | F57: 5.981758707 | G57: 5.443041363 | H57: 0.2045676638 | I57: 0.1823747512 | J57: 0.1775913395
B58: 907 | C58: Retten i Herning | D58: Jurister | E58: 0.7576176844 | F58: 1.145046948 | G58: 0.5070691256 | H58: 0.06647005271 | I58: 0.09992590497 | J58: 0.04672242422
B59: 907 | C59: Retten i Herning | D59: Kontor | E59: 3.534635712 | F59: 2.913140052 | G59: 2.41809235 | H59: 0.1748427841 | I59: 0.1412297329 | J59: 0.1225567437
B60: 907 | C60: Retten i Herning | D60: Elev | E60: 0.913308257 | F60: 0.3777368315 | G60: 0.08135198007 | H60: 0.2423249659 | I60: 0.1169333546 | J60: 0.0284379868
B61: 907 | C61: Retten i Herning | D61: Fleks | E61: 0 | F61: 0 | G61: 0 | H61: 0 | I61: 0 | J61: 0
B62: 907 | C62: Retten i Herning | D62: Øvrige | E62: 2.08745 | F62: 2.00088 | G62: 2.001580375 | H62: 1 | I62: 1 | J62: 0.9976376523
B63: 907 | C63: Retten i Herning | D63: Samlet | E63: 7.293011653 | F63: 6.436803831 | G63: 5.008093831 | H63: 0.1946342015 | I63: 0.1724891131 | J63: 0.1412712832
D64: - ekskl. fleks og elever | E64: 6.379703396 | F64: 6.059067 | G64: 4.926741851 | H64: 0.1893007858 | I64: 0.1777540573 | J64: 0.1511756958
B65: 908 | C65: Retten i Horsens | D65: Jurister | E65: 1.203072755 | F65: 1.263129335 | G65: 0.8881616017 | H65: 0.08358909411 | I65: 0.08955137685 | J65: 0.06775804417
B66: 908 | C66: Retten i Horsens | D66: Kontor | E66: 4.259009138 | F66: 3.524991396 | G66: 3.391757973 | H66: 0.1752354148 | I66: 0.162048975 | J66: 0.1685389962
B67: 908 | C67: Retten i Horsens | D67: Elev | E67: 0.3587700286 | F67: 0.5026444744 | G67: 0.276862864 | H67: 0.09253232419 | I67: 0.164223186 | J67: 0.08820238105
B68: 908 | C68: Retten i Horsens | D68: Fleks | E68: 1.037038757 | F68: 0.7857314286 | G68: 0.5591736611 | H68: 0.3456692156 | I68: 0.2857142857 | J68: 0.2652991451
B69: 908 | C69: Retten i Horsens | D69: Øvrige | E69: 2.499526133 | F69: 2.350023616 | G69: 2.547194311 | H69: 0.890502992 | I69: 0.7405031011 | J69: 0.6083883623
B70: 908 | C70: Retten i Horsens | D70: Samlet | E70: 9.357416812 | F70: 8.42652025 | G70: 7.663150411 | H70: 0.1934093848 | I70: 0.1879155474 | J70: 0.1796089045
D71: - ekskl. fleks og elever | E71: 7.961608026 | F71: 7.138144347 | G71: 6.827113886 | H71: 0.1918271636 | I71: 0.1828827547 | J71: 0.1824499757
B72: 909 | C72: Retten i Kolding | D72: Jurister | E72: 1.480405023 | F72: 1.228612324 | G72: 1.232693387 | H72: 0.07481406578 | I72: 0.06335414301 | J72: 0.06484586923
B73: 909 | C73: Retten i Kolding | D73: Kontor | E73: 5.926518123 | F73: 4.82872704 | G73: 3.92989339 | H73: 0.1603423582 | I73: 0.1357221207 | J73: 0.1075102278
B74: 909 | C74: Retten i Kolding | D74: Elev | E74: 0.04646470159 | F74: 0.3968045223 | G74: 0.01257587921 | H74: 0.01311291647 | I74: 0.09741957017 | J74: 0.003605821442
B75: 909 | C75: Retten i Kolding | D75: Fleks | E75: 1.015208751 | F75: 1.01435647 | G75: 1.026636905 | H75: 0.3383927654 | I75: 0.338106426 | J75: 0.3421997545
B76: 909 | C76: Retten i Kolding | D76: Øvrige | E76: 3.017957819 | F76: 3.011997136 | G76: 3.077060747 | H76: 0.8979772375 | I76: 0.8062975692 | J76: 0.9834855507
B77: 909 | C77: Retten i Kolding | D77: Samlet | E77: 11.48655442 | F77: 10.48049749 | G77: 9.278860309 | H77: 0.1723315763 | I77: 0.1593273284 | J77: 0.1423580005
D78: - ekskl. fleks og elever | E78: 10.42488097 | F78: 9.0693365 | G78: 8.239647525 | H78: 0.1734292531 | I78: 0.1544863337 | J78: 0.1403879392
B79: 910 | C79: Retten i Esbjerg | D79: Jurister | E79: 1.194115675 | F79: 1.102596759 | G79: 1.08004299 | H79: 0.08164324098 | I79: 0.07825407307 | J79: 0.07721393124
B80: 910 | C80: Retten i Esbjerg | D80: Kontor | E80: 3.232979106 | F80: 2.725533434 | G80: 2.482812146 | H80: 0.1156161115 | I80: 0.1053689544 | J80: 0.1023497347
B81: 910 | C81: Retten i Esbjerg | D81: Elev | E81: 0.2559738462 | F81: 0.2191336411 | G81: 0.1270756176 | H81: 0.06448792269 | I81: 0.05613054331 | J81: 0.03345468603
B82: 910 | C82: Retten i Esbjerg | D82: Fleks | E82: 1.213883574 | F82: 0.1200053823 | G82: 0.01222191528 | H82: 0.3751127374 | I82: 0.0540801081 | J82: 0.01222154864
B83: 910 | C83: Retten i Esbjerg | D83: Øvrige | E83: 2.04207 | F83: 3.0907 | G83: 2.79649 | H83: 1 | I83: 1 | J83: 1
B84: 910 | C84: Retten i Esbjerg | D84: Samlet | E84: 7.939022202 | F84: 7.257969217 | G84: 6.498642668 | H84: 0.1531549996 | I84: 0.1476089249 | J84: 0.141765627
D85: - ekskl. fleks og elever | E85: 6.469164782 | F85: 6.918830193 | G85: 6.359345135 | H85: 0.1449473346 | I85: 0.1607264903 | J85: 0.1549461954
B86: 911 | C86: Retten i Sønderborg | D86: Jurister | E86: 1.099184253 | F86: 1.043237784 | G86: 1.169493282 | H86: 0.07066823021 | I86: 0.06369719672 | J86: 0.07402057665
B87: 911 | C87: Retten i Sønderborg | D87: Kontor | E87: 5.499621713 | F87: 2.714924234 | G87: 3.54860732 | H87: 0.1709381893 | I87: 0.08844726683 | J87: 0.1191741623
B88: 911 | C88: Retten i Sønderborg | D88: Elev | E88: 0.2819133878 | F88: 0.2697529082 | G88: 0.3429214634 | H88: 0.07867050312 | I88: 0.09364274446 | J88: 0.1645954552
B89: 911 | C89: Retten i Sønderborg | D89: Fleks | E89: 1.036323206 | F89: 0.8147727195 | G89: 1.00003 | H89: 0.7748500548 | I89: 0.6614273927 | J89: 1
B90: 911 | C90: Retten i Sønderborg | D90: Øvrige | E90: 2.972392799 | F90: 2.893179599 | G90: 2.912060253 | H90: 0.9404490902 | I90: 0.8065196639 | J90: 0.777370304
B91: 911 | C91: Retten i Sønderborg | D91: Samlet | E91: 10.88943536 | F91: 7.735867245 | G91: 8.973112319 | H91: 0.1951202598 | I91: 0.14123448 | J91: 0.1712239433
D92: - ekskl. fleks og elever | E92: 9.571198765 | F92: 6.651341617 | G92: 7.630160855 | H92: 0.1880839061 | I92: 0.1312918888 | J92: 0.1547001467
B93: 912 | C93: Retten i Odense | D93: Jurister | E93: 2.166297076 | F93: 2.176553678 | G93: 2.42970382 | H93: 0.09135540755 | I93: 0.0958129762 | J93: 0.1084099242
B94: 912 | C94: Retten i Odense | D94: Kontor | E94: 5.143963768 | F94: 4.139676773 | G94: 3.114865263 | H94: 0.1170460626 | I94: 0.1112493654 | J94: 0.07776272487
B95: 912 | C95: Retten i Odense | D95: Elev | E95: 0.1974280623 | F95: 0.2078070924 | G95: 0.02899134568 | H95: 0.07470016812 | I95: 0.07669120567 | J95: 0.008496130376
B96: 912 | C96: Retten i Odense | D96: Fleks | E96: 2.00006 | F96: 2.125729867 | G96: 0.4132317134 | H96: 1 | I96: 0.9329145952 | J96: 0.3831256962
B97: 912 | C97: Retten i Odense | D97: Øvrige | E97: 4.77327 | F97: 4.396106807 | G97: 4.177663291 | H97: 1 | I97: 0.9947675968 | J97: 0.9894845859
B98: 912 | C98: Retten i Odense | D98: Samlet | E98: 14.28101891 | F98: 13.04587422 | G98: 10.16445543 | H98: 0.1852817263 | I98: 0.1881572329 | J98: 0.1427970106
D99: - ekskl. fleks og elever | E99: 12.08353084 | F99: 10.71233726 | G99: 9.722232373 | H99: 0.1668205188 | I99: 0.1664783989 | J99: 0.1457818715
B100: 913 | C100: Retten i Svendborg | D100: Jurister | E100: 0.6600560723 | F100: 1.003447994 | G100: 1.075461367 | H100: 0.06425554326 | I100: 0.1005501228 | J100: 0.1096142283
B101: 913 | C101: Retten i Svendborg | D101: Kontor | E101: 2.412987161 | F101: 2.315375499 | G101: 3.153269147 | H101: 0.1193656993 | I101: 0.1194266952 | J101: 0.1569357463
B102: 913 | C102: Retten i Svendborg | D102: Elev | E102: 0.9442746025 | F102: 0.3647912909 | G102: 0.4863701067 | H102: 0.4081178886 | I102: 0.1376015311 | J102: 0.2431753263
B103: 913 | C103: Retten i Svendborg | D103: Fleks | E103: 0.5616630293 | F103: 0.5085780684 | G103: 0.6535200731 | H103: 0.5616461799 | I103: 0.5085628115 | J103: 0.6535004681
B104: 913 | C104: Retten i Svendborg | D104: Øvrige | E104: 2.608772264 | F104: 2.615194224 | G104: 2.429756022 | H104: 0.9254345609 | I104: 0.7965479063 | J104: 0.8761750298
B105: 913 | C105: Retten i Svendborg | D105: Samlet | E105: 7.187753129 | F105: 6.807387077 | G105: 7.798376715 | H105: 0.1962785298 | I105: 0.1875248153 | J105: 0.2185807879
D106: - ekskl. fleks og elever | E106: 5.681815497 | F106: 5.934017717 | G106: 6.658486536 | H106: 0.1705922523 | I106: 0.1817454407 | J106: 0.2037654541
B107: 914 | C107: Retten i Nykøbing F. | D107: Jurister | E107: 1.271458669 | F107: 1.311103055 | G107: 0.9324034298 | H107: 0.0919366227 | I107: 0.09319012523 | J107: 0.06873936492
B108: 914 | C108: Retten i Nykøbing F. | D108: Kontor | E108: 4.322331885 | F108: 4.051827423 | G108: 3.909504956 | H108: 0.1408905504 | I108: 0.1369386627 | J108: 0.1370817235
B109: 914 | C109: Retten i Nykøbing F. | D109: Elev | E109: 0.2843849131 | F109: 0.4258019571 | G109: 0.09422752303 | H109: 0.1183566174 | I109: 0.2364069184 | J109: 0.08033721803
B110: 914 | C110: Retten i Nykøbing F. | D110: Fleks | E110: 0 | F110: 0 | G110: 0 | H110: 0 | I110: 0 | J110: 0
B111: 914 | C111: Retten i Nykøbing F. | D111: Øvrige | E111: 2.991731824 | F111: 2.93638 | G111: 3.17061 | H111: 0.998125619 | I111: 1 | J111: 1
B112: 914 | C112: Retten i Nykøbing F. | D112: Samlet | E112: 8.869907292 | F112: 8.725112435 | G112: 8.106745909 | H112: 0.1762527847 | I112: 0.1802885372 | J112: 0.174611391
D113: - ekskl. fleks og elever | E113: 8.585522379 | F113: 8.299310478 | G113: 8.012518386 | H113: 0.1807260383 | I113: 0.1781192283 | J113: 0.1770547784
B114: 915 | C114: Retten i Næstved | D114: Jurister | E114: 1.648800767 | F114: 1.482948436 | G114: 1.601409025 | H114: 0.09393495242 | I114: 0.09061502651 | J114: 0.09306248615
B115: 915 | C115: Retten i Næstved | D115: Kontor | E115: 6.652085932 | F115: 5.612669648 | G115: 5.497724433 | H115: 0.1942078783 | I115: 0.1684341231 | J115: 0.1707016361
B116: 915 | C116: Retten i Næstved | D116: Elev | E116: 0.2408870973 | F116: 0.3174811928 | G116: 0.3273331001 | H116: 0.09104302468 | I116: 0.09182710398 | J116: 0.07768139849
B117: 915 | C117: Retten i Næstved | D117: Fleks | E117: 1.723899886 | F117: 3.107654402 | G117: 1.96631769 | H117: 0.5858384318 | I117: 0.8047749077 | J117: 0.6087180877
B118: 915 | C118: Retten i Næstved | D118: Øvrige | E118: 3.016527676 | F118: 2.631638244 | G118: 2.263468214 | H118: 0.9263182759 | I118: 0.9197994632 | J118: 0.9405800281
B119: 915 | C119: Retten i Næstved | D119: Samlet | E119: 13.28220136 | F119: 13.15239192 | G119: 11.65625246 | H119: 0.218997802 | I119: 0.219689813 | J119: 0.1966801074
D120: - ekskl. fleks og elever | E120: 11.31741438 | F120: 9.727256329 | G120: 9.362601673 | H120: 0.2055415245 | I120: 0.1851079177 | J120: 0.1806720304
B121: 916 | C121: Retten i Holbæk | D121: Jurister | E121: 0.911139099 | F121: 1.801819262 | G121: 1.051460973 | H121: 0.07273727404 | I121: 0.144616412 | J121: 0.08397781055
B122: 916 | C122: Retten i Holbæk | D122: Kontor | E122: 4.049270375 | F122: 3.439557075 | G122: 3.399462021 | H122: 0.1613929636 | I122: 0.133564295 | J122: 0.1341753785
B123: 916 | C123: Retten i Holbæk | D123: Elev | E123: 0.2942430528 | F123: 0.1900746386 | G123: 0.4111447985 | H123: 0.1027998745 | I123: 0.151992834 | J123: 0.131887508
B124: 916 | C124: Retten i Holbæk | D124: Fleks | E124: 0.9461920835 | F124: 0.9772101338 | G124: 0.6313291742 | H124: 0.3350574133 | I124: 0.3257269395 | J124: 0.2381799015
B125: 916 | C125: Retten i Holbæk | D125: Øvrige | E125: 1.918544946 | F125: 2.326596541 | G125: 2.431918882 | H125: 0.8569791559 | I125: 0.8776794391 | J125: 0.9470531652
B126: 916 | C126: Retten i Holbæk | D126: Samlet | E126: 8.119389556 | F126: 8.73525765 | G126: 7.925315848 | H126: 0.1782877024 | I126: 0.1936312096 | J126: 0.1715712256
D127: - ekskl. fleks og elever | E127: 6.87895442 | F127: 7.567972878 | G127: 6.882841876 | H127: 0.1726009196 | I127: 0.1852070905 | J127: 0.1702639505
B128: 917 | C128: Retten i Roskilde | D128: Jurister | E128: 2.383437268 | F128: 1.445986128 | G128: 1.304585502 | H128: 0.1150410832 | I128: 0.07494621949 | J128: 0.07016069492
B129: 917 | C129: Retten i Roskilde | D129: Kontor | E129: 6.443531807 | F129: 4.702296064 | G129: 4.992296433 | H129: 0.1495363504 | I129: 0.111251605 | J129: 0.1369416006
B130: 917 | C130: Retten i Roskilde | D130: Elev | E130: 0.5786450391 | F130: 0.3263616835 | G130: 0.2692628402 | H130: 0.1805118073 | I130: 0.1066036302 | J130: 0.06768731339
B131: 917 | C131: Retten i Roskilde | D131: Fleks | E131: 0 | F131: 0.6445941077 | G131: 0.63256 | H131: 0 | I131: 0.8607212013 | J131: 1
B132: 917 | C132: Retten i Roskilde | D132: Øvrige | E132: 3.257857106 | F132: 2.19316 | G132: 2.3053 | H132: 0.922437944 | I132: 1 | J132: 1
B133: 917 | C133: Retten i Roskilde | D133: Samlet | E133: 12.66347122 | F133: 9.312397982 | G133: 9.504004775 | H133: 0.1769985778 | I133: 0.1378299924 | J133: 0.1533749785
D134: - ekskl. fleks og elever | E134: 12.08482618 | F134: 8.341442191 | G134: 8.602181935 | H134: 0.1794598483 | I134: 0.130837881 | J134: 0.1499808288
B135: 918 | C135: Retten i Hillerød | D135: Jurister | E135: 2.019006618 | F135: 1.243913384 | G135: 1.084947268 | H135: 0.1275491823 | I135: 0.08732096792 | J135: 0.07947801782
B136: 918 | C136: Retten i Hillerød | D136: Kontor | E136: 4.143702819 | F136: 3.681746673 | G136: 3.842103404 | H136: 0.1664382323 | I136: 0.1529554663 | J136: 0.1669320652
B137: 918 | C137: Retten i Hillerød | D137: Elev | E137: 0.1543435384 | F137: 0.05670782552 | G137: 0.04048004867 | H137: 0.04051171002 | I137: 0.0142391101 | J137: 0.01025735819
B138: 918 | C138: Retten i Hillerød | D138: Fleks | E138: 1.173645324 | F138: 1.516586518 | G138: 1.028288541 | H138: 0.5049196461 | I138: 0.5994152499 | J138: 0.4335641966
B139: 918 | C139: Retten i Hillerød | D139: Øvrige | E139: 2.826573776 | F139: 2.605375024 | G139: 2.369828663 | H139: 0.6406558875 | I139: 0.6044546942 | J139: 0.5100475138
B140: 918 | C140: Retten i Hillerød | D140: Samlet | E140: 10.31727208 | F140: 9.104329424 | G140: 8.365647924 | H140: 0.2012268345 | I140: 0.185277248 | J140: 0.1756333422
D141: - ekskl. fleks og elever | E141: 8.989283214 | F141: 7.531035081 | G141: 7.296879335 | H141: 0.1991529722 | I141: 0.1766757866 | J141: 0.1766235642
B142: 919 | C142: Retten i Helsingør | D142: Jurister | E142: 1.476871394 | F142: 0.9689530348 | G142: 0.9459729892 | H142: 0.09434629281 | I142: 0.06888162768 | J142: 0.06977313415
B143: 919 | C143: Retten i Helsingør | D143: Kontor | E143: 2.553297135 | F143: 3.437969586 | G143: 3.044827242 | H143: 0.1071676504 | I143: 0.1410081716 | J143: 0.1291838529
B144: 919 | C144: Retten i Helsingør | D144: Elev | E144: 0.5854494623 | F144: 0.3669610329 | G144: 0.2679323428 | H144: 0.147329955 | I144: 0.0986852314 | J144: 0.08428593447
B145: 919 | C145: Retten i Helsingør | D145: Fleks | E145: 2.013549582 | F145: 1.876253107 | G145: 1.640880733 | H145: 0.6061111058 | I145: 0.5305680518 | J145: 0.3795505972
B146: 919 | C146: Retten i Helsingør | D146: Øvrige | E146: 1.98019 | F146: 2.206276124 | G146: 2.072315453 | H146: 1 | I146: 0.8945402265 | J146: 0.963733178
B147: 919 | C147: Retten i Helsingør | D147: Samlet | E147: 8.609357574 | F147: 8.856412884 | G147: 7.97192876 | H147: 0.1765841317 | I147: 0.1838594629 | J147: 0.1704134393
D148: - ekskl. fleks og elever | E148: 6.010358529 | F148: 6.613198744 | G148: 6.063115684 | H148: 0.1449705115 | I148: 0.1616339655 | J148: 0.1543647155
B149: 920 | C149: Retten i Lyngby | D149: Jurister | E149: 1.173160617 | F149: 0.7857969043 | G149: 0.9969027618 | H149: 0.06237730909 | I149: 0.04916399016 | J149: 0.05607571026
B150: 920 | C150: Retten i Lyngby | D150: Kontor | E150: 6.28629777 | F150: 5.47707255 | G150: 4.703035228 | H150: 0.2131384066 | I150: 0.1856478692 | J150: 0.1628084129
B151: 920 | C151: Retten i Lyngby | D151: Elev | E151: 0.8580004628 | F151: 0.5986310517 | G151: 0.5239602577 | H151: 0.2431829349 | I151: 0.2028082202 | J151: 0.1689970867
B152: 920 | C152: Retten i Lyngby | D152: Fleks | E152: 0 | F152: 0 | G152: 0 | H152: 0 | I152: 0 | J152: 0
B153: 920 | C153: Retten i Lyngby | D153: Øvrige | E153: 3.040581361 | F153: 3.056006971 | G153: 3.100286659 | H153: 0.8854729708 | I153: 0.8673410979 | J153: 0.9705106791
B154: 920 | C154: Retten i Lyngby | D154: Samlet | E154: 11.35804021 | F154: 9.917507477 | G154: 9.324184907 | H154: 0.2055250952 | I154: 0.1908652173 | J154: 0.1760621233
D155: - ekskl. fleks og elever | E155: 10.50003975 | F155: 9.318876425 | G155: 8.800224649 | H155: 0.2029569311 | I155: 0.1901459163 | J155: 0.1765014505
B156: 921 | C156: Retten i Glostrup | D156: Jurister | E156: 2.854978396 | F156: 1.976877337 | G156: 1.829884394 | H156: 0.09254390021 | I156: 0.06395790154 | J156: 0.05967058432
B157: 921 | C157: Retten i Glostrup | D157: Kontor | E157: 10.8986431 | F157: 9.191330202 | G157: 7.060785296 | H157: 0.1713237381 | I157: 0.1543165823 | J157: 0.1239264102
B158: 921 | C158: Retten i Glostrup | D158: Elev | E158: 0.8010689453 | F158: 0.1930422244 | G158: 0.2764162661 | H158: 0.1619119213 | I158: 0.03950877074 | J158: 0.0771493987
B159: 921 | C159: Retten i Glostrup | D159: Fleks | E159: 1.001719403 | F159: 0.8843131411 | G159: 1.00003 | H159: 0.3338964508 | I159: 0.3842801389 | J159: 0.5
B160: 921 | C160: Retten i Glostrup | D160: Øvrige | E160: 4.425541651 | F160: 4.227104527 | G160: 3.950147963 | H160: 0.9982207121 | I160: 0.7581556714 | J160: 0.8858244166
B161: 921 | C161: Retten i Glostrup | D161: Samlet | E161: 19.98195149 | F161: 16.47266743 | G161: 14.11726392 | H161: 0.1870174417 | I161: 0.1595673049 | J161: 0.1445192868
D162: - ekskl. fleks og elever | E162: 18.17916315 | F162: 15.39531207 | G162: 12.84081765 | H162: 0.1838177813 | I162: 0.1602909111 | J162: 0.1394204999
B163: 922 | C163: Retten på Frederiksberg | D163: Jurister | E163: 1.852787927 | F163: 2.003515108 | G163: 1.84485761 | H163: 0.07185180649 | I163: 0.08060602351 | J163: 0.07961948914
B164: 922 | C164: Retten på Frederiksberg | D164: Kontor | E164: 7.344255037 | F164: 5.812512206 | G164: 6.12114608 | H164: 0.1702595194 | I164: 0.1352885021 | J164: 0.1422433356
B165: 922 | C165: Retten på Frederiksberg | D165: Elev | E165: 0.7437631575 | F165: 0.3907372396 | G165: 0.7052810482 | H165: 0.213521341 | I165: 0.09768040268 | J165: 0.1860899863
B166: 922 | C166: Retten på Frederiksberg | D166: Fleks | E166: 0.02418866682 | F166: 0.02199959582 | G166: 0.008425466268 | H166: 0.008199325721 | I166: 0.007592560473 | J166: 0.002808404504
B167: 922 | C167: Retten på Frederiksberg | D167: Øvrige | E167: 3.981394921 | F167: 4.0764034 | G167: 4.201266193 | H167: 0.7183223345 | I167: 0.8896248494 | J167: 0.8373025843
B168: 922 | C168: Retten på Frederiksberg | D168: Samlet | E168: 13.94638971 | F168: 12.30516755 | G168: 12.8809764 | H168: 0.1723949109 | I168: 0.1551736831 | J168: 0.165116252
D169: - ekskl. fleks og elever | E169: 13.17843788 | F169: 11.89243071 | G169: 12.16726988 | H169: 0.1769760671 | I169: 0.164256372 | J169: 0.1708371069
B170: 923 | C170: Københavns Byret | D170: Jurister | E170: 3.531979526 | F170: 3.137716958 | G170: 3.131295518 | H170: 0.05948319592 | I170: 0.05389042113 | J170: 0.05458763064
B171: 923 | C171: Københavns Byret | D171: Kontor | E171: 26.92259971 | F171: 29.50634781 | G171: 31.82381174 | H171: 0.2475668442 | I171: 0.2668122016 | J171: 0.2952026571
B172: 923 | C172: Københavns Byret | D172: Elev | E172: 0.9417307953 | F172: 0.4164350414 | G172: 0.925887551 | H172: 0.1176985475 | I172: 0.05640007657 | J172: 0.1264517842
B173: 923 | C173: Københavns Byret | D173: Fleks | E173: 0.8399722993 | F173: 0.01411136758 | G173: 0 | H173: 0.4840948277 | I173: 0.3293970024 | J173: 0
B174: 923 | C174: Københavns Byret | D174: Øvrige | E174: 5.894737783 | F174: 6.370656869 | G174: 6.182050352 | H174: 0.7136028539 | I174: 0.7147208185 | J174: 0.6800965408
B175: 923 | C175: Københavns Byret | D175: Samlet | E175: 38.13102011 | F175: 39.44526805 | G175: 42.06304516 | H175: 0.2048694996 | I175: 0.213042176 | J175: 0.2316527362
D176: - ekskl. fleks og elever | E176: 36.34931702 | F176: 39.01472164 | G176: 41.13715761 | H176: 0.2060769464 | I176: 0.2195217943 | J176: 0.2360731743
B177: 924 | C177: Retten på Bornholm | D177: Jurister | E177: 1.102305001 | F177: 1.35530922 | G177: 0.7195838965 | H177: 0.2923358654 | I177: 0.3928136487 | J177: 0.2153295239
B178: 924 | C178: Retten på Bornholm | D178: Kontor | E178: 1.781706553 | F178: 1.270917261 | G178: 1.046015415 | H178: 0.2366273002 | I178: 0.1896642323 | J178: 0.1567846454
B179: 924 | C179: Retten på Bornholm | D179: Elev | E179: 0.272560107 | F179: 0.2775175468 | G179: 0.4718203074 | H179: 0.1362582522 | I179: 0.1451003857 | J179: 0.2478789908
B180: 924 | C180: Retten på Bornholm | D180: Fleks | E180: 0 | F180: 0 | G180: 0 | H180: 0 | I180: 0 | J180: 0
B181: 924 | C181: Retten på Bornholm | D181: Øvrige | E181: 1.221334095 | F181: 1.74417395 | G181: 1.636059882 | H181: 0.9513133215 | I181: 0.9616237635 | J181: 0.9932429662
B182: 924 | C182: Retten på Bornholm | D182: Samlet | E182: 4.377905756 | F182: 4.647917977 | G182: 3.873479501 | H182: 0.3001766785 | I182: 0.3349244913 | J182: 0.2855691176
D183: - ekskl. fleks og elever | E183: 4.105345649 | F183: 4.37040043 | G183: 3.401659194 | H183: 0.3262324987 | I183: 0.3652678355 | J183: 0.291721483
B185: 1) I opgørelsen er årsværksforbrug under kategorierne "ledelse og administration", "hjælpefunktioner" og "transporttid" henført under generel ledelse og administration mv.

Sheet Aktivitet
B2: AKTIVITET VED RETTEN MÅLT SOM VÆGTEDE AFSLUTTEDE SAGER
D4: Samlet | F4: Straffesager | H4: Civile sager | J4: Øvrige Fogedsager | L4: Tvangsauktionssager | N4: Insolvensskiftesager | P4: Dødsboskiftesager | R4: Notarialforretninger
D5: 2015 | E5: 2016 | F5: 2015 | G5: 2016 | H5: 2015 | I5: 2016 | J5: 2015 | K5: 2016 | L5: 2015 | M5: 2016 | N5: 2015 | O5: 2016 | P5: 2015 | Q5: 2016 | R5: 2015 | S5: 2016
C7: SAMLET BYRETTERNE | D7: =SUM(D9:D32) -> 708931.2093 | E7: 719772.3446 | F7: 169254.2535 | G7: 173159.985 | H7: 52719.85473 | I7: 53678.74857 | J7: 319666.4754 | K7: 316507.8426 | L7: 8548.055595 | M7: 7252.644262 | N7: 13978.84688 | O7: =SUM(O9:O32) -> 15845.70485 | P7: 54603.68575 | Q7: =SUM(Q9:Q32) -> 53731.63098 | R7: =SUM(R9:R32) -> 70145 | S7: =SUM(S9:S32) -> 71824
B8: EID | C8: Ret
B9: 901 | C9: Retten i Hjørring | D9: 23804.8302 | E9: 23849.6503 | F9: 4812.739258 | G9: 4169.447266 | H9: 1697.93396 | I9: 1852.970581 | J9: 11777.38892 | K9: 12277.28052 | L9: 502.3278961 | M9: 497.6189728 | N9: 657.1255035 | O9: 757.6670227 | P9: 2257.094421 | Q9: 2194.213593 | R9: 1258 | S9: 1310
B10: 902 | C10: Retten i Aalborg | D10: 37099.81384 | E10: 36227.16996 | F10: 7968.145508 | G10: 7484.606445 | H10: 3008.534302 | I10: 2961.726074 | J10: 15339.42871 | K10: 15556.61963 | L10: 379.3684082 | M10: 368.4898529 | N10: 999.8043518 | O10: 991.256073 | P10: 3028.224976 | Q10: 3041.189026 | R10: 3572 | S10: 3356
B11: 903 | C11: Retten i Randers | D11: 24724.81993 | E11: 22802.65069 | F11: 4272.122559 | G11: 4233.500732 | H11: 1913.550659 | I11: 1664.395813 | J11: 12763.90698 | K11: 10917.89795 | L11: 447.9236298 | M11: 329.8144989 | N11: 867.2238464 | O11: 868.677002 | P11: 2220.374298 | Q11: 2217.64505 | R11: 1708 | S11: 1625
B12: 904 | C12: Retten i Århus | D12: 38188.52834 | E12: 37378.39655 | F12: 8661.665527 | G12: 8559.574951 | H12: 3207.900208 | I12: 2848.392273 | J12: 15535.50684 | K12: 14367.16357 | L12: 255.6871872 | M12: 183.4085159 | N12: 940.5897217 | O12: 1360.134277 | P12: 2464.756226 | Q12: 2657.811523 | R12: 5576 | S12: 5438
B13: 905 | C13: Retten i Viborg | D13: 23990.52317 | E13: 24378.14618 | F13: 4471.237183 | G13: 4414.483643 | H13: 1923.769043 | I13: 1987.472412 | J13: 11814.17212 | K13: 11404.53979 | L13: 346.5276184 | M13: 332.8340302 | N13: 683.7905273 | O13: 856.0720825 | P13: 2121.629364 | Q13: 2069.361115 | R13: 1939 | S13: 1862
B14: 906 | C14: Retten i Holstebro | D14: 15943.41663 | E14: 15763.0992 | F14: 3393.118042 | G14: 3475.548096 | H14: 1052.007629 | I14: 984.9730835 | J14: 7386.050049 | K14: 7500.04126 | L14: 339.1680145 | M14: 266.2440338 | N14: 436.7157898 | O14: 480.0721741 | P14: 1682.725891 | Q14: 1610.612335 | R14: 1581 | S14: 1586
B15: 907 | C15: Retten i Herning | D15: 17454.0794 | E15: 18935.37905 | F15: 3762.540039 | G15: 4055.769775 | H15: 1169.848785 | I15: 1364.775635 | J15: 8537.907959 | K15: 8609.809326 | L15: 246.099884 | M15: 177.1637039 | N15: 539.7242126 | O15: 604.0896454 | P15: 1596.773804 | Q15: 1713.509399 | R15: 1705 | S15: 1694
B16: 908 | C16: Retten i Horsens | D16: 20587.94896 | E16: 20287.69824 | F16: 4313.830811 | G16: 4223.640259 | H16: 1627.124176 | I16: 1618.176758 | J16: 8862.283691 | K16: 8507.175293 | L16: 281.5792465 | M16: 231.5265579 | N16: 628.4399261 | O16: 646.7272186 | P16: 1645.343475 | Q16: 1649.397125 | R16: 1560 | S16: 1718
B17: 909 | C17: Retten i Kolding | D17: 34497.20146 | E17: 34888.44795 | F17: 7043.859619 | G17: 8152.971191 | H17: 2704.939453 | I17: 2521.298279 | J17: 17553.50537 | K17: 16280.19922 | L17: 396.0522308 | M17: 362.0380249 | N17: 865.6363525 | O17: 920.895752 | P17: 2672.467773 | Q17: 2532.840515 | R17: 3249 | S17: 3588
B18: 910 | C18: Retten i Esbjerg | D18: 21948.12921 | E18: 22695.35908 | F18: 5706.415771 | G18: 5514.773682 | H18: 1223.178711 | I18: 1355.437714 | J18: 10232.13916 | K18: 11683.93506 | L18: 327.6441498 | M18: 273.0761719 | N18: 546.7305756 | O18: 618.2599182 | P18: 2089.453857 | Q18: 1961.998749 | R18: 1808 | S18: 1792
B19: 911 | C19: Retten i Sønderborg | D19: 27672.11977 | E19: 28945.12059 | F19: 6795.155029 | G19: 7616.452393 | H19: 1769.905518 | I19: 1597.039978 | J19: 12231.59985 | K19: 14693.34863 | L19: 513.721817 | M19: 412.1755829 | N19: 695.8743744 | O19: 751.6735382 | P19: 2464.422272 | Q19: 2320.663025 | R19: 2032 | S19: 2126
B20: 912 | C20: Retten i Odense | D20: 37370.32675 | E20: 37444.64632 | F20: 9819.551514 | G20: 9610.365479 | H20: 2240.925659 | I20: 2316.096741 | J20: 17137.88574 | K20: 17400.13477 | L20: 443.8759613 | M20: 389.3666077 | N20: 918.5071716 | O20: 1014.782288 | P20: 3133.800903 | Q20: 2986.911987 | R20: 3285 | S20: 3121
B21: 913 | C21: Retten i Svendborg | D21: 17252.06026 | E21: 16943.26185 | F21: 3156.530396 | G21: 3465.902588 | H21: 1121.42276 | I21: 1178.182098 | J21: 9383.548096 | K21: 7971.408447 | L21: 322.572113 | M21: 293.8019257 | N21: 588.4513397 | O21: 532.3309021 | P21: 1922.723114 | Q21: 1693.400848 | R21: 1161 | S21: 1114
B22: 914 | C22: Retten i Nykøbing F. | D22: 23954.4828 | E22: 25020.52369 | F22: 5687.441895 | G22: 6326.228027 | H22: 1409.175507 | I22: 1399.105438 | J22: 12178.83179 | K22: 12514.91235 | L22: 822.4550781 | M22: 641.6552124 | N22: 469.5357056 | O22: 587.4555206 | P22: 2239.356689 | Q22: 2206.368256 | R22: 917 | S22: 928
B23: 915 | C23: Retten i Næstved | D23: 29561.2976 | E23: 29845.86863 | F23: 6656.340332 | G23: 6750.771973 | H23: 1845.62915 | I23: 2009.005249 | J23: 15908.08936 | K23: 15171.40234 | L23: 524.3079681 | M23: 406.374649 | N23: 857.3530579 | O23: 878.0904846 | P23: 2456.766357 | Q23: 2345.486023 | R23: 1966 | S23: 1885
B24: 916 | C24: Retten i Holbæk | D24: 21234.72313 | E24: 20347.13001 | F24: 4051.486328 | G24: 3636.360718 | H24: 1592.510376 | I24: 1486.134552 | J24: 11519.28149 | K24: 11006.69409 | L24: 441.2679443 | M24: 470.091629 | N24: 592.8428192 | O24: 707.905304 | P24: 1745.19693 | Q24: 1739.030212 | R24: 1056 | S24: 1258
B25: 917 | C25: Retten i Roskilde | D25: 35395.45333 | E25: 37394.33167 | F25: 8039.248779 | G25: 7071.054932 | H25: 2440.41333 | I25: 3240.323547 | J25: 16433.60498 | K25: 15793.91602 | L25: 421.7391663 | M25: 387.4026337 | N25: 1123.916565 | O25: 1348.040802 | P25: 2865.213135 | Q25: 2740.115784 | R25: 2746 | S25: 3025
B26: 918 | C26: Retten i Hillerød | D26: 21861.58561 | E26: 23771.17775 | F26: 4808.031006 | G26: 5803.474365 | H26: 1706.951111 | I26: 1692.437256 | J26: 9212.493408 | K26: 9151.660889 | L26: 300.4926605 | M26: 271.5517578 | N26: 641.1624451 | O26: 804.859375 | P26: 1640.173645 | Q26: 1726.358215 | R26: 1866 | S26: 1932
B27: 919 | C27: Retten i Helsingør | D27: 22030.48321 | E27: 21518.6286 | F27: 4553.238403 | G27: 4153.791992 | H27: 1727.044373 | I27: 1763.606384 | J27: 10464.64526 | K27: 9582.68335 | L27: 355.5715179 | M27: 260.6145935 | N27: 543.4214325 | O27: 708.9175873 | P27: 1813.765594 | Q27: 1761.595398 | R27: 1565 | S27: 1721
B28: 920 | C28: Retten i Lyngby | D28: 25630.04463 | E28: 31135.34797 | F28: 4839.554932 | G28: 8539.825439 | H28: 2674.81665 | I28: 2624.686401 | J28: 8677.398682 | K28: 9034.325928 | L28: 156.8437347 | M28: 123.7978096 | N28: 110.3257599 | O28: 104.4866333 | P28: 2417.018585 | Q28: 2491.725952 | R28: 7996 | S28: 8311
B29: 921 | C29: Retten i Glostrup | D29: 53154.73457 | E29: 52371.88398 | F29: 13653.3291 | G29: 13377.40576 | H29: 4115.607666 | I29: 4087.158081 | J29: 27809.66309 | K29: 27198.11328 | L29: 258.4563446 | M29: 231.3214188 | N29: 56.11311722 | O29: 61.95823479 | P29: 3853.46875 | Q29: 3873.7323 | R29: 4338 | S29: 3991
B30: 922 | C30: Retten på Frederiksberg | D30: 40474.82491 | E30: 39277.5586 | F30: 11467.47607 | G30: 10871.29468 | H30: 2894.31488 | I30: 3038.708984 | J30: 20730.90332 | K30: 17962.53857 | L30: 176.1081467 | M30: 114.1799393 | N30: 33.90167522 | O30: 40.91581345 | P30: 2605.580383 | Q30: 2718.878967 | R30: 3376 | S30: 3894
B31: 923 | C31: Københavns Byret | D31: 91403.13027 | E31: 94654.61429 | F31: 30638.76758 | G31: 30814.46191 | H31: 7428.992188 | I31: 7874.741211 | J31: 26486.40723 | K31: 30184.80762 | L31: 225.2225037 | M31: 177.0757904 | N31: 73.64846611 | O31: 54.9440937 | P31: 3069.424072 | Q31: 2951.102722 | R31: 13612 | S31: 14263
B32: 924 | C32: Retten på Bornholm | D32: 3696.651324 | E32: 3896.25339 | F32: 682.4278107 | G32: 838.278656 | H32: 223.3586349 | I32: 211.9040298 | J32: 1689.833282 | K32: 1737.23468 | L32: 63.04237366 | M32: 51.0203495 | N32: 108.0121384 | O32: 145.4931068 | P32: 597.9312286 | Q32: 527.6828613 | R32: 273 | S32: 286
B34: 1) Vægtningen på tværs af sagstyper betyder, at antallet af vægtede sager inden for de enkelte sagområder ikke summer op til det samlede antal vægtede sager. Der er samlet lidt flere vægtede civile sager og vægtede sager samlet i 2015, efter at der er foretaget en kvalitetssikring af vægtene for civile sager i efteråret 2016.

Sheet Målopf.Straf
B2: MÅLOPFYLDELSE STRAFFESAGER (PROCENT)
D4: Alle alm. straffesager | F4: Nævninge- og domsmandssager (hfh.) | H4: Tilståelsessager og sager uden domsmænd (hfh) | J4: Voldssager | L4: Voldtægtssager
D5: 2015 | E5: 2016 | F5: 2015 | G5: 2016 | H5: 2015 | I5: 2016 | J5: 2015 | K5: 2016 | L5: 2015 | M5: 2016
D6: <2 MDR. | F6: <4 MDR. | H6: <4 MDR. | J6: <37 DG. | L6: <37 DG.
C8: MÅL (procent) | D8: 80 pct. | F8: 72 pct. | G8: 74 pct. | H8: 75 pct. | I8: 76 pct.
C9: SAMLET BYRETTERNE | D9: 79.93323103 | E9: 79.01120822 | F9: 66.16161189 | G9: 64.04759443 | H9: 68.09069406 | I9: 66.45304825 | J9: 39.66005666 | K9: 43.42948718 | L9: 32.59259259 | M9: 28.68217054
C10: 5. BEDSTE RET | D10: 82.67023738 | E10: 83.96150703 | F10: 80.68414943 | G10: 77.06832273 | H10: 85.18390753 | I10: 85.87924145 | J10: 55.55555556 | K10: 57.14285714 | L10: 50 | M10: 50
B11: EID | C11: Ret
B12: 901 | C12: Retten i Hjørring | D12: 80.88770689 | E12: 84.9558278 | F12: 77.16641649 | G12: 77.06832273 | H12: 76.51312937 | I12: 83.77873342 | J12: 55.55555556 | K12: 68.29268293 | L12: 41.66666667 | M12: 35
B13: 902 | C13: Retten i Aalborg | D13: 79.52023104 | E13: 80.40935593 | F13: 71.25455719 | G13: 69.35850843 | H13: 73.78629393 | I13: 74.93971606 | J13: 43.47826087 | K13: 50 | L13: 42.85714286 | M13: 50
B14: 903 | C14: Retten i Randers | D14: 82.44306899 | E14: 79.04818693 | F14: 75.34876365 | G14: 70.53979573 | H14: 76.01950759 | I14: 79.78781175 | J14: 30.95238095 | K14: 37.5 | L14: 44.44444444 | M14: 33.33333333
B15: 904 | C15: Retten i Århus | D15: 78.67503592 | E15: 75.89711323 | F15: 60.82523664 | G15: 56.17032025 | H15: 66.19774594 | I15: 56.85574739 | J15: 15.68627451 | K15: 40.54054054 | L15: 50 | M15: 0
B16: 905 | C16: Retten i Viborg | D16: 78.14065463 | E16: 80.57982721 | F16: 72.88417626 | G16: 63.7915905 | H16: 75.7444142 | I16: 72.98020219 | J16: 45 | K16: 37.5 | L16: 60 | M16: 0
B17: 906 | C17: Retten i Holstebro | D17: 85.89664564 | E17: 89.37549135 | F17: 85.79146496 | G17: 85.65224205 | H17: 91.24911175 | I17: 90.87071844 | J17: 55.55555556 | K17: 56 | L17: 50 | M17: 50
B18: 907 | C18: Retten i Herning | D18: 82.67023738 | E18: 77.78199242 | F18: 82.99242671 | G18: 76.50553702 | H18: 84.45213824 | I18: 76.03460563 | J18: 53.84615385 | K18: 42.85714286 | L18: 100 | M18: 0
B19: 908 | C19: Retten i Horsens | D19: 80.44611528 | E19: 72.40768546 | F19: 72.52582648 | G19: 57.40589625 | H19: 76.81721732 | I19: 72.54003653 | J19: 46.66666667 | K19: 20 | L19: 0 | M19: 60
B20: 909 | C20: Retten i Kolding | D20: 81.64180945 | E20: 77.84847063 | F20: 78.72631646 | G20: 54.33374332 | H20: 73.65511185 | I20: 49.26592907 | J20: 45.23809524 | K20: 53.84615385 | L20: 0 | M20: -
B21: 910 | C21: Retten i Esbjerg | D21: 74.13979122 | E21: 73.22339073 | F21: 60.14542111 | G21: 60.18510621 | H21: 57.33303271 | I21: 69.13554305 | J21: 51.51515152 | K21: 60.71428571 | L21: 20 | M21: 75
B22: 911 | C22: Retten i Sønderborg | D22: 82.2457614 | E22: 82.65916873 | F22: 80.68414943 | G22: 80.63937292 | H22: 83.6676747 | I22: 86.57125534 | J22: 60.71428571 | K22: 26.66666667 | L22: 0 | M22: 0
B23: 912 | C23: Retten i Odense | D23: 84.22167092 | E23: 83.81527118 | F23: 79.56848719 | G23: 74.51040472 | H23: 86.07600528 | I23: 85.87924145 | J23: 37.25490196 | K23: 31.11111111 | L23: 21.05263158 | M23: 23.52941176
B24: 913 | C24: Retten i Svendborg | D24: 79.38020025 | E24: 72.54248408 | F24: 74.17838865 | G24: 59.42987965 | H24: 85.18390753 | I24: 48.0034467 | J24: 22.22222222 | K24: 35.29411765 | L24: 0 | M24: 9.090909091
B25: 914 | C25: Retten i Nykøbing F. | D25: 85.3490846 | E25: 83.96150703 | F25: 71.98452026 | G25: 74.42945287 | H25: 78.92162498 | I25: 83.17332895 | J25: 45.83333333 | K25: 46.875 | L25: 50 | M25: 50
B26: 915 | C26: Retten i Næstved | D26: 73.88116538 | E26: 77.29796193 | F26: 46.72157286 | G26: 65.87990831 | H26: 33.6832971 | I26: 44.45933495 | J26: 15.15151515 | K26: 57.14285714 | L26: 33.33333333 | M26: 45.45454545
B27: 916 | C27: Retten i Holbæk | D27: 81.87421302 | E27: 86.30300652 | F27: 85.33197376 | G27: 86.48612143 | H27: 88.96557134 | I27: 89.25510918 | J27: 44 | K27: 27.77777778 | L27: 50 | M27: 0
B28: 917 | C28: Retten i Roskilde | D28: 74.80773715 | E28: 75.07333203 | F28: 57.5658887 | G28: 51.84858243 | H28: 50.83342272 | I28: 61.79171721 | J28: 47.36842105 | K28: 35.29411765 | L28: 0 | M28: 0
B29: 918 | C29: Retten i Hillerød | D29: 76.50511092 | E29: 80.10322926 | F29: 73.49059815 | G29: 62.85137804 | H29: 68.65856123 | I29: 61.65455766 | J29: 28.57142857 | K29: 52.63157895 | L29: 0 | M29: 0
B30: 919 | C30: Retten i Helsingør | D30: 75.55585376 | E30: 63.95004354 | F30: 53.71866657 | G30: 45.44375022 | H30: 31.2617227 | I30: 47.64729508 | J30: 31.03448276 | K30: 30 | L30: 20 | M30: 16.66666667
B31: 920 | C31: Retten i Lyngby | D31: 79.44523496 | E31: 82.82307148 | F31: 74.06917889 | G31: 59.91327552 | H31: 74.41415215 | I31: 70.97482649 | J31: 87.5 | K31: 75 | L31: 100 | M31: 50
B32: 921 | C32: Retten i Glostrup | D32: 78.07637499 | E32: 74.01707927 | F32: 56.52130051 | G32: 52.73283354 | H32: 44.54529323 | I32: 40.08433784 | J32: 27.5 | K32: 38.88888889 | L32: 18.18181818 | M32: 12.5
B33: 922 | C33: Retten på Frederiksberg | D33: 79.07035388 | E33: 78.5661281 | F33: 47.32934664 | G33: 60.40000947 | H33: 46.6176259 | I33: 48.72494028 | J33: 27.77777778 | K33: 46.875 | L33: 9.090909091 | M33: 33.33333333
B34: 923 | C34: Københavns Byret | D34: 80.9281323 | E34: 79.52997072 | F34: 55.04828409 | G34: 56.24450048 | H34: 64.48140616 | I34: 61.86056201 | J34: 31.66666667 | K34: 32.43243243 | L34: 0 | M34: 20
B35: 924 | C35: Retten på Bornholm | D35: 94.4600587 | E35: 91.17327649 | F35: 100 | G35: 96.0386551 | H35: 98.38522271 | I35: 92.02768551 | J35: 100 | K35: 66.66666667 | L35: 100 | M35: -
B37: 1) Målene for de enkelte sagstyper er opstillet i samarbejde med byretterne. De aktuelle mål trådte i kraft 1. januar 2015. Sammensatte mål i 2015 og 2016 er vægtet på baggrund af den fordeling af sagerne, retterne havde for alle byretter i 2014. Målene for voldssager og voldtægtssager er fastsat eksternt.

Sheet Målopf.Civil
B2: MÅLOPFYLDELSE CIVILE SAGER (PROCENT)
D4: Alle alm. sager, boligsager, småsager og forbud/påbudssager | F4: Hfh. almindelige sager og boligsager | H4: Hfh. småsager | J4: Alle forældreansvars- og ægtefællesager
D5: 2015 | E5: 2016 | F5: 2015 | G5: 2016 | H5: 2015 | I5: 2016 | J5: 2015 | K5: 2016
D6: <6 MDR. | F6: <15 MDR. | H6: <9 MDR. | J6: <6 MDR.
C8: MÅL (procent) | D8: 70 pct. | E8: 73 pct. | F8: 62 pct. | G8: 64 pct. | H8: 65 pct. | I8: 67 pct. | J8: 80 pct.
C9: SAMLET BYRETTERNE | D9: 68.51712629 | E9: 68.80649693 | F9: 61.80137103 | G9: 61.79347998 | H9: 62.88434555 | I9: 65.61711942 | J9: 74.48243234 | K9: 76.97237796
C10: 5. BEDSTE RET | D10: 73.65364553 | E10: 74.70432702 | F10: 70.21554194 | G10: 69.95490545 | H10: 79.40735294 | I10: 82.92682927 | J10: 87.94959159 | K10: 87.80279418
B11: EID | C11: Ret
B12: 901 | C12: Retten i Hjørring | D12: 73.90425649 | E12: 73.72327695 | F12: 55.26254872 | G12: 54.98865962 | H12: 76.92307692 | I12: 78.17890909 | J12: 79.56406389 | K12: 80.26930044
B13: 902 | C13: Retten i Aalborg | D13: 72.04204718 | E13: 73.84742049 | F13: 59.52554792 | G13: 55.72267244 | H13: 79.40735294 | I13: 69.09090909 | J13: 88.20772746 | K13: 75.14641326
B14: 903 | C14: Retten i Randers | D14: 67.08147945 | E14: 67.85292972 | F14: 55.24754318 | G14: 62.26935772 | H14: 63.80952381 | I14: 65.28111111 | J14: 82.18933077 | K14: 80.00109584
B15: 904 | C15: Retten i Århus | D15: 68.35187505 | E15: 63.77733321 | F15: 56.41504456 | G15: 57.73576726 | H15: 74.46531915 | I15: 62.36645161 | J15: 77.38177517 | K15: 78.58549939
B16: 905 | C16: Retten i Viborg | D16: 63.63192207 | E16: 68.3959251 | F16: 64.37776485 | G16: 61.69917325 | H16: 64.52010753 | I16: 73.47204082 | J16: 76.1548059 | K16: 75.00319248
B17: 906 | C17: Retten i Holstebro | D17: 75.60541708 | E17: 77.93560894 | F17: 66.87831953 | G17: 79.36326252 | H17: 90.625 | I17: 93.02162791 | J17: 82.36453296 | K17: 84.23981601
B18: 907 | C18: Retten i Herning | D18: 73.65364553 | E18: 75.71570946 | F18: 54.72055973 | G18: 60.1300969 | H18: 88.56914286 | I18: 90.91272727 | J18: 79.56539628 | K18: 75.86728467
B19: 908 | C19: Retten i Horsens | D19: 63.30390386 | E19: 66.22440247 | F19: 59.6364977 | G19: 67.84441505 | H19: 34.99675 | I19: 63.15684211 | J19: 84.94502628 | K19: 79.13654372
B20: 909 | C20: Retten i Kolding | D20: 71.06919529 | E20: 70.57797038 | F20: 60.12052864 | G20: 61.91768777 | H20: 70.72707317 | I20: 77.14028571 | J20: 86.37789931 | K20: 87.98320259
B21: 910 | C21: Retten i Esbjerg | D21: 66.73935012 | E21: 67.84256789 | F21: 61.48401783 | G21: 55.31276129 | H21: 67.74548387 | I21: 73.17317073 | J21: 78.69553376 | K21: 76.97406187
B22: 911 | C22: Retten i Sønderborg | D22: 72.48501148 | E22: 73.10525468 | F22: 73.38293859 | G22: 72.93563834 | H22: 78.57357143 | I22: 69.38367347 | J22: 89.11414072 | K22: 82.34496967
B23: 912 | C23: Retten i Odense | D23: 72.09397195 | E23: 74.15324344 | F23: 65.07858329 | G23: 64.567476 | H23: 69.23318681 | I23: 76.18857143 | J23: 69.25095228 | K23: 71.9896664
B24: 913 | C24: Retten i Svendborg | D24: 65.85747723 | E24: 71.14465317 | F24: 68.45551091 | G24: 59.70124709 | H24: 35.4175 | I24: 61.53846154 | J24: 93.01168015 | K24: 88.54573393
B25: 914 | C25: Retten i Nykøbing F. | D25: 77.54171319 | E25: 76.45943308 | F25: 81.64187435 | G25: 74.57827181 | H25: 75.00307692 | I25: 93.7478125 | J25: 87.94959159 | K25: 87.80279418
B26: 915 | C26: Retten i Næstved | D26: 70.14102899 | E26: 74.70432702 | F26: 62.01111928 | G26: 62.43753403 | H26: 61.90190476 | I26: 77.77777778 | J26: 85.75268095 | K26: 81.74231702
B27: 916 | C27: Retten i Holbæk | D27: 72.57332153 | E27: 72.97406031 | F27: 75.42460683 | G27: 63.69086114 | H27: 52.38095238 | I27: 82.92682927 | J27: 78.49368176 | K27: 89.8834533
B28: 917 | C28: Retten i Roskilde | D28: 64.02398141 | E28: 64.96936607 | F28: 61.18731359 | G28: 62.11221181 | H28: 43.15526316 | I28: 51.78955357 | J28: 62.75083906 | K28: 63.24664982
B29: 918 | C29: Retten i Hillerød | D29: 72.07800876 | E29: 73.62578972 | F29: 64.82102036 | G29: 64.67922356 | H29: 81.81745455 | I29: 72.002 | J29: 77.78 | K29: 87.32373231
B30: 919 | C30: Retten i Helsingør | D30: 67.58311292 | E30: 66.96400384 | F30: 69.97310111 | G30: 60.52608585 | H30: 49.02294118 | I30: 46.55 | J30: 66.33133441 | K30: 73.79129802
B31: 920 | C31: Retten i Lyngby | D31: 63.59664172 | E31: 67.05907126 | F31: 70.21554194 | G31: 69.95490545 | H31: 61.70148936 | I31: 61.40350877 | J31: 65.4552689 | K31: 78.1020097
B32: 921 | C32: Retten i Glostrup | D32: 62.72068771 | E32: 69.8187143 | F32: 55.44201944 | G32: 57.52252059 | H32: 38.77632653 | I32: 54.62888889 | J32: 62.00156894 | K32: 76.64196725
B33: 922 | C33: Retten på Frederiksberg | D33: 63.6198049 | E33: 63.23834815 | F33: 48.96760058 | G33: 54.58245914 | H33: 56.66222222 | I33: 61.04220779 | J33: 44.80028306 | K33: 56.57666599
B34: 923 | C34: Københavns Byret | D34: 68.73314184 | E34: 64.37019996 | F34: 61.44550465 | G34: 58.76683453 | H34: 60.26339286 | I34: 51.6807563 | J34: 63.50692074 | K34: 66.90651436
B35: 924 | C35: Retten på Bornholm | D35: 85.98429567 | E35: 87.59152863 | F35: 92.77762342 | G35: 75.94411632 | H35: 100 | I35: 100 | J35: 89.0296947 | K35: 96.16154468
B37: 1) Målene for de enkelte sagstyper er opstillet i samarbejde med byretterne. De aktuelle mål trådte i kraft 1. januar 2015. Sammensatte mål i 2015 og 2016 er vægtet på baggrund af den fordeling af sagerne, retterne havde for alle byretter i 2014. Generelt er målene opstillet i forhold til hovedforhandlede sager.

Sheet Målopf.Foged
B2: MÅLOPFYLDELSE FOGEDSAGER (PROCENT)
D4: Alm. fogedsager og betalingspåkrav | F4: Særlige fogedsager | H4: Tvangsauktion solgt efter 1. auktion
D5: 2015 | E5: 2016 | F5: 2015 | G5: 2016 | H5: 2015 | I5: 2016
D6: <3 MDR. | F6: <2 MDR. | H6: <5 MDR.
C8: MÅL (procent) | D8: 80 pct. | F8: 80 pct. | H8: 80 pct.
C9: SAMLET BYRETTERNE | D9: 81.87919875 | E9: 77.65133605 | F9: 82.1185372 | G9: 83.98214838 | H9: 83.26048316 | I9: 82.13511236
C10: 5. BEDSTE RET | D10: 89.92617503 | E10: 88.68319046 | F10: 89.40754039 | G10: 90.10989011 | H10: 93.93984848 | I10: 91.66333333
B11: EID | C11: Ret
B12: 901 | C12: Retten i Hjørring | D12: 85.93681517 | E12: 84.73127714 | F12: 80.44164038 | G12: 84.3697479 | H12: 88.1947205 | I12: 82.77838889
B13: 902 | C13: Retten i Aalborg | D13: 83.27844918 | E13: 67.58783178 | F13: 78.0861244 | G13: 83.94255875 | H13: 90.42595745 | I13: 81.52228261
B14: 903 | C14: Retten i Randers | D14: 93.29708459 | E14: 91.87127343 | F14: 85.01628664 | G14: 83.46972177 | H14: 75.9988 | I14: 87.90241935
B15: 904 | C15: Retten i Århus | D15: 84.37138858 | E15: 77.02675839 | F15: 90.92009685 | G15: 90.32258065 | H15: 81.39395349 | I15: 87.9976
B16: 905 | C16: Retten i Viborg | D16: 86.63770428 | E16: 85.81644747 | F16: 81.21621622 | G16: 88.68458274 | H16: 67.92811321 | I16: 90.11153846
B17: 906 | C17: Retten i Holstebro | D17: 96.5033122 | E17: 94.79138171 | F17: 95.14824798 | G17: 95.94594595 | H17: 98.26 | I17: 95.05777778
B18: 907 | C18: Retten i Herning | D18: 89.92617503 | E18: 87.48085354 | F18: 89.40754039 | G18: 86.36363636 | H18: 90.16540984 | I18: 85.0045
B19: 908 | C19: Retten i Horsens | D19: 85.61425809 | E19: 84.83514881 | F19: 81.85654008 | G19: 77.6744186 | H19: 97.30162162 | I19: 88.89166667
B20: 909 | C20: Retten i Kolding | D20: 86.94301249 | E20: 90.08158837 | F20: 88.23938761 | G20: 90.46104928 | H20: 95.34476744 | I20: 91.66333333
B21: 910 | C21: Retten i Esbjerg | D21: 85.78183161 | E21: 83.49473874 | F21: 87.67123288 | G21: 85.91117917 | H21: 70.835 | I21: 74.9975
B22: 911 | C22: Retten i Sønderborg | D22: 77.95343748 | E22: 63.78510898 | F22: 80.87349398 | G22: 81.92592593 | H22: 51.45152174 | I22: 75.51357143
B23: 912 | C23: Retten i Odense | D23: 84.17901552 | E23: 69.83674399 | F23: 78.79234168 | G23: 70.96518987 | H23: 79.20176 | I23: 62.39615385
B24: 913 | C24: Retten i Svendborg | D24: 87.6428622 | E24: 64.10404925 | F24: 88.02521008 | G24: 84.43396226 | H24: 80.4348913 | I24: 67.53311688
B25: 914 | C25: Retten i Nykøbing F. | D25: 83.51841052 | E25: 79.08256445 | F25: 85.81560284 | G25: 86.71755725 | H25: 98.47117347 | I25: 87.77466667
B26: 915 | C26: Retten i Næstved | D26: 79.99159866 | E26: 53.97843958 | F26: 82.15271389 | G26: 79.1160221 | H26: 81.45532258 | I26: 74.36196581
B27: 916 | C27: Retten i Holbæk | D27: 87.9841157 | E27: 88.30128808 | F27: 83.64153627 | G27: 86.44067797 | H27: 92.00306667 | I27: 91.71668639
B28: 917 | C28: Retten i Roskilde | D28: 85.16584748 | E28: 86.02454807 | F28: 78.44036697 | G28: 81.63841808 | H28: 81.89267241 | I28: 70.88506329
B29: 918 | C29: Retten i Hillerød | D29: 87.11313435 | E29: 83.3143911 | F29: 82.41042345 | G29: 78.94736842 | H29: 93.93984848 | I29: 92.16
B30: 919 | C30: Retten i Helsingør | D30: 75.40149443 | E30: 78.43989463 | F30: 77.90697674 | G30: 84.51178451 | H30: 75.00133333 | I30: 77.49875
B31: 920 | C31: Retten i Lyngby | D31: 89.93764563 | E31: 88.68319046 | F31: 92.60115607 | G31: 90.29535865 | H31: 76.47176471 | I31: 88.89222222
B32: 921 | C32: Retten i Glostrup | D32: 76.60144593 | E32: 77.76833865 | F32: 75.82518337 | G32: 82.97074269 | H32: 73.52941176 | I32: 66.66866667
B33: 922 | C33: Retten på Frederiksberg | D33: 73.82004309 | E33: 75.28583936 | F33: 83.80925186 | G33: 83.91286133 | H33: 14.28571429 | I33: 62.49875
B34: 923 | C34: Københavns Byret | D34: 56.79996103 | E34: 67.21435728 | F34: 77.04918033 | G34: 82.74622574 | H34: 49.99833333 | I34: 59.999
B35: 924 | C35: Retten på Bornholm | D35: 97.45507974 | E35: 96.43841079 | F35: 94.18604651 | G35: 90.10989011 | H35: 90.90681818 | I35: 100
B37: 1) Målene for de enkelte sagstyper er opstillet i samarbejde med byretterne. Sammensatte mål i 2015 og 2016 er vægtet på baggrund af den fordeling af sagerne, retterne havde for alle byretter i 2014.

Sheet Målopf.Skifte
B2: MÅLOPFYLDELSE SKIFTESAGER (PROCENT)
D4: Udlevering af bo | F4: Tvangsopløsningssager (eksklusive likvidation) | H4: Gældssanering (dog kun indledte sager)
D5: 2015 | E5: 2016 | F5: 2015 | G5: 2016 | H5: 2015 | I5: 2016
D6: <2 MDR. | F6: <3 MDR. | H6: <9 MDR.
C8: MÅL (procent) | D8: 80 pct. | F8: 70 pct. | G8: 72 pct. | H8: 72 pct. | I8: 75 pct.
C9: SAMLET BYRETTERNE | D9: 81.27063197 | E9: 81.25438759 | F9: 91.08019502 | G9: 82.33873463 | H9: 79.35892977 | I9: 84.96224774
C10: 5. BEDSTE RET | D10: 87.82653753 | E10: 86.70159141 | F10: 96.65625698 | G10: 86.35636364 | H10: 87.38468468 | I10: 90.40248
B11: EID | C11: Ret
B12: 901 | C12: Retten i Hjørring | D12: 79.5820137 | E12: 85.11842154 | F12: 92.43932773 | G12: 84.03819444 | H12: 71.32360294 | I12: 79.44488889
B13: 902 | C13: Retten i Aalborg | D13: 79.29996734 | E13: 79.22559838 | F13: 88.63736364 | G13: 85.19154079 | H13: 74.64964789 | I13: 82.90726496
B14: 903 | C14: Retten i Randers | D14: 88.35569106 | E14: 88.50206492 | F14: 97.68381503 | G14: 83.26298643 | H14: 88.128875 | I14: 90.77929078
B15: 904 | C15: Retten i Århus | D15: 69.69337521 | E15: 65.64697891 | F15: 96.65625698 | G15: 88.00376499 | H15: 77.44754902 | I15: 88.76651685
B16: 905 | C16: Retten i Viborg | D16: 82.83300616 | E16: 82.34769756 | F16: 98.69006536 | G16: 82.41025126 | H16: 87.38468468 | I16: 71.30165217
B17: 906 | C17: Retten i Holstebro | D17: 86.20790957 | E17: 79.88700375 | F17: 97.40935065 | G17: 92.03132743 | H17: 98.78243902 | I17: 96.51162791
B18: 907 | C18: Retten i Herning | D18: 66.70592615 | E18: 72.11364186 | F18: 93.22220339 | G18: 78.35888889 | H18: 67.3250495 | I18: 89.65195402
B19: 908 | C19: Retten i Horsens | D19: 78.67130599 | E19: 79.11813194 | F19: 95.08672131 | G19: 72.63073684 | H19: 86.6677037 | I19: 82.17712871
B20: 909 | C20: Retten i Kolding | D20: 82.47297839 | E20: 84.32428224 | F20: 96.97219697 | G20: 85.33803519 | H20: 88.6512973 | I20: 93.93704545
B21: 910 | C21: Retten i Esbjerg | D21: 82.99601 | E21: 80.89305455 | F21: 88.39669643 | G21: 85.65133971 | H21: 77.85832061 | I21: 82.57018349
B22: 911 | C22: Retten i Sønderborg | D22: 75.32083228 | E22: 80.5805036 | F22: 95.42925714 | G22: 84.03896714 | H22: 83.33388889 | I22: 90.40248
B23: 912 | C23: Retten i Odense | D23: 76.19627862 | E23: 83.14069038 | F23: 89.8442246 | G23: 89.42595166 | H23: 77.59262295 | I23: 89.04239726
B24: 913 | C24: Retten i Svendborg | D24: 87.80045553 | E24: 68.95333333 | F24: 93.50493506 | G24: 86.35636364 | H24: 83.60852459 | I24: 78.65157303
B25: 914 | C25: Retten i Nykøbing F. | D25: 92.88575772 | E25: 93.11384218 | F25: 78.26184783 | G25: 73.96616438 | H25: 80.5815534 | I25: 91.51235849
B26: 915 | C26: Retten i Næstved | D26: 81.07535461 | E26: 78.7802847 | F26: 89.46894737 | G26: 83.50608247 | H26: 73.38991935 | I26: 87.96657407
B27: 916 | C27: Retten i Holbæk | D27: 86.09959732 | E27: 87.33810811 | F27: 93.97771084 | G27: 79.57788732 | H27: 77.66191489 | I27: 67.01329897
B28: 917 | C28: Retten i Roskilde | D28: 70.77520397 | E28: 82.66526256 | F28: 63.52552486 | G28: 79.95369792 | H28: 64.92052356 | I28: 89.93165468
B29: 918 | C29: Retten i Hillerød | D29: 87.82653753 | E29: 79.64725059 | F29: 93.60152 | G29: 74.88211055 | H29: 78.09342857 | I29: 79.9988
B30: 919 | C30: Retten i Helsingør | D30: 80.01965035 | E30: 79.95005076 | F30: 89.00483516 | G30: 72.63213158 | H30: 77.77847222 | I30: 87.501625
B31: 920 | C31: Retten i Lyngby | D31: 76.74440181 | E31: 77.87158234
B32: 921 | C32: Retten i Glostrup | D32: 88.3218201 | E32: 85.23406209
B33: 922 | C33: Retten på Frederiksberg | D33: 81.27869529 | E33: 76.76664955
B34: 923 | C34: Københavns Byret | D34: 85.09113556 | E34: 86.70159141
B35: 924 | C35: Retten på Bornholm | D35: 98.31723364 | E35: 97.60780443 | F35: 93.7525 | G35: 93.76125 | H35: 100 | I35: 87.10064516
B37: 1) Målene for de enkelte sagstyper er opstillet i samarbejde med byretterne. De aktuelle mål trådte i kraft 1. januar 2015.

Sheet Sagstid.Straf
B2: GENNEMSNITLIG SAGSBEHANDLINGSTID STRAFFESAGER (DAGE)
D4: Nævningesager | F4: Domsmandssager | H4: Sager uden domsmænd | J4: Tilståelsessager
D5: 2015 | E5: 2016 | F5: 2015 | G5: 2016 | H5: 2015 | I5: 2016 | J5: 2015 | K5: 2016
C6: 5. BEDSTE RET | D6: 81 | E6: 84 | F6: 89 | G6: 100 | H6: 20 | I6: 21 | J6: 55 | K6: 54
C7: SAMLET BYRETTERNE | D7: 131.630137 | E7: 149.9487179 | F7: 126.0869684 | G7: 128.9523233 | H7: 27.46023408 | I7: 29.22739421 | J7: 82.18836328 | K7: 82.26683417
B8: EID | C8: Ret
B9: 901 | C9: Retten i Hjørring | D9: 136 | E9: - | F9: 117 | G9: 107 | H9: 24 | I9: 21 | J9: 73 | K9: 59
B10: 902 | C10: Retten i Aalborg | D10: 145 | E10: 98 | F10: 125 | G10: 124 | H10: 28 | I10: 22 | J10: 93 | K10: 76
B11: 903 | C11: Retten i Randers | D11: 13 | E11: 159 | F11: 123 | G11: 133 | H11: 25 | I11: 25 | J11: 69 | K11: 72
B12: 904 | C12: Retten i Århus | D12: 50 | E12: 101 | F12: 157 | G12: 172 | H12: 24 | I12: 40 | J12: 95 | K12: 91
B13: 905 | C13: Retten i Viborg | D13: 99 | E13: 203 | F13: 100 | G13: 113 | H13: 29 | I13: 28 | J13: 76 | K13: 69
B14: 906 | C14: Retten i Holstebro | D14: 90 | E14: - | F14: 79 | G14: 69 | H14: 28 | I14: 21 | J14: 48 | K14: 52
B15: 907 | C15: Retten i Herning | D15: 108 | E15: 97 | F15: 89 | G15: 106 | H15: 30 | I15: 29 | J15: 55 | K15: 81
B16: 908 | C16: Retten i Horsens | D16: 81 | E16: 162 | F16: 109 | G16: 143 | H16: 37 | I16: 45 | J16: 67 | K16: 94
B17: 909 | C17: Retten i Kolding | D17: 114 | E17: 129 | F17: 98 | G17: 121 | H17: 20 | I17: 26 | J17: 66 | K17: 81
B18: 910 | C18: Retten i Esbjerg | D18: 169 | E18: 75 | F18: 144 | G18: 141 | H18: 35 | I18: 41 | J18: 68 | K18: 56
B19: 911 | C19: Retten i Sønderborg | D19: 193 | E19: 78 | F19: 84 | G19: 88 | H19: 26 | I19: 32 | J19: 46 | K19: 51
B20: 912 | C20: Retten i Odense | D20: 92 | E20: 144 | F20: 91 | G20: 100 | H20: 19 | I20: 14 | J20: 60 | K20: 73
B21: 913 | C21: Retten i Svendborg | D21: 78 | E21: 90 | F21: 107 | G21: 135 | H21: 27 | I21: 36 | J21: 74 | K21: 112
B22: 914 | C22: Retten i Nykøbing F. | D22: 103 | E22: 100 | F22: 101 | G22: 108 | H22: 17 | I22: 21 | J22: 55 | K22: 53
B23: 915 | C23: Retten i Næstved | D23: 154 | E23: 89 | F23: 169 | G23: 122 | H23: 38 | I23: 28 | J23: 136 | K23: 123
B24: 916 | C24: Retten i Holbæk | D24: 104 | E24: 64 | F24: 82 | G24: 84 | H24: 18 | I24: 16 | J24: 53 | K24: 54
B25: 917 | C25: Retten i Roskilde | D25: 184 | E25: 131 | F25: 144 | G25: 145 | H25: 44 | I25: 40 | J25: 85 | K25: 120
B26: 918 | C26: Retten i Hillerød | D26: 146 | E26: 84 | F26: 97 | G26: 111 | H26: 27 | I26: 31 | J26: 96 | K26: 104
B27: 919 | C27: Retten i Helsingør | D27: 110 | E27: 98 | F27: 163 | G27: 232 | H27: 53 | I27: 62 | J27: 190 | K27: 118
B28: 920 | C28: Retten i Lyngby | D28: 117 | E28: 142 | F28: 107 | G28: 146 | H28: 24 | I28: 20 | J28: 71 | K28: 71
B29: 921 | C29: Retten i Glostrup | D29: 111 | E29: 138 | F29: 148 | G29: 147 | H29: 33 | I29: 42 | J29: 102 | K29: 103
B30: 922 | C30: Retten på Frederiksberg | D30: 132 | E30: 157 | F30: 181 | G30: 145 | H30: 29 | I30: 30 | J30: 97 | K30: 88
B31: 923 | C31: Københavns Byret | D31: 168 | E31: 235 | F31: 141 | G31: 143 | H31: 21 | I31: 26 | J31: 80 | K31: 78
B32: 924 | C32: Retten på Bornholm | D32: 57 | E32: 50 | F32: 35 | G32: 49 | H32: 13 | I32: 16 | J32: 36 | K32: 33

Sheet Sagstid.Civil
B2: GENNEMSNITLIG SAGSBEHANDLINGSTID CIVILE SAGER (DAGE)
D4: Hovedforhandlede almindelige sager | F4: Hovedforhandlede boligretssager² | H4: Hovedforhandlede småsager | J4: Alle civile sager m. forhandlingsmaksime | L4: Alle ægteskabssager | N4: Alle forældre- ansvarssager
D5: 2015 | E5: 2016 | F5: 2015 | G5: 2016 | H5: 2015 | I5: 2016 | J5: 2015 | K5: 2016 | L5: 2015 | M5: 2016 | N5: 2015 | O5: 2016
C6: 5. BEDSTE RET | D6: 430.8681319 | E6: 452.3401361 | F6: 305.5 | G6: 334.8 | H6: 207.0769231 | I6: 205.6545455 | J6: 158 | K6: 152 | L6: 94 | M6: 99 | N6: 114 | O6: 118
C7: SAMLET BYRETTERNE | D7: 496.3948067 | E7: 494.6724138 | F7: 438.6350365 | G7: 427.6330935 | H7: 264.9156486 | I7: 261.7919948 | J7: 179.7662895 | K7: 180.0077606 | L7: 130.0320171 | M7: 117.4249758 | N7: 147.8360705 | O7: 143.8299299
B8: EID | C8: Ret
B9: 901 | C9: Retten i Hjørring | D9: 545.483871 | E9: 491.1612903 | F9: 280 | G9: 872 | H9: 207.0769231 | I9: 205.6545455 | J9: 172 | K9: 163 | L9: 98 | M9: 166 | N9: 147 | O9: 145
B10: 902 | C10: Retten i Aalborg | D10: 564.0818713 | E10: 552.4871795 | F10: 402 | G10: 634.2941176 | H10: 230.3823529 | I10: 232.7272727 | J10: 168 | K10: 174 | L10: 112 | M10: 119 | N10: 109 | O10: 143
B11: 903 | C11: Retten i Randers | D11: 526.6923077 | E11: 477.2135922 | F11: 651 | G11: 450.7272727 | H11: 269.952381 | I11: 270.7222222 | J11: 226 | K11: 176 | L11: 94 | M11: 105 | N11: 127 | O11: 136
B12: 904 | C12: Retten i Århus | D12: 533.1290323 | E12: 490.6065574 | F12: 475.6078431 | G12: 396.4318182 | H12: 225.1489362 | I12: 269.1290323 | J12: 192 | K12: 226 | L12: 105 | M12: 107 | N12: 136 | O12: 142
B13: 905 | C13: Retten i Viborg | D13: 481.7142857 | E13: 520.3565217 | F13: 549.4166667 | G13: 355.4545455 | H13: 266.6666667 | I13: 257.9591837 | J13: 211 | K13: 204 | L13: 106 | M13: 162 | N13: 146 | O13: 133
B14: 906 | C14: Retten i Holstebro | D14: 474.4166667 | E14: 419.8412698 | F14: 353.75 | G14: 235 | H14: 165.625 | I14: 146.5813953 | J14: 187 | K14: 144 | L14: 117 | M14: 135 | N14: 126 | O14: 121
B15: 907 | C15: Retten i Herning | D15: 492.2277228 | E15: 499.7058824 | F15: 501 | G15: 446.5 | H15: 180.6 | I15: 182.7272727 | J15: 178 | K15: 179 | L15: 137 | M15: 100 | N15: 132 | O15: 131
B16: 908 | C16: Retten i Horsens | D16: 512.7837838 | E16: 452.3401361 | F16: 587 | G16: 236.3333333 | H16: 313.7 | I16: 283.8684211 | J16: 201 | K16: 190.8408488 | L16: 206 | M16: 81.2173913 | N16: 122 | O16: 140.2155172
B17: 909 | C17: Retten i Kolding | D17: 496.2196532 | E17: 453.248227 | F17: 354.9473684 | G17: 448.8666667 | H17: 251.3902439 | I17: 225.5142857 | J17: 158 | K17: 161 | L17: 129 | M17: 101 | N17: 114 | O17: 118
B18: 910 | C18: Retten i Esbjerg | D18: 525.8019802 | E18: 548.9242424 | F18: 382.5 | G18: 461.6 | H18: 238.483871 | I18: 237.2926829 | J18: 190 | K18: 205 | L18: 130 | M18: 119 | N18: 149 | O18: 143
B19: 911 | C19: Retten i Sønderborg | D19: 447.8636364 | E19: 469.2857143 | F19: 305.5 | G19: 349 | H19: 228.2142857 | I19: 271.5714286 | J19: 155 | K19: 165 | L19: 93 | M19: 111 | N19: 125 | O19: 137
B20: 912 | C20: Retten i Odense | D20: 444 | E20: 489.2846715 | F20: 278.625 | G20: 289 | H20: 255.3186813 | I20: 225.6190476 | J20: 158 | K20: 156 | L20: 166 | M20: 110 | N20: 157 | O20: 150
B21: 913 | C21: Retten i Svendborg | D21: 415.9333333 | E21: 479.5522388 | F21: 471.2857143 | G21: 441.5 | H21: 333.25 | I21: 334.8846154 | J21: 173 | K21: 174 | L21: 80 | M21: 96 | N21: 105 | O21: 102
B22: 914 | C22: Retten i Nykøbing F. | D22: 345.7846154 | E22: 391.3584906 | F22: 293.3846154 | G22: 334.8 | H22: 214.1538462 | I22: 181.34375 | J22: 132 | K22: 134 | L22: 93 | M22: 99 | N22: 102 | O22: 101
B23: 915 | C23: Retten i Næstved | D23: 488.46875 | E23: 492.1463415 | F23: 370.2916667 | G23: 420.2195122 | H23: 266.8571429 | I23: 212.8888889 | J23: 159 | K23: 151 | L23: 129 | M23: 105 | N23: 122 | O23: 127
B24: 916 | C24: Retten i Holbæk | D24: 430.8681319 | E24: 464.6944444 | F24: 334.6 | G24: 410.5714286 | H24: 270.3809524 | I24: 226.195122 | J24: 144 | K24: 158 | L24: 124 | M24: 99 | N24: 126 | O24: 117
B25: 917 | C25: Retten i Roskilde | D25: 510.5789474 | E25: 532.6766467 | F25: 393.3333333 | G25: 404.9090909 | H25: 328.1052632 | I25: 302.4553571 | J25: 193 | K25: 199 | L25: 141 | M25: 137 | N25: 171 | O25: 194
B26: 918 | C26: Retten i Hillerød | D26: 578.5504587 | E26: 452.7142857 | F26: 423.6666667 | G26: 439.6666667 | H26: 204.4 | I26: 230.8 | J26: 162 | K26: 152 | L26: 130 | M26: 111 | N26: 137 | O26: 119
B27: 919 | C27: Retten i Helsingør | D27: 470.9816514 | E27: 540.5882353 | F27: 347.0526316 | G27: 451.8 | H27: 322.8823529 | I27: 310 | J27: 179 | K27: 190 | L27: 112 | M27: 82 | N27: 198 | O27: 155
B28: 920 | C28: Retten i Lyngby | D28: 428.1336406 | E28: 431.483871 | F28: 368.4761905 | G28: 335.84375 | H28: 270.7978723 | I28: 263.1052632 | J28: 192 | K28: 177 | L28: 155 | M28: 130 | N28: 163 | O28: 146
B29: 921 | C29: Retten i Glostrup | D29: 528.0311111 | E29: 549.8122449 | F29: 505.8484848 | G29: 459.5 | H29: 344.2040816 | I29: 293.2592593 | J29: 211 | K29: 186 | L29: 121 | M29: 118 | N29: 181 | O29: 142
B30: 922 | C30: Retten på Frederiksberg | D30: 563.4674556 | E30: 522.59375 | F30: 450.2363636 | G30: 467 | H30: 297.4444444 | I30: 283.7272727 | J30: 244 | K30: 209 | L30: 176 | M30: 135 | N30: 256 | O30: 230
B31: 923 | C31: Københavns Byret | D31: 497.8881579 | E31: 501.9934354 | F31: 441.9042553 | G31: 455.969697 | H31: 262.8616071 | I31: 307.9747899 | J31: 158 | K31: 184 | L31: 146 | M31: 126 | N31: 166 | O31: 159
B32: 924 | C32: Retten på Bornholm | D32: 267 | E32: 298 | F32: 171 | G32: - | H32: 166 | I32: 120 | J32: 96 | K32: 84 | L32: 73 | M32: 85 | N32: 107 | O32: 83
B34: 1) Alle civile sager med forhandlingsmaksime inkluderer sagstyperne almindelige sager, boligretssager, forbud/påbudssager og småsager.
B35: 2) Det bør bemærkes, at når Retten i Hjørring har en afgørelsestid på 872 dage for hovedforhandlede sager, drejer det sig om en enkelt boligsag.

Sheet Sagstid.Foged
B2: GENNEMSNITLIG SAGSBEHANDLINGSTID FOGEDSAGER (DAGE)
D4: Alm. fogedsager | F4: Særlige fogedsager | H4: Betalingspåkrav | J4: Tvangsauktioner
D5: 2015 | E5: 2016 | F5: 2015 | G5: 2016 | H5: 2015 | I5: 2016 | J5: 2015 | K5: 2016
C6: 5. BEDSTE RET | D6: 47.93633 | E6: 49.91486968 | F6: 35.69958 | G6: 33.49507736 | H6: 51.09071 | I6: 53.4125163 | J6: 70 | K6: 65
C7: SAMLET BYRETTERNE | D7: 64.0613836 | E7: 69.13326953 | F7: 42.11374527 | G7: 39.8904158 | H7: 66.39660455 | I7: 71.73797586 | J7: 83.6150515 | K7: 82.22764901
B8: EID | C8: Ret
B9: 901 | C9: Retten i Hjørring | D9: 59.71777 | E9: 64.53514563 | F9: 41.78076 | G9: 40.57815126 | H9: 61.93062 | I9: 61.43011423 | J9: 78 | K9: 84
B10: 902 | C10: Retten i Aalborg | D10: 64.81348 | E10: 65.18546196 | F10: 46.19904 | G10: 40.60443864 | H10: 63.34112 | I10: 87.04350105 | J10: 74 | K10: 76
B11: 903 | C11: Retten i Randers | D11: 41.02233 | E11: 47.4419418 | F11: 37.50814 | G11: 39.43698854 | H11: 47.96578 | I11: 53.4125163 | J11: 93 | K11: 80
B12: 904 | C12: Retten i Århus | D12: 62.2823 | E12: 76.49530957 | F12: 28.53329 | G12: 30.08716541 | H12: 66.96629 | I12: 78.01228821 | J12: 72 | K12: 83
B13: 905 | C13: Retten i Viborg | D13: 59.8391 | E13: 54.37966833 | F13: 43.37973 | G13: 35.07637907 | H13: 59.03777 | I13: 64.38116129 | J13: 88 | K13: 92
B14: 906 | C14: Retten i Holstebro | D14: 32.42947 | E14: 38.45575221 | F14: 24.81132 | G14: 22.77027027 | H14: 40.84956 | I14: 45.45131013 | J14: 69 | K14: 63
B15: 907 | C15: Retten i Herning | D15: 55.02592 | E15: 57.83672357 | F15: 37.91742 | G15: 37.63842975 | H15: 51.87664 | I15: 60.11940779 | J15: 89 | K15: 109
B16: 908 | C16: Retten i Horsens | D16: 54.81712 | E16: 60.74822372 | F16: 38.5443 | G16: 45.06976744 | H16: 57.48098 | I16: 62.78813038 | J16: 70 | K16: 71
B17: 909 | C17: Retten i Kolding | D17: 50.98938 | E17: 44.44932058 | F17: 36.49617 | G17: 32.94674086 | H17: 54.58241 | I17: 45.58040113 | J17: 80 | K17: 62
B18: 910 | C18: Retten i Esbjerg | D18: 45.02331 | E18: 52.5408805 | F18: 37.98904 | G18: 40.63093415 | H18: 79.62312 | I18: 80.91594066 | J18: 81 | K18: 87
B19: 911 | C19: Retten i Sønderborg | D19: 62.44327 | E19: 69.92268261 | F19: 42.35241 | G19: 41.01185185 | H19: 74.04386 | I19: 109.4982344 | J19: 101 | K19: 89
B20: 912 | C20: Retten i Odense | D20: 64.28043 | E20: 84.49412313 | F20: 45.38218 | G20: 48.60522152 | H20: 71.3308 | I20: 76.47970779 | J20: 87 | K20: 92
B21: 913 | C21: Retten i Svendborg | D21: 54.69889 | E21: 86.08307045 | F21: 35.69958 | G21: 39.60849057 | H21: 55.79694 | I21: 74.77860211 | J21: 94 | K21: 91
B22: 914 | C22: Retten i Nykøbing F. | D22: 47.93633 | E22: 66.31437655 | F22: 38.92766 | G22: 38.92977099 | H22: 72.87019 | I22: 79.93403635 | J22: 85 | K22: 81
B23: 915 | C23: Retten i Næstved | D23: 71.02566 | E23: 90.70906404 | F23: 43.80681 | G23: 45.54364641 | H23: 68.94263 | I23: 105.4825548 | J23: 89 | K23: 93
B24: 916 | C24: Retten i Holbæk | D24: 56.77488 | E24: 59.35607235 | F24: 41.64722 | G24: 39.10677966 | H24: 53.48637 | I24: 55.92292601 | J24: 87 | K24: 92
B25: 917 | C25: Retten i Roskilde | D25: 61.36073 | E25: 60.50785591 | F25: 47.37462 | G25: 41.08945386 | H25: 69.22495 | I25: 62.72096531 | J25: 93 | K25: 83
B26: 918 | C26: Retten i Hillerød | D26: 58.339 | E26: 62.57556071 | F26: 36.49511 | G26: 41.19838057 | H26: 51.09071 | I26: 60.86273875 | J26: 63 | K26: 66
B27: 919 | C27: Retten i Helsingør | D27: 77.39692 | E27: 74.9231835 | F27: 45.33075 | G27: 40.80808081 | H27: 73.36193 | I27: 67.1609831 | J27: 84 | K27: 72
B28: 920 | C28: Retten i Lyngby | D28: 48.69579 | E28: 49.91486968 | F28: 33.8578 | G28: 33.49507736 | H28: 44.86131 | I28: 48.81271283 | J28: 50 | K28: 61
B29: 921 | C29: Retten i Glostrup | D29: 88.04801 | E29: 87.73820572 | F29: 44.50642 | G29: 38.89797449 | H29: 57.20801 | I29: 54.8247782 | J29: 68 | K29: 65
B30: 922 | C30: Retten på Frederiksberg | D30: 85.7729 | E30: 81.82170137 | F30: 43.70902 | G30: 43.32677 | H30: 73.69566 | I30: 78.02559415 | J30: 85 | K30: 99
B31: 923 | C31: Københavns Byret | D31: 93.59561 | E31: 88.75109825 | F31: 49.48251 | G31: 44.35585909 | H31: 112.3209 | I31: 87.0426779 | J31: 111 | K31: 99
B32: 924 | C32: Retten på Bornholm | D32: 29.08736 | E32: 33.87987271 | F32: 26.74419 | G32: 27.6043956 | H32: 36.2697 | I32: 34.82226212 | J32: 71 | K32: 60

Sheet Sagstid.Skifte
B2: GENNEMSNITLIG SAGSBEHANDLINGSTID SKIFTESAGER (DAGE)
D4: Boudlæg | F4: Uskiftet bo | H4: Privat skifte | J4: Forenklet privat skifte
D5: 2015 | E5: 2016 | F5: 2015 | G5: 2016 | H5: 2015 | I5: 2016 | J5: 2015 | K5: 2016
C6: 5. BEDSTE RET | D6: 37 | E6: 38.28 | F6: 69.25 | G6: 75.55 | H6: 335.87 | I6: 328.04 | J6: 58.81 | K6: 62.45
C7: SAMLET BYRETTERNE | D7: 44.5094278 | E7: 44.74482595 | F7: 84.79631885 | G7: 88.76535115 | H7: 351.8902443 | I7: 340.3304911 | J7: 70.54290969 | K7: 71.63079486
B8: EID | C8: Ret
B9: 901 | C9: Retten i Hjørring | D9: 54.05 | E9: 51.71 | F9: 79.56 | G9: 80.93 | H9: 344.17 | I9: 346.95 | J9: 70.74 | K9: 67.08
B10: 902 | C10: Retten i Aalborg | D10: 43.56 | E10: 44.55 | F10: 77.98 | G10: 76.27 | H10: 346.07 | I10: 330.97 | J10: 72.21 | K10: 77.63
B11: 903 | C11: Retten i Randers | D11: 43.53 | E11: 45.94 | F11: 68.2 | G11: 77.33 | H11: 349.41 | I11: 335.62 | J11: 57.17 | K11: 61.95
B12: 904 | C12: Retten i Århus | D12: 61.94 | E12: 68.28 | F12: 101 | G12: 101.5 | H12: 374.81 | I12: 370.01 | J12: 81.23 | K12: 79.32
B13: 905 | C13: Retten i Viborg | D13: 38.33 | E13: 41.15 | F13: 75.5 | G13: 84.12 | H13: 329.8 | I13: 313.56 | J13: 64.69 | K13: 63.77
B14: 906 | C14: Retten i Holstebro | D14: 37.03 | E14: 50.92 | F14: 63.75 | G14: 74.84 | H14: 334.93 | I14: 337.3 | J14: 58.81 | K14: 76.78
B15: 907 | C15: Retten i Herning | D15: 66.98 | E15: 59.6 | F15: 96.64 | G15: 89.42 | H15: 351.5 | I15: 330.79 | J15: 87.02 | K15: 78.15
B16: 908 | C16: Retten i Horsens | D16: 49.9 | E16: 52.64 | F16: 91.13 | G16: 101.28 | H16: 401.01 | I16: 356.15 | J16: 76.48 | K16: 80.26
B17: 909 | C17: Retten i Kolding | D17: 37 | E17: 34.41 | F17: 79.56 | G17: 76.21 | H17: 345.44 | I17: 328.04 | J17: 68 | K17: 62.96
B18: 910 | C18: Retten i Esbjerg | D18: 42.53 | E18: 42.24 | F18: 80.03 | G18: 75.55 | H18: 351.47 | I18: 349.1 | J18: 65.49 | K18: 56.19
B19: 911 | C19: Retten i Sønderborg | D19: 55.72 | E19: 46.23 | F19: 92.13 | G19: 99.75 | H19: 370.18 | I19: 343.14 | J19: 77.17 | K19: 72.66
B20: 912 | C20: Retten i Odense | D20: 56.57 | E20: 38.28 | F20: 74.72 | G20: 73.44 | H20: 366.03 | I20: 335.35 | J20: 74.1 | K20: 62.7
B21: 913 | C21: Retten i Svendborg | D21: 31.89 | E21: 51.7 | F21: 69.25 | G21: 87.78 | H21: 349.52 | I21: 369.32 | J21: 55.04 | K21: 98.92
B22: 914 | C22: Retten i Nykøbing F. | D22: 37.36 | E22: 36.59 | F22: 44.76 | G22: 45.27 | H22: 342.11 | I22: 331.05 | J22: 41.11 | K22: 45.58
B23: 915 | C23: Retten i Næstved | D23: 42.57 | E23: 48.33 | F23: 93.23 | G23: 97.09 | H23: 350.27 | I23: 346.31 | J23: 73.72 | K23: 77.34
B24: 916 | C24: Retten i Holbæk | D24: 39.28 | E24: 39.48 | F24: 99.41 | G24: 106.8 | H24: 373.88 | I24: 351.17 | J24: 77.33 | K24: 66.71
B25: 917 | C25: Retten i Roskilde | D25: 54.44 | E25: 41.51 | F25: 105.41 | G25: 96.63 | H25: 350.12 | I25: 334.11 | J25: 86.52 | K25: 68.41
B26: 918 | C26: Retten i Hillerød | D26: 32.3 | E26: 43.87 | F26: 75.94 | G26: 91.41 | H26: 340.25 | I26: 357.62 | J26: 60.94 | K26: 82.15
B27: 919 | C27: Retten i Helsingør | D27: 43.7 | E27: 44.48 | F27: 104.25 | G27: 119.12 | H27: 371.9 | I27: 330.48 | J27: 79.45 | K27: 100.37
B28: 920 | C28: Retten i Lyngby | D28: 46.93 | E28: 47.64 | F28: 115.8 | G28: 120.21 | H28: 369.9 | I28: 373.93 | J28: 81.54 | K28: 77.77
B29: 921 | C29: Retten i Glostrup | D29: 39.48 | E29: 41.87 | F29: 96.4 | G29: 99.36 | H29: 324.34 | I29: 321.76 | J29: 66.07 | K29: 69.84
B30: 922 | C30: Retten på Frederiksberg | D30: 44.35 | E30: 49.19 | F30: 108.92 | G30: 106.75 | H30: 341.9 | I30: 343.03 | J30: 79.15 | K30: 87.51
B31: 923 | C31: Københavns Byret | D31: 33.35 | E31: 33.82 | F31: 80.58 | G31: 88.83 | H31: 335.87 | I31: 316.96 | J31: 74.73 | K31: 62.45
B32: 924 | C32: Retten på Bornholm | D32: 20.89 | E32: 22.55 | F32: 30.76 | G32: 40.1 | H32: 306.39 | I32: 303.39 | J32: 32.04 | K32: 32.91

Sheet HR-nøgletal_lønsum
B2: UDVALGTE HR-NØGLETAL
D4: Gnst. antal sygedage pr. ansat | F4: Personaleomsætning (%) | H4: Lønsumsforbrug (mio.) 2016-pl
D5: 2015 | E5: 2016 | F5: 2015 | G5: 2016 | H5: 2015 | I5: 2016
C6: 5. BEDSTE RET | D6: 5.9 | E6: 7.42811166
C7: SAMLET | D7: 9.1 | E7: 9.528843231 | F7: 8.573217799 | G7: 9.179952331 | H7: 31.53763644 | I7: =SUM(I9:I32)/24 -> 31.24079849
B8: EID | C8: Ret
B9: 901 | C9: Retten i Hjørring | D9: 5.9 | E9: 7.42811166 | F9: 5.831347077 | G9: 9.614683161 | H9: 24.0953827 | I9: 23.73664065
B10: 902 | C10: Retten i Aalborg | D10: 9.8 | E10: 5.752183986 | F10: 5.957693956 | G10: 12.82245102 | H10: 35.58190866 | I10: 36.32340593
B11: 903 | C11: Retten i Randers | D11: 7.5 | E11: 8.634346523 | F11: 7.222979115 | G11: 10.34776398 | H11: 25.68027386 | I11: 24.83670107
B12: 904 | C12: Retten i Århus | D12: 8 | E12: 7.978979748 | F12: 12.34075341 | G12: 12.21683291 | H12: 41.18662406 | I12: 40.85150004
B13: 905 | C13: Retten i Viborg | D13: 5 | E13: 10.69045596 | F13: 7.397322094 | G13: 14.54596076 | H13: 25.24045426 | I13: 24.07442473
B14: 906 | C14: Retten i Holstebro | D14: 7.8 | E14: 8.443035636 | F14: 11.24047376 | G14: 15.80137134 | H14: 19.50211312 | I14: 18.47919505
B15: 907 | C15: Retten i Herning | D15: 4.1 | E15: 8.784040007 | F15: 13.30282802 | G15: 12.52412276 | H15: 18.83885141 | I15: 18.19917992
B16: 908 | C16: Retten i Horsens | D16: 14.6 | E16: 13.02269107 | F16: 23.15125765 | G16: 6.447852629 | H16: 23.20954802 | I16: 22.92565475
B17: 909 | C17: Retten i Kolding | D17: 8.6 | E17: 8.541325877 | F17: 11.24208631 | G17: 8.021751175 | H17: 33.68393265 | I17: 33.52274704
B18: 910 | C18: Retten i Esbjerg | D18: 8.7 | E18: 7.828831644 | F18: 19.63383419 | G18: 6.157762877 | H18: 24.21435768 | I18: 22.92695405
B19: 911 | C19: Retten i Sønderborg | D19: - | E19: 10.25191296 | F19: 7.837964984 | G19: 5.413876114 | H19: 31.52963165 | I19: 30.17495846
B20: 912 | C20: Retten i Odense | D20: 8.4 | E20: 7.91835029 | F20: 11.27188726 | G20: 9.339614332 | H20: 37.86168812 | I20: 37.72660619
B21: 913 | C21: Retten i Svendborg | D21: 7.6 | E21: 7.740658599 | F21: 7.017501934 | G21: 12.63463817 | H21: 18.47056489 | I21: 17.96306117
B22: 914 | C22: Retten i Nykøbing F. | D22: 6.1 | E22: 5.917867437 | F22: 6.200338612 | G22: 2.038092413 | H22: 25.02267429 | I22: 24.71422188
B23: 915 | C23: Retten i Næstved | D23: 9 | E23: 13.46418958 | F23: 6.829375472 | G23: 6.674636951 | H23: 28.82409679 | I23: 28.72501881
B24: 916 | C24: Retten i Holbæk | D24: 8.7 | E24: 6.445137148 | F24: 8.722233581 | G24: 6.290714062 | H24: 22.55318069 | I24: 22.67363671
B25: 917 | C25: Retten i Roskilde | D25: 12.6 | E25: 11.56328699 | F25: 2.8783604 | G25: 8.867312056 | H25: 36.30948942 | I25: 34.74419661
B26: 918 | C26: Retten i Hillerød | D26: - | E26: 11.70379962 | F26: 7.402073881 | G26: 7.981119575 | H26: 24.63854698 | I26: 24.26868614
B27: 919 | C27: Retten i Helsingør | D27: 11 | E27: 9.210220221 | F27: 10.94594082 | G27: 10.01239211 | H27: 23.80538969 | I27: 23.48838307
B28: 920 | C28: Retten i Lyngby | D28: 5.6 | E28: 9.927967883 | F28: 16.60854648 | G28: 8.96421104 | H28: 28.44037323 | I28: 28.65437696
B29: 921 | C29: Retten i Glostrup | D29: 8.6 | E29: 10.72348178 | F29: 6.612525858 | G29: 10.13389133 | H29: 52.96845268 | I29: 52.04283591
B30: 922 | C30: Retten på Frederiksberg | D30: 17 | E30: 19.81958458 | F30: 4.483734059 | G30: 10.07988466 | H30: 43.04067917 | I30: 44.50388388
B31: 923 | C31: Københavns Byret | D31: 12.7 | E31: 12.13076452 | F31: 2.483572843 | G31: 8.467714351 | H31: 105.121274 | I31: 106.718567
B32: 924 | C32: Retten på Bornholm | D32: 1.8 | E32: 5.995101458 | F32: 22.46359746 | G32: 0 | H32: 7.083786483 | I32: 7.50432764
B34: 1) Gennemsnitlig antal sygedage pr. ansat er ekskl. ansatte under socialt kapitel. Deltidssygdom er inkluderet, men barns sygdom, omsorgsdage og særlige feriedage indgår ikke.
B35: 2) Det gennemsnitlige antal sygedage pr. ansat samlet er beregnet med sygefraværstallet for alle byretterne, de to landsretter, Højesteret og Sø- og Handelsretten.
B36: 3) Der foreligger ikke ISOLA tal for sygefraværet i 2015 ved Retten i Sønderborg og Retten i Hillerød.
B37: 4) Perioden for personaleomsætningen opgøres af ISOLA som rullende år og løber fra henholdsvis november 2014 til november 2015 og november 2015 til november 2016.
B38: 5) Lønsumsforbruget inkluderer egentlig løn, over- og merarbejde, stævningsmænd, refusioner og pensionsbidrag og er i faste priser (2016). Lønsummen for 2015 er opregnet til 2016-pl, således at det kan foretages en sammenligning mellem de to år. Samlet vises det gns. lønsumsforbrug pr. byret.

Sheet Årsværk_Pers.kat
B2: ÅRSVÆRKSFORBRUG 2015 OG 2016
D4: Jur | E4: Kon | F4: Elev | G4: Fleks | H4: Øvr. | I4: I ALT | J4: Jur | K4: Kon | L4: Elev | M4: Fleks | N4: Øvr. | O4: I ALT | P4: Jur | Q4: Kon | R4: Elev | S4: Fleks | T4: Øvr. | U4: I ALT | V4: Jur | W4: Kon | X4: Elev | Y4: Fleks | Z4: Øvr. | AA4: I ALT
D5: 2015 | J5: 2016 | P5: 2015 | V5: 2016
D6: - absolutte tal - | J6: - absolutte tal - | P6: - indeks - | V6: - indeks -
C8: SAMLET BYRETTERNE | D8: 431.66585 | E8: 801.55996 | F8: 79.28157 | G8: 49.41147 | H8: 87.48138 | I8: 1449.40023 | J8: 423.14706 | K8: 779.12132 | L8: 78.33462 | M8: 42.69457 | N8: 84.69675 | O8: 1407.99432 | P8: 100 | Q8: 100 | R8: 100 | S8: 100 | T8: 100 | U8: 100 | V8: =J8*100/D8 -> 98.0265314 | W8: =K8*100/E8 -> 97.20062863 | X8: =L8*100/F8 -> 98.80558622 | Y8: 86.40619273 | Z8: 96.81688835 | AA8: =O8*100/I8 -> 97.14323834
B9: EID | C9: Ret
B10: 901 | C10: Retten i Hjørring | D10: 13.18267 | E10: 28.19354 | F10: 2.77952 | G10: 3.21998 | H10: 3.03018 | I10: 50.40589 | J10: 13.09029 | K10: 28.01293 | L10: 2.6186 | M10: 3.43063 | N10: 2.87495 | O10: 50.0274 | P10: 100 | Q10: 100 | R10: 100 | S10: 100 | T10: 100 | U10: 100 | V10: =J10*100/D10 -> 99.29923149 | W10: =K10*100/E10 -> 99.35939226 | X10: 94.21051117 | Y10: 106.5419661 | Z10: 94.87720201 | AA10: 99.24911553
B11: 902 | C11: Retten i Aalborg | D11: 20.9191 | E11: 41.67825 | F11: 3.28498 | G11: 1.3895 | H11: 3.19265 | I11: 70.46448 | J11: 21.04804 | K11: 40.85833 | L11: 4.08614 | M11: 1.78715 | N11: 2.63245 | O11: 70.41211 | P11: 100 | Q11: 100 | R11: 100 | S11: 100 | T11: 100 | U11: 100 | V11: =J11*100/D11 -> 100.6163745 | W11: =K11*100/E11 -> 98.0327389 | X11: =L11*100/F11 -> 124.3885808 | Y11: =M11*100/G11 -> 128.618208 | Z11: =N11*100/H11 -> 82.45344776 | AA11: =O11*100/I11 -> 99.92567887
B12: 903 | C12: Retten i Randers | D12: 14.40619 | E12: 25.55332 | F12: 4.04789 | G12: 2.96625 | H12: 4.29155 | I12: 51.2652 | J12: 14.09916 | K12: 23.69363 | L12: 3.77422 | M12: 2.07464 | N12: 4.16999 | O12: 47.81164 | P12: 100 | Q12: 100 | R12: 100 | S12: 100 | T12: 100 | U12: 100 | V12: 97.86876336 | W12: 92.72231553 | X12: 93.23919375 | Y12: 69.94150864 | Z12: 97.16745698 | AA12: 93.26334433
B13: 904 | C13: Retten i Århus | D13: 25.42637 | E13: 40.34725 | F13: 1.99393 | G13: 5.96716 | H13: 5.58009 | I13: 79.3148 | J13: 24.42019 | K13: 41.19717 | L13: 1.97576 | M13: 3.94064 | N13: 5.39189 | O13: 76.92565 | P13: 100 | Q13: 100 | R13: 100 | S13: 100 | T13: 100 | U13: 100 | V13: 96.04276977 | W13: 102.1065128 | X13: 99.08873431 | Y13: 66.03878562 | Z13: 96.62729454 | AA13: 96.98776269
B14: 905 | C14: Retten i Viborg | D14: 15.68988 | E14: 25.75541 | F14: 4.15023 | G14: 2.47035 | H14: 3.68406 | I14: 51.74993 | J14: 13.99976 | K14: 24.30079 | L14: 4.05915 | M14: 2.00006 | N14: 3.54882 | O14: 47.90858 | P14: 100 | Q14: 100 | R14: 100 | S14: 100 | T14: 100 | U14: 100 | V14: 89.22796095 | W14: 94.35217688 | X14: 97.80542283 | Y14: 80.96261663 | Z14: 96.32905002 | AA14: 92.57709141
B15: 906 | C15: Retten i Holstebro | D15: 9.9987 | E15: 20.2146 | F15: 2.10971 | G15: 2.00006 | H15: 2.58598 | I15: 36.90905 | J15: 10.09303 | K15: 17.99253 | L15: 1.73304 | M15: 2.06642 | N15: 2.56369 | O15: 34.44871 | P15: 100 | Q15: 100 | R15: 100 | S15: 100 | T15: 100 | U15: 100 | V15: 100.9434226 | W15: 89.00759847 | X15: 82.14588735 | Y15: 103.3179005 | Z15: 99.13804438 | AA15: 93.3340468
B16: 907 | C16: Retten i Herning | D16: 11.45896 | E16: 20.62696 | F16: 3.23036 | G16: 0 | H16: 2.00088 | I16: 37.31716 | J16: 10.8528 | K16: 19.73039 | L16: 2.86068 | M16: 0 | N16: 2.00632 | O16: 35.45019 | P16: 100 | Q16: 100 | R16: 100 | S16: 100 | T16: 100 | U16: 100 | V16: 94.71016567 | W16: 95.653407 | X16: 88.55607425 | Y16: - | Z16: 100.2718804 | AA16: 94.99702014
B17: 908 | C17: Retten i Horsens | D17: 14.10508 | E17: 21.75263 | F17: 3.06074 | G17: 2.75006 | H17: 3.17355 | I17: 44.84206 | J17: 13.10784 | K17: 20.12447 | L17: 3.13895 | M17: 2.10771 | N17: 4.18679 | O17: 42.66576 | P17: 100 | Q17: 100 | R17: 100 | S17: 100 | T17: 100 | U17: 100 | V17: 92.92992312 | W17: 92.51511197 | X17: 102.5552644 | Y17: 76.6423278 | Z17: 131.927652 | AA17: 95.14674393
B18: 909 | C18: Retten i Kolding | D18: 19.39277 | E18: 35.57804 | F18: 4.07315 | G18: 3.00011 | H18: 3.73559 | I18: 65.77966 | J18: 19.00959 | K18: 36.55367 | L18: 3.48766 | M18: 3.00011 | N18: 3.12873 | O18: 65.17976 | P18: 100 | Q18: 100 | R18: 100 | S18: 100 | T18: 100 | U18: 100 | V18: 98.02410898 | W18: 102.7422253 | X18: 85.62562145 | Y18: 100 | Z18: 83.75464117 | AA18: 99.08801596
B19: 910 | C19: Retten i Esbjerg | D19: 14.08996 | E19: 25.86657 | F19: 3.904 | G19: 2.21903 | H19: 3.0907 | I19: 49.17026 | J19: 13.98767 | K19: 24.25812 | L19: 3.79844 | M19: 1.00003 | N19: 2.79649 | O19: 45.84075 | P19: 100 | Q19: 100 | R19: 100 | S19: 100 | T19: 100 | U19: 100 | V19: 99.27402207 | W19: 93.78174223 | X19: 97.29610656 | Y19: 45.06608743 | Z19: 90.48079723 | AA19: 93.22861014
B20: 911 | C20: Retten i Sønderborg | D20: 16.37808 | E20: 30.6954 | F20: 2.88066 | G20: 1.23184 | H20: 3.58724 | I20: 54.77322 | J20: 15.79957 | K20: 29.77665 | L20: 2.08342 | M20: 1.00003 | N20: 3.74604 | O20: 52.40571 | P20: 100 | Q20: 100 | R20: 100 | S20: 100 | T20: 100 | U20: 100 | V20: 96.46777888 | W20: 97.00688051 | X20: 72.32439788 | Y20: 81.18180933 | Z20: 104.4268017 | AA20: 95.67761399
B21: 912 | C21: Retten i Odense | D21: 22.71669 | E21: 37.21079 | F21: 2.70966 | G21: 2.27859 | H21: 4.41923 | I21: 69.33496 | J21: 22.41219 | K21: 40.05602 | L21: 3.4123 | M21: 1.07858 | N21: 4.22206 | O21: 71.18115 | P21: 100 | Q21: 100 | R21: 100 | S21: 100 | T21: 100 | U21: 100 | V21: 98.65957584 | W21: 107.6462499 | X21: 125.9309286 | Y21: 47.33541357 | Z21: 95.53836302 | AA21: 102.6627116
B22: 913 | C22: Retten i Svendborg | D22: 9.97958 | E22: 19.38742 | F22: 2.65107 | G22: 1.00003 | H22: 3.28316 | I22: 36.30126 | J22: 9.81133 | K22: 20.09274 | L22: 2.00008 | M22: 1.00003 | N22: 2.77314 | O22: 35.67732 | P22: 100 | Q22: 100 | R22: 100 | S22: 100 | T22: 100 | U22: 100 | V22: 98.31405731 | W22: 103.6380292 | X22: 75.44425458 | Y22: 100 | Z22: 84.46557585 | AA22: 98.28121669
B23: 914 | C23: Retten i Nykøbing F. | D23: 14.06912 | E23: 29.58863 | F23: 1.80114 | G23: 0 | H23: 2.93638 | I23: 48.39527 | J23: 13.56433 | K23: 28.51952 | L23: 1.1729 | M23: 0 | N23: 3.17061 | O23: 46.42736 | P23: 100 | Q23: 100 | R23: 100 | S23: 100 | T23: 100 | U23: 100 | V23: 96.41207126 | W23: 96.38675397 | X23: 65.11986853 | Y23: - | Z23: 107.9768286 | AA23: 95.93367286
B24: 915 | C24: Retten i Næstved | D24: 16.36537 | E24: 33.32264 | F24: 3.45738 | G24: 3.86152 | H24: 2.8611 | I24: 59.86801 | J24: 17.20789 | K24: 32.20663 | L24: 4.21379 | M24: 3.23026 | N24: 2.40646 | O24: 59.26503 | P24: 100 | Q24: 100 | R24: 100 | S24: 100 | T24: 100 | U24: 100 | V24: 105.1481879 | W24: 96.65089561 | X24: 121.8781274 | Y24: 83.65255133 | Z24: 84.10960819 | AA24: 98.9928177
B25: 916 | C25: Retten i Holbæk | D25: 12.4593 | E25: 25.75207 | F25: 1.25055 | G25: 3.00009 | H25: 2.65085 | I25: 45.11286 | J25: 12.5207 | K25: 25.33596 | L25: 3.11739 | M25: 2.65064 | N25: 2.56788 | O25: 46.19257 | P25: 100 | Q25: 100 | R25: 100 | S25: 100 | T25: 100 | U25: 100 | V25: 100.4928046 | W25: 98.38416873 | X25: 249.2815161 | Y25: 88.35201611 | Z25: 96.87006055 | AA25: 102.393353
B26: 917 | C26: Retten i Roskilde | D26: 19.29365 | E26: 42.26722 | F26: 3.06145 | G26: 0.7489 | H26: 2.19316 | I26: 67.56438 | J26: 18.59425 | K26: 36.45566 | L26: 3.97804 | M26: 0.63256 | N26: 2.3053 | O26: 61.96581 | P26: 100 | Q26: 100 | R26: 100 | S26: 100 | T26: 100 | U26: 100 | V26: 96.37497311 | W26: 86.25043237 | X26: 129.9397344 | Y26: 84.46521565 | Z26: 105.11317 | AA26: 91.71372549
B27: 918 | C27: Retten i Hillerød | D27: 14.2453 | E27: 24.07071 | F27: 3.98254 | G27: 2.53011 | H27: 4.31029 | I27: 49.13895 | J27: 13.65091 | K27: 23.01597 | L27: 3.94644 | M27: 2.37171 | N27: 4.64629 | O27: 47.63132 | P27: 100 | Q27: 100 | R27: 100 | S27: 100 | T27: 100 | U27: 100 | V27: 95.8274659 | W27: 95.61816 | X27: 99.09354332 | Y27: 93.73940263 | Z27: 107.7952992 | AA27: 96.93190432
B28: 919 | C28: Retten i Helsingør | D28: 14.06693 | E28: 24.38135 | F28: 3.7185 | G28: 3.53631 | H28: 2.46638 | I28: 48.16947 | J28: 13.55784 | K28: 23.56972 | L28: 3.17885 | M28: 4.32322 | N28: 2.1503 | O28: 46.77993 | P28: 100 | Q28: 100 | R28: 100 | S28: 100 | T28: 100 | U28: 100 | V28: 96.38094453 | W28: 96.67110312 | X28: 85.48742773 | Y28: 122.2522912 | Z28: 87.18445657 | AA28: 97.11530976
B29: 920 | C29: Retten i Lyngby | D29: 15.98318 | E29: 29.50248 | F29: 2.95171 | G29: 0 | H29: 3.52342 | I29: 51.96079 | J29: 17.7778 | K29: 28.88693 | L29: 3.10041 | M29: 0 | N29: 3.19449 | O29: 52.95963 | P29: 100 | Q29: 100 | R29: 100 | S29: 100 | T29: 100 | U29: 100 | V29: 111.2281786 | W29: 97.91356523 | X29: 105.0377578 | Y29: - | Z29: 90.66446805 | AA29: 101.9222956
B30: 921 | C30: Retten i Glostrup | D30: 30.90904 | E30: 59.56152 | F30: 4.88606 | G30: 2.30122 | H30: 5.57551 | I30: 103.23335 | J30: 30.66644 | K30: 56.97563 | L30: 3.58287 | M30: 2.00006 | N30: 4.45929 | O30: 97.68429 | P30: 100 | Q30: 100 | R30: 100 | S30: 100 | T30: 100 | U30: 100 | V30: 99.21511635 | W30: 95.65845532 | X30: 73.32840776 | Y30: 86.91302874 | Z30: 79.97994802 | AA30: 94.62474094
B31: 922 | C31: Retten på Frederiksberg | D31: 24.85565 | E31: 42.96383 | F31: 4.00016 | G31: 2.89752 | H31: 4.58216 | I31: 79.29932 | J31: 23.17093 | K31: 43.03292 | L31: 3.79 | M31: 3.00009 | N31: 5.01762 | O31: 78.01156 | P31: 100 | Q31: 100 | R31: 100 | S31: 100 | T31: 100 | U31: 100 | V31: 93.22198373 | W31: 100.1608097 | X31: 94.74621015 | Y31: 103.5399238 | Z31: 109.5033783 | AA31: 98.37607687
B32: 923 | C32: Københavns Byret | D32: 58.22402 | E32: 110.58845 | F32: 7.38359 | G32: 0.04284 | H32: 8.91349 | I32: 185.15239 | J32: 57.36273 | K32: 107.80327 | L32: 7.32206 | M32: 0 | N32: 9.08996 | O32: 181.57802 | P32: 100 | Q32: 100 | R32: 100 | S32: 100 | T32: 100 | U32: 100 | V32: 98.52073079 | W32: 97.48149106 | X32: 99.16666554 | Y32: - | Z32: 101.9798081 | AA32: 98.06949832
B33: 924 | C33: Retten på Bornholm | D33: 3.45026 | E33: 6.70088 | F33: 1.91259 | G33: 0 | H33: 1.81378 | I33: 13.87751 | J33: 3.34178 | K33: 6.67167 | L33: 1.90343 | M33: 0 | N33: 1.64719 | O33: 13.56407 | P33: 100 | Q33: 100 | R33: 100 | S33: 100 | T33: 100 | U33: 100 | V33: 96.85588912 | W33: 99.5640871 | X33: 99.52106829 | Y33: - | Z33: 90.81531387 | AA33: 97.74138156
B34: 1) Det opgjorte årsværksforbrug er inkl. de korrektioner, der foretages som led i produktivitetsberegningen, hvorfor det ikke kan stemmes af i forhold til eksempelvis prognoseværktøjet SOL.

Sheet Årsværk_Sagsområder
B2: ÅRSVÆRKSFORBRUG DE ENKELTE SAGSOMRÅDER I 2016
E4: Straf | G4: Civil | I4: Foged | K4: Skifte | M4: Notarial
E5: Årsværk | F5: % | G5: Årsværk | H5: % | I5: Årsværk | J5: % | K5: Årsværk | L5: % | M5: Årsværk | N5: %
C7: SAMLET BYRETTERNE | D7: Jurister | E7: 169.7996278 | F7: 0.4012780517 | G7: 148.039153 | H7: 0.3498527274 | I7: 38.30693469 | J7: 0.09052865613 | K7: 36.33307117 | L7: 0.08586393385 | M7: 0.5714278676 | N7: 0.001350423816
D8: Kontor | E8: 180.2897123 | F8: 0.2314013333 | G8: 142.2070855 | H8: 0.1825223901 | I8: 185.1231479 | J8: 0.2376050342 | K8: 136.157588 | L8: 0.1747578772 | M8: 13.13563665 | N8: 0.01685955231
D9: Elev | E9: 15.0735169 | F9: 0.1924247147 | G9: 14.997754 | H9: 0.1914575446 | I9: 23.06324254 | J9: 0.2944195368 | K9: 18.29958651 | L9: 0.2336079055 | M9: 0.2003673613 | N9: 0.002557839194
D10: Fleks | E10: 4.235708086 | F10: 0.09920952678 | G10: 6.329488616 | H10: 0.148250436 | I10: 8.099326806 | J10: 0.1897039086 | K10: 5.871085378 | L10: 0.1375136318 | M10: 1.778546123 | N10: 0.04165743145
D11: Øvrige | E11: 5.52246809 | F11: 0.06520283352 | G11: 2.841878353 | H11: 0.03355357027 | I11: 5.578140121 | J11: 0.06586014364 | K11: 0.6213833985 | L11: 0.007336567206 | M11: 0.2819197004 | N11: 0.003328577547
B12: EID | C12: Ret
B13: 901 | C13: Retten i Hjørring | D13: Jurister | E13: 4.611358084 | F13: 0.3522731799 | G13: 5.047152354 | H13: 0.3855645944 | I13: 1.198249503 | J13: 0.09153727713 | K13: 1.314416556 | L13: 0.1004115689 | M13: 0.003013624459 | N13: 0.0002302183114
B14: 901 | C14: Retten i Hjørring | D14: Kontor | E14: 5.345118583 | F14: 0.1908089794 | G14: 5.088940264 | H14: 0.1816639768 | I14: 8.417458507 | J14: 0.3004847585 | K14: 5.658964888 | L14: 0.2020126023 | M14: 0.2906272076 | N14: 0.01037475222
B15: 901 | C15: Retten i Hjørring | D15: Elev | E15: 0.4285040005 | F15: 0.1636385857 | G15: 0.3383319219 | H15: 0.1292033613 | I15: 0.8563775338 | J15: 0.3270364064 | K15: 0.7556567489 | L15: 0.2885728057 | M15: 0.003599262924 | N15: 0.00137449894
B16: 901 | C16: Retten i Hjørring | D16: Fleks | E16: 0.9808210242 | F16: 0.2859011389 | G16: 1.023521636 | H16: 0.2983480108 | I16: 0.584243855 | J16: 0.1703022054 | K16: 0.4202212966 | L16: 0.1224909992 | M16: 0.4082558878 | N16: 0.1190031824
B17: 901 | C17: Retten i Hjørring | D17: Øvrige | E17: 0.06296112846 | F17: 0.02189990381 | G17: 0.1231690395 | H17: 0.04284215013 | I17: 0.02410144385 | J17: 0.008383256701 | K17: 0 | L17: 0 | M17: 0 | N17: 0
B18: 902 | C18: Retten i Aalborg | D18: Jurister | E18: 7.843102965 | F18: 0.3726286612 | G18: 8.277157567 | H18: 0.3932507524 | I18: 2.133411886 | J18: 0.101359171 | K18: 2.071695122 | L18: 0.09842698522 | M18: 0.005486720772 | N18: 0.0002606760901
B19: 902 | C19: Retten i Aalborg | D19: Kontor | E19: 7.247676404 | F19: 0.1773855271 | G19: 7.417038656 | H19: 0.1815306366 | I19: 8.760434443 | J19: 0.2144099977 | K19: 7.622956123 | L19: 0.1865704282 | M19: 0.7198612641 | N19: 0.01761847007
B20: 902 | C20: Retten i Aalborg | D20: Elev | E20: 0.8118685883 | F20: 0.1986883925 | G20: 0.6885317014 | H20: 0.1685041877 | I20: 1.449865456 | J20: 0.3548252032 | K20: 0.9872322098 | L20: 0.2416050869 | M20: 0 | N20: 0
B21: 902 | C21: Retten i Aalborg | D21: Fleks | E21: 0.02663632225 | F21: 0.01490435736 | G21: 0.008275645557 | H21: 0.004630638479 | I21: 0.6156212999 | J21: 0.3444709733 | K21: 0.8179085375 | L21: 0.4576608217 | M21: 0 | N21: 0
B22: 902 | C22: Retten i Aalborg | D22: Øvrige | E22: 0.2890188485 | F22: 0.1097908217 | G22: 0.123125541 | H22: 0.04677222396 | I22: 1.658617542 | J22: 0.6300661139 | K22: 0.001814550559 | L22: 0.0006893010537 | M22: 0 | N22: 0
B23: 903 | C23: Retten i Randers | D23: Jurister | E23: 5.041543117 | F23: 0.3575775519 | G23: 5.199091714 | H23: 0.368751877 | I23: 1.489570895 | J23: 0.1056496199 | K23: 1.460779908 | L23: 0.1036075843 | M23: 0.00290816941 | N23: 0.0002062654378
B24: 903 | C24: Retten i Randers | D24: Kontor | E24: 4.822355294 | F24: 0.2035296109 | G24: 5.779738988 | H24: 0.2439364077 | I24: 4.699002786 | J24: 0.1983234644 | K24: 5.823672454 | L24: 0.2457906388 | M24: 0.3402170841 | N24: 0.01435901059
B25: 903 | C25: Retten i Randers | D25: Elev | E25: 0.4669326007 | F25: 0.1237163177 | G25: 0.9499103744 | H25: 0.2516838908 | I25: 0.6214252229 | J25: 0.1646499735 | K25: 1.622160522 | L25: 0.4298002029 | M25: 0.01058350738 | N25: 0.002804157517
B26: 903 | C26: Retten i Randers | D26: Fleks | E26: 0.05549933929 | F26: 0.02675131073 | G26: 0.1088162688 | H26: 0.05245067521 | I26: 0.0218824871 | J26: 0.01054760686 | K26: 0.151498943 | L26: 0.07302420804 | M26: 0.0400604332 | N26: 0.01930958296
B27: 903 | C27: Retten i Randers | D27: Øvrige | E27: 0.01727630718 | F27: 0.004143009259 | G27: 0.007542802052 | H27: 0.00180882977 | I27: 0.2942386654 | J27: 0.07056100025 | K27: 0 | L27: 0 | M27: 0 | N27: 0
B28: 904 | C28: Retten i Århus | D28: Jurister | E28: 10.39463644 | F28: 0.4256574759 | G28: 8.361745691 | H28: 0.3424111643 | I28: 2.023249544 | J28: 0.08285150707 | K28: 2.360146043 | L28: 0.09664732514 | M28: 0.05381221459 | N28: 0.002203595246
B29: 904 | C29: Retten i Århus | D29: Kontor | E29: 11.51653676 | F29: 0.2795467932 | G29: 8.682753669 | H29: 0.2107609253 | I29: 8.193940782 | J29: 0.1988957198 | K29: 7.41961305 | L29: 0.1801000663 | M29: 0.8778679441 | N29: 0.02130893807
B30: 904 | C30: Retten i Århus | D30: Elev | E30: 0.1191543968 | F30: 0.06030813297 | G30: 0.9018193656 | H30: 0.4564417569 | I30: 0.3621075466 | J30: 0.1832750671 | K30: 0.4683665186 | L30: 0.2370563827 | M30: 0.02666665689 | N30: 0.013496911
B31: 904 | C31: Retten i Århus | D31: Fleks | E31: 0 | F31: 0 | G31: 0.7669179454 | H31: 0.1946176117 | I31: 1.568116805 | J31: 0.3979345501 | K31: 0.007642798541 | L31: 0.001939481541 | M31: 0 | N31: 0
B32: 904 | C32: Retten i Århus | D32: Øvrige | E32: 0.5090517202 | F32: 0.09441062785 | G32: 0.4504713215 | H32: 0.08354608895 | I32: 0.001991401588 | J32: 0.0003693327549 | K32: 0.0009957007939 | L32: 0.0001846663774 | M32: 0 | N32: 0
B33: 905 | C33: Retten i Viborg | D33: Jurister | E33: 4.256270939 | F33: 0.3040245647 | G33: 5.28739553 | H33: 0.3776775838 | I33: 1.651382234 | J33: 0.117957896 | K33: 1.411419307 | L33: 0.1008173931 | M33: 0.007452248681 | N33: 0.0005323126026
B34: 905 | C34: Retten i Viborg | D34: Kontor | E34: 4.186844644 | F34: 0.1722925322 | G34: 4.85203386 | H34: 0.1996656841 | I34: 7.246611261 | J34: 0.2982047605 | K34: 3.762158694 | L34: 0.1548163123 | M34: 0.5567095772 | N34: 0.02290911436
B35: 905 | C35: Retten i Viborg | D35: Elev | E35: 1.003021029 | F35: 0.2471012476 | G35: 0.645203968 | H35: 0.1589505113 | I35: 1.156826531 | J35: 0.2849923091 | K35: 0.9013063117 | L35: 0.2220431154 | M35: 0.02373504917 | N35: 0.005847295413
B36: 905 | C36: Retten i Viborg | D36: Fleks | E36: 0.5743585347 | F36: 0.2871706522 | G36: 0.7560344766 | H36: 0.3780058981 | I36: 0.5363915692 | J36: 0.2681877389 | K36: 0 | L36: 0 | M36: 0.01904577419 | N36: 0.009522601419
B37: 905 | C37: Retten i Viborg | D37: Øvrige | E37: 0.4343714391 | F37: 0.1223988366 | G37: 0.1146287088 | H37: 0.03230051362 | I37: 0.5997157756 | J37: 0.1689901927 | K37: 0.003402654964 | L37: 0.0009588130601 | M37: 0.004395771151 | N37: 0.001238657117
B38: 906 | C38: Retten i Holstebro | D38: Jurister | E38: 3.577637031 | F38: 0.3544661049 | G38: 3.029028538 | H38: 0.3001109219 | I38: 0.8354276404 | J38: 0.08277272934 | K38: 1.506673744 | L38: 0.1492786352 | M38: 0.02433818799 | N38: 0.002411385678
B39: 906 | C39: Retten i Holstebro | D39: Kontor | E39: 3.99895122 | F39: 0.222256193 | G39: 3.417455863 | H39: 0.1899374831 | I39: 4.10378881 | J39: 0.2280829216 | K39: 4.092366691 | L39: 0.227448096 | M39: 0.3855443523 | N39: 0.02142802331
B40: 906 | C40: Retten i Holstebro | D40: Elev | E40: 0.4736038252 | F40: 0.2732792233 | G40: 0.1469427801 | H40: 0.08478902974 | I40: 0.5276614854 | J40: 0.3044716137 | K40: 0.4672232678 | L40: 0.2695975095 | M40: 0.002034271317 | N40: 0.001173816713
B41: 906 | C41: Retten i Holstebro | D41: Fleks | E41: 0 | F41: 0 | G41: 0 | H41: 0 | I41: 0 | J41: 0 | K41: 0 | L41: 0 | M41: 0 | N41: 0
B42: 906 | C42: Retten i Holstebro | D42: Øvrige | E42: 0.004956392785 | F42: 0.001933304255 | G42: 0.0001242207942 | H42: 4.845390598e-05 | I42: 0.04419450233 | J42: 0.0172386296 | K42: 0.1857214444 | L42: 0.0724430194 | M42: 0 | N42: 0
B43: 907 | C43: Retten i Herning | D43: Jurister | E43: 4.024153705 | F43: 0.3707940536 | G43: 4.021503269 | H43: 0.3705498368 | I43: 0.8908737502 | J43: 0.082086996 | K43: 1.356687473 | L43: 0.1250080599 | M43: 0.05251267802 | N43: 0.00483862948
B44: 907 | C44: Retten i Herning | D44: Kontor | E44: 4.025349537 | F44: 0.204017738 | G44: 3.278709283 | H44: 0.1661755942 | I44: 5.287231768 | J44: 0.2679740121 | K44: 4.339965844 | L44: 0.2199635103 | M44: 0.3810412174 | N44: 0.0193124017
B45: 907 | C45: Retten i Herning | D45: Elev | E45: 0.5335092851 | F45: 0.1864973661 | G45: 0.1586557073 | H45: 0.05546083703 | I45: 0.9564276417 | J45: 0.3343357669 | K45: 1.10153889 | L45: 0.3850619048 | M45: 0.02919649603 | N45: 0.01020613841
B46: 907 | C46: Retten i Herning | D46: Fleks | E46: 0 | F46: 0 | G46: 0 | H46: 0 | I46: 0 | J46: 0 | K46: 0 | L46: 0 | M46: 0 | N46: 0
B47: 907 | C47: Retten i Herning | D47: Øvrige | E47: 0 | F47: 0 | G47: 0 | H47: 0 | I47: 0 | J47: 0 | K47: 0.004739625471 | L47: 0.002362347717 | M47: 0 | N47: 0
B48: 908 | C48: Retten i Horsens | D48: Jurister | E48: 4.068066841 | F48: 0.3103537151 | G48: 5.435355587 | H48: 0.4146644747 | I48: 1.176289021 | J48: 0.08973934847 | K48: 1.522460616 | L48: 0.1161488557 | M48: 0.01750633259 | N48: 0.001335561968
B49: 908 | C49: Retten i Horsens | D49: Kontor | E49: 2.69829542 | F49: 0.1340803221 | G49: 4.353256277 | H49: 0.2163165677 | I49: 4.811946534 | J49: 0.2391092304 | K49: 4.267811295 | L49: 0.2120707425 | M49: 0.601402501 | N49: 0.0298841411
B50: 908 | C50: Retten i Horsens | D50: Elev | E50: 0.3260335363 | F50: 0.103867069 | G50: 0.6851104717 | H50: 0.2182610337 | I50: 0.819646222 | J50: 0.2611211462 | K50: 1.000932945 | L50: 0.318875084 | M50: 0.03036396116 | N50: 0.009673286023
B51: 908 | C51: Retten i Horsens | D51: Fleks | E51: 0.005662812122 | F51: 0.002686713125 | G51: 0.8196123735 | H51: 0.3888639203 | I51: 0.1920298806 | J51: 0.09110830266 | K51: 0.5294317337 | L51: 0.2511881301 | M51: 0.001799538964 | N51: 0.0008537886919
B52: 908 | C52: Retten i Horsens | D52: Øvrige | E52: 0.7999353571 | F52: 0.191061734 | G52: 0.1355262497 | H52: 0.03236996593 | I52: 0.5986184392 | J52: 0.1429778993 | K52: 0.1055156427 | L52: 0.02520203849 | M52: 0 | N52: 0
B53: 909 | C53: Retten i Kolding | D53: Jurister | E53: 7.763297992 | F53: 0.4083885024 | G53: 7.206185448 | H53: 0.3790815819 | I53: 1.666050658 | J53: 0.08764264025 | K53: 1.105842093 | L53: 0.05817285343 | M53: 0.03552042315 | N53: 0.001868552828
B54: 909 | C54: Retten i Kolding | D54: Kontor | E54: 8.167281865 | F54: 0.2234326092 | G54: 7.558981544 | H54: 0.2067913165 | I54: 8.861363375 | J54: 0.2424206208 | K54: 7.263237017 | L54: 0.1987006234 | M54: 0.7729128081 | N54: 0.02114460212
B55: 909 | C55: Retten i Kolding | D55: Elev | E55: 0.5530835177 | F55: 0.1585829805 | G55: 0.8849440577 | H55: 0.2537357591 | I55: 1.289767603 | J55: 0.3698088699 | K55: 0.7448734236 | L55: 0.213573979 | M55: 0.00241551856 | N55: 0.0006925900347
B56: 909 | C56: Retten i Kolding | D56: Fleks | E56: 1.000342488 | F56: 0.3334352701 | G56: 0.0003058216577 | H56: 0.0001019368149 | I56: 0.972518963 | J56: 0.3241611018 | K56: 0 | L56: 0 | M56: 0.0003058216577 | N56: 0.0001019368149
B57: 909 | C57: Retten i Kolding | D57: Øvrige | E57: 0 | F57: 0 | G57: 0 | H57: 0 | I57: 0.05166925293 | J57: 0.01651444929 | K57: 0 | L57: 0 | M57: 0 | N57: 0
B58: 910 | C58: Retten i Esbjerg | D58: Jurister | E58: 7.143257239 | F58: 0.5106824253 | G58: 3.310864352 | H58: 0.2366987749 | I58: 1.312195882 | J58: 0.09381089791 | K58: 1.114116247 | L58: 0.07964988069 | M58: 0.02719328957 | N58: 0.001944090014
B59: 910 | C59: Retten i Esbjerg | D59: Kontor | E59: 5.490224902 | F59: 0.2263252429 | G59: 4.137745256 | H59: 0.1705715553 | I59: 7.401934304 | J59: 0.3051322322 | K59: 4.376431525 | L59: 0.1804109933 | M59: 0.3689718668 | N59: 0.01521024164
B60: 910 | C60: Retten i Esbjerg | D60: Elev | E60: 0.8423001745 | F60: 0.2217489744 | G60: 0.3641198407 | H60: 0.09586036392 | I60: 1.455295859 | J60: 0.3831298793 | K60: 1.007219416 | L60: 0.2651665989 | M60: 0.00242909262 | N60: 0.0006394974306
B61: 910 | C61: Retten i Esbjerg | D61: Fleks | E61: 0 | F61: 0 | G61: 0 | H61: 0 | I61: 0 | J61: 0 | K61: 0.9864439227 | L61: 0.9864143302 | M61: 0.001364162041 | N61: 0.001364121118
B62: 910 | C62: Retten i Esbjerg | D62: Øvrige | E62: 0 | F62: 0 | G62: 0 | H62: 0 | I62: 0 | J62: 0 | K62: 0 | L62: 0 | M62: 0 | N62: 0
B63: 911 | C63: Retten i Sønderborg | D63: Jurister | E63: 6.118734702 | F63: 0.3872722297 | G63: 6.102911061 | H63: 0.3862707061 | I63: 1.346606339 | J63: 0.08523056888 | K63: 1.053808988 | L63: 0.06669858664 | M63: 0.008015627555 | N63: 0.0005073320068
B64: 911 | C64: Retten i Sønderborg | D64: Kontor | E64: 6.463065331 | F64: 0.2170514592 | G64: 4.382432539 | H64: 0.147176816 | I64: 8.505456722 | J64: 0.2856418275 | K64: 6.162868803 | L64: 0.2069698506 | M64: 0.7142192852 | N64: 0.02398588442
B65: 911 | C65: Retten i Sønderborg | D65: Elev | E65: 0.3547504491 | F65: 0.1702731322 | G65: 0.1057391316 | H65: 0.05075267185 | I65: 0.5541375683 | J65: 0.2659749682 | K65: 0.7206921822 | L65: 0.3459178573 | M65: 0.005179205383 | N65: 0.00248591517
B66: 911 | C66: Retten i Sønderborg | D66: Fleks | E66: 0 | F66: 0 | G66: 0 | H66: 0 | I66: 0 | J66: 0 | K66: 0 | L66: 0 | M66: 0 | N66: 0
B67: 911 | C67: Retten i Sønderborg | D67: Øvrige | E67: 0.03680660339 | F67: 0.009825469934 | G67: 0.4339009902 | H67: 0.1158292464 | I67: 0.3390468497 | J67: 0.09050806977 | K67: 0.01976568937 | L67: 0.005276422401 | M67: 0.004459613841 | N67: 0.001190487512
B68: 912 | C68: Retten i Odense | D68: Jurister | E68: 8.731457164 | F68: 0.389585184 | G68: 6.511313959 | H68: 0.2905255559 | I68: 2.373725088 | J68: 0.1059122329 | K68: 2.332139383 | L68: 0.104056738 | M68: 0.03385058638 | N68: 0.001510364957
B69: 912 | C69: Retten i Odense | D69: Kontor | E69: 9.797546241 | F69: 0.2445960992 | G69: 7.023825534 | H69: 0.1753500606 | I69: 9.909704721 | J69: 0.2473961397 | K69: 9.631653647 | L69: 0.2404545845 | M69: 0.5784245936 | N69: 0.01444039107
B70: 912 | C70: Retten i Odense | D70: Elev | E70: 0.9031604305 | F70: 0.2646779095 | G70: 0.09107882769 | H70: 0.02669133068 | I70: 1.396055567 | J70: 0.4091245104 | K70: 0.9886551236 | L70: 0.2897327678 | M70: 0.004358705591 | N70: 0.001277351227
B71: 912 | C71: Retten i Odense | D71: Fleks | E71: 0.000338421503 | F71: 0.0003137657875 | G71: 0 | H71: 0 | I71: 0.6650098651 | J71: 0.616560538 | K71: 0 | L71: 0 | M71: 0 | N71: 0
B72: 912 | C72: Retten i Odense | D72: Øvrige | E72: 0.03875278739 | F72: 0.009178644402 | G72: 0 | H72: 0 | I72: 0.005643922051 | J72: 0.001336769741 | K72: 0 | L72: 0 | M72: 0 | N72: 0
B73: 913 | C73: Retten i Svendborg | D73: Jurister | E73: 3.900408947 | F73: 0.3975413065 | G73: 2.837088757 | H73: 0.2891645431 | I73: 0.9919747326 | J73: 0.1011050217 | K73: 1.00282124 | L73: 0.1022105301 | M73: 0.003574957648 | N73: 0.00036437034
B74: 913 | C74: Retten i Svendborg | D74: Kontor | E74: 4.761269876 | F74: 0.2369646885 | G74: 3.310346788 | H74: 0.164753378 | I74: 5.101654329 | J74: 0.2539053573 | K74: 3.592277753 | L74: 0.1787848622 | M74: 0.1739221077 | N74: 0.008655967661
B75: 913 | C75: Retten i Svendborg | D75: Elev | E75: 0.3749448169 | F75: 0.1874649099 | G75: 0.542562446 | H75: 0.2712703722 | I75: 0.5383704243 | J75: 0.2691744452 | K75: 0.05783220605 | L75: 0.02891494643 | M75: 0 | N75: 0
B76: 913 | C76: Retten i Svendborg | D76: Fleks | E76: 0.01601846887 | F76: 0.01601798833 | G76: 0.009920973509 | H76: 0.009920675889 | I76: 0.02229931662 | J76: 0.02229864766 | K76: 0.002522544344 | L76: 0.00252246867 | M76: 0.2957486236 | N76: 0.2957397514
B77: 913 | C77: Retten i Svendborg | D77: Øvrige | E77: 0 | F77: 0 | G77: 0 | H77: 0 | I77: 0.3433839779 | J77: 0.1238249702 | K77: 0 | L77: 0 | M77: 0 | N77: 0
B78: 914 | C78: Retten i Nykøbing F. | D78: Jurister | E78: 5.85082888 | F78: 0.4313393201 | G78: 3.709081227 | H78: 0.2734437474 | I78: 1.517436393 | J78: 0.1118696163 | K78: 1.554580071 | L78: 0.1146079512 | M78: 0 | N78: 0
B79: 914 | C79: Retten i Nykøbing F. | D79: Kontor | E79: 6.918477913 | F79: 0.2425874598 | G79: 3.383528198 | H79: 0.1186390303 | I79: 8.465427575 | J79: 0.2968292445 | K79: 5.537110724 | L79: 0.19415161 | M79: 0.3054706353 | N79: 0.01071093186
B80: 914 | C80: Retten i Nykøbing F. | D80: Elev | E80: 0.5606581334 | F80: 0.4780101742 | G80: 0.001604644144 | H80: 0.001368099705 | I80: 0.2463011106 | J80: 0.2099932736 | K80: 0.2701085889 | L80: 0.2302912344 | M80: 0 | N80: 0
B81: 914 | C81: Retten i Nykøbing F. | D81: Fleks | E81: 0 | F81: 0 | G81: 0 | H81: 0 | I81: 0 | J81: 0 | K81: 0 | L81: 0 | M81: 0 | N81: 0
B82: 914 | C82: Retten i Nykøbing F. | D82: Øvrige | E82: 0 | F82: 0 | G82: 0 | H82: 0 | I82: 0 | J82: 0 | K82: 0 | L82: 0 | M82: 0 | N82: 0
B83: 915 | C83: Retten i Næstved | D83: Jurister | E83: 7.173553552 | F83: 0.4168758373 | G83: 5.126479309 | H83: 0.297914463 | I83: 1.626369356 | J83: 0.09451300284 | K83: 1.669613951 | L83: 0.09702607066 | M83: 0.01046480641 | N83: 0.0006081400107
B84: 915 | C84: Retten i Næstved | D84: Kontor | E84: 5.905297189 | F84: 0.1833565694 | G84: 4.659637063 | H84: 0.144679436 | I84: 9.526988338 | J84: 0.2958082959 | K84: 6.253368738 | L84: 0.1941640196 | M84: 0.3636142385 | N84: 0.01129004303
B85: 915 | C85: Retten i Næstved | D85: Elev | E85: 1.029050522 | F85: 0.2442102054 | G85: 0.7700907073 | H85: 0.1827548851 | I85: 1.524975222 | J85: 0.3619010966 | K85: 0.5623404493 | L85: 0.1334524144 | M85: 0 | N85: 0
B86: 915 | C86: Retten i Næstved | D86: Fleks | E86: 0.0459634904 | F86: 0.01422903741 | G86: 0 | H86: 0 | I86: 0.4160906854 | J86: 0.128810277 | K86: 0.4310483405 | L86: 0.1334407573 | M86: 0.3708397935 | N86: 0.1148018406
B87: 915 | C87: Retten i Næstved | D87: Øvrige | E87: 0.07920258123 | F87: 0.03291248607 | G87: 0.05661003206 | H87: 0.02352419407 | I87: 0 | J87: 0 | K87: 0.006981155138 | L87: 0.002901006099 | M87: 0.0001980171542 | N87: 8.228566199e-05
B88: 916 | C88: Retten i Holbæk | D88: Jurister | E88: 4.217819822 | F88: 0.3368677328 | G88: 3.69604614 | H88: 0.2951948485 | I88: 1.943663564 | J88: 0.1552360143 | K88: 1.574117513 | L88: 0.1257212067 | M88: 0.03759198896 | N88: 0.003002387164
B89: 916 | C89: Retten i Holbæk | D89: Kontor | E89: 5.700224437 | F89: 0.2249855319 | G89: 4.434868558 | H89: 0.1750424519 | I89: 6.806002146 | J89: 0.2686301268 | K89: 4.630432946 | L89: 0.1827612984 | M89: 0.3649698912 | N89: 0.01440521264
B90: 916 | C90: Retten i Holbæk | D90: Elev | E90: 0.5854569837 | F90: 0.1878035741 | G90: 0.3986095372 | H90: 0.1278664322 | I90: 1.295490782 | J90: 0.4155690441 | K90: 0.4175203377 | L90: 0.1339326609 | M90: 0.009167560591 | N90: 0.002940780778
B91: 916 | C91: Retten i Holbæk | D91: Fleks | E91: 1.000032421 | F91: 0.3772796084 | G91: 1.000032421 | H91: 0.3772796084 | I91: 0.01924598321 | J91: 0.007260881603 | K91: 0 | L91: 0 | M91: 0 | N91: 0
B92: 916 | C92: Retten i Holbæk | D92: Øvrige | E92: 0.1124541163 | F92: 0.04379259013 | G92: 0.005165722408 | H92: 0.00201166815 | I92: 0.01609701199 | J92: 0.006268599775 | K92: 0.0004349129013 | L92: 0.0001693665207 | M92: 0.001809354603 | N92: 0.0007046102633
B93: 917 | C93: Retten i Roskilde | D93: Jurister | E93: 7.175828827 | F93: 0.3859165509 | G93: 6.353243974 | H93: 0.3416778829 | I93: 2.088523576 | J93: 0.1123209367 | K93: 1.561579084 | L93: 0.08398182683 | M93: 0.1104890371 | N93: 0.005942107755
B94: 917 | C94: Retten i Roskilde | D94: Kontor | E94: 8.193341172 | F94: 0.2247481234 | G94: 6.947648948 | H94: 0.1905780597 | I94: 9.048911574 | J94: 0.2482169181 | K94: 6.782063072 | L94: 0.1860359426 | M94: 0.4913988011 | N94: 0.0134793555
B95: 917 | C95: Retten i Roskilde | D95: Elev | E95: 0.8079043645 | F95: 0.203091061 | G95: 0.8097840541 | H95: 0.2035635776 | I95: 0.7468354642 | J95: 0.1877395562 | K95: 1.344253277 | L95: 0.3379184918 | M95: 0 | N95: 0
B96: 917 | C96: Retten i Roskilde | D96: Fleks | E96: 0 | F96: 0 | G96: 0 | H96: 0 | I96: 0 | J96: 0 | K96: 0 | L96: 0 | M96: 0 | N96: 0
B97: 917 | C97: Retten i Roskilde | D97: Øvrige | E97: 0 | F97: 0 | G97: 0 | H97: 0 | I97: 0 | J97: 0 | K97: 0 | L97: 0 | M97: 0 | N97: 0
B98: 918 | C98: Retten i Hillerød | D98: Jurister | E98: 4.878055152 | F98: 0.357342855 | G98: 5.085939942 | H98: 0.3725714946 | I98: 1.219426929 | J98: 0.08932935085 | K98: 1.341523358 | L98: 0.09827354789 | M98: 0.04101735083 | N98: 0.003004733811
B99: 918 | C99: Retten i Hillerød | D99: Kontor | E99: 5.180875459 | F99: 0.2250991576 | G99: 3.834443006 | H99: 0.1665992355 | I99: 4.77024439 | J99: 0.2072580208 | K99: 5.022944158 | L99: 0.2182373438 | M99: 0.3653595836 | N99: 0.01587417708
B100: 918 | C100: Retten i Hillerød | D100: Elev | E100: 0.8620852035 | F100: 0.2184462968 | G100: 0.9945062683 | H100: 0.2520008586 | I100: 1.100907428 | J100: 0.2789621603 | K100: 0.94669203 | L100: 0.2398850686 | M100: 0.001769021728 | N100: 0.0004482576012
B101: 918 | C101: Retten i Hillerød | D101: Fleks | E101: 0.00487496692 | F101: 0.002055465011 | G101: 0.02329187887 | H101: 0.009820711164 | I101: 0.9144492072 | J101: 0.3855653546 | K101: 0.1836951716 | L101: 0.07745262766 | M101: 0.2171102346 | N101: 0.09154164491
B102: 918 | C102: Retten i Hillerød | D102: Øvrige | E102: 1.176952568 | F102: 0.2533101825 | G102: 0.2022812426 | H102: 0.04353607773 | I102: 0.5253692274 | J102: 0.1130728447 | K102: 0.1069558426 | L102: 0.02301962266 | M102: 0.2649024562 | N102: 0.05701375856
B103: 919 | C103: Retten i Helsingør | D103: Jurister | E103: 4.717780758 | F103: 0.3479743645 | G103: 5.555327275 | H103: 0.4097501722 | I103: 1.276823386 | J103: 0.09417601815 | K103: 1.049729415 | L103: 0.07742600701 | M103: 0.01220617761 | N103: 0.0009003040017
B104: 919 | C104: Retten i Helsingør | D104: Kontor | E104: 5.125125589 | F104: 0.2174453319 | G104: 4.992059404 | H104: 0.2117996906 | I104: 6.044953401 | J104: 0.2564711588 | K104: 4.215961324 | L104: 0.1788719308 | M104: 0.1467930402 | N104: 0.006228034963
B105: 919 | C105: Retten i Helsingør | D105: Elev | E105: 0.1348788648 | F105: 0.04243008157 | G105: 0.7278722405 | H105: 0.2289734465 | I105: 1.05237819 | J105: 0.3310562593 | K105: 0.9957883619 | L105: 0.3132542781 | M105: 0 | N105: 0
B106: 919 | C106: Retten i Helsingør | D106: Fleks | E106: 0.3120407823 | F106: 0.07217786332 | G106: 0.06831823674 | H106: 0.01580262784 | I106: 0.5373223051 | J106: 0.124287523 | K106: 1.34064209 | L106: 0.3101026757 | M106: 0.4240158535 | N106: 0.09807871298
B107: 919 | C107: Retten i Helsingør | D107: Øvrige | E107: 0.004698099693 | F107: 0.002184857784 | G107: 0.07024138296 | H107: 0.03266585265 | I107: 0.0008700184617 | J107: 0.0004046032934 | K107: 0 | L107: 0 | M107: 0.002175046154 | N107: 0.001011508233
B108: 920 | C108: Retten i Lyngby | D108: Jurister | E108: 5.416713387 | F108: 0.3046897472 | G108: 8.832576368 | H108: 0.4968317997 | I108: 1.173935073 | J108: 0.06603376532 | K108: 1.345260317 | L108: 0.07567079823 | M108: 0.0124120935 | N108: 0.0006981793867
B109: 920 | C109: Retten i Lyngby | D109: Kontor | E109: 4.818861427 | F109: 0.1668180532 | G109: 6.638309596 | H109: 0.2298032223 | I109: 4.484278174 | J109: 0.1552355399 | K109: 6.993259832 | L109: 0.2420907944 | M109: 1.249185743 | N109: 0.04324397723
B110: 920 | C110: Retten i Lyngby | D110: Elev | E110: 0.5111240773 | F110: 0.164856931 | G110: 0.5055968915 | H110: 0.1630742036 | I110: 1.33417088 | J110: 0.4303207897 | K110: 0.2222768289 | L110: 0.07169272094 | M110: 0.003281064817 | N110: 0.001058268041
B111: 920 | C111: Retten i Lyngby | D111: Fleks | E111: 0 | F111: 0 | G111: 0 | H111: 0 | I111: 0 | J111: 0 | K111: 0 | L111: 0 | M111: 0 | N111: 0
B112: 920 | C112: Retten i Lyngby | D112: Øvrige | E112: 0.08445629022 | F112: 0.02643811382 | G112: 0 | H112: 0 | I112: 0.009747050416 | J112: 0.003051207052 | K112: 0 | L112: 0 | M112: 0 | N112: 0
B113: 921 | C113: Retten i Glostrup | D113: Jurister | E113: 14.43071869 | F113: 0.4705703919 | G113: 10.45988392 | H113: 0.3410856924 | I113: 2.555120565 | J113: 0.08331976469 | K113: 1.353605506 | L113: 0.04413963623 | M113: 0.03722692627 | N113: 0.001213930481
B114: 921 | C114: Retten i Glostrup | D114: Kontor | E114: 14.68565987 | F114: 0.2577533565 | G114: 11.25895454 | H114: 0.1976100052 | I114: 15.57256983 | J114: 0.2733198356 | K114: 7.556973595 | L114: 0.1326351915 | M114: 0.8406868672 | N114: 0.0147552009
B115: 921 | C115: Retten i Glostrup | D115: Elev | E115: 0.363317584 | F115: 0.1014040655 | G115: 0.8746612591 | H115: 0.2441230799 | I115: 1.335530992 | J115: 0.3727545213 | K115: 0.7329438991 | L115: 0.2045689347 | M115: 0 | N115: 0
B116: 921 | C116: Retten i Glostrup | D116: Fleks | E116: 0 | F116: 0 | G116: 0 | H116: 0 | I116: 0 | J116: 0 | K116: 1.00003 | L116: 0.5 | M116: 0 | N116: 0
B117: 921 | C117: Retten i Glostrup | D117: Øvrige | E117: 0.2086756063 | F117: 0.04679570208 | G117: 0.1068109909 | H117: 0.02395246573 | I117: 0.1936554399 | J117: 0.04342741556 | K117: 0 | L117: 0 | M117: 0 | N117: 0
B118: 922 | C118: Retten på Frederiksberg | D118: Jurister | E118: 9.407187349 | F118: 0.4059909269 | G118: 8.419817116 | H118: 0.3633784711 | I118: 1.839365477 | J118: 0.0793824623 | K118: 1.655970577 | L118: 0.07146759223 | M118: 0.003731871306 | N118: 0.0001610583307
B119: 922 | C119: Retten på Frederiksberg | D119: Kontor | E119: 9.583652253 | F119: 0.2227051349 | G119: 8.562420198 | H119: 0.1989737205 | I119: 11.27880555 | J119: 0.2620971469 | K119: 6.809251603 | L119: 0.1582335478 | M119: 0.6776443123 | N119: 0.01574711436
B120: 922 | C120: Retten på Frederiksberg | D120: Elev | E120: 1.032459844 | F120: 0.2724168454 | G120: 0.8208968401 | H120: 0.2165954723 | I120: 0.9481481985 | J120: 0.2501710286 | K120: 0.2832140688 | L120: 0.07472666724 | M120: 0 | N120: 0
B121: 922 | C121: Retten på Frederiksberg | D121: Fleks | E121: 0.2131190136 | F121: 0.07103754007 | G121: 1.744440937 | H121: 0.5814628685 | I121: 1.034104583 | J121: 0.3446911869 | K121: 0 | L121: 0 | M121: 0 | N121: 0
B122: 922 | C122: Retten på Frederiksberg | D122: Øvrige | E122: 0.2157183162 | F122: 0.04299215888 | G122: 0.133194892 | H122: 0.0265454323 | I122: 0.283044679 | J122: 0.05641014644 | K122: 0.1843959198 | L122: 0.03674967809 | M122: 0 | N122: 0
B123: 923 | C123: Københavns Byret | D123: Jurister | E123: 28.12089559 | F123: 0.4902293806 | G123: 19.63185589 | H123: 0.3422406131 | I123: 3.511101083 | J123: 0.06120875145 | K123: 2.942875574 | L123: 0.05130292045 | M123: 0.02470634501 | N123: 0.0004307037865
B124: 923 | C124: Københavns Byret | D124: Kontor | E124: 34.14881099 | F124: 0.3167697139 | G124: 17.1134126 | H124: 0.1587466929 | I124: 16.43422978 | J124: 0.1524464869 | K124: 6.789633443 | L124: 0.06298170216 | M124: 1.49337144 | N124: 0.01385274713
B125: 923 | C125: Københavns Byret | D125: Elev | E125: 1.173988403 | F125: 0.1603358075 | G125: 2.427525338 | H125: 0.3315358435 | I125: 1.086127092 | J125: 0.1483362731 | K125: 1.66403264 | L125: 0.2272629069 | M125: 0.04449897605 | N125: 0.006077384787
B126: 923 | C126: Københavns Byret | D126: Fleks | E126: 0 | F126: 0 | G126: 0 | H126: 0 | I126: 0 | J126: 0 | K126: 0 | L126: 0 | M126: 0 | N126: 0
B127: 923 | C127: Københavns Byret | D127: Øvrige | E127: 1.442286711 | F127: 0.1586681031 | G127: 0.8779786247 | H127: 0.09658773248 | I127: 0.5836648716 | J127: 0.06420983938 | K127: 0 | L127: 0 | M127: 0.003979441239 | N127: 0.0004377842409
B128: 924 | C128: Retten på Bornholm | D128: Jurister | E128: 0.9363206588 | F128: 0.2801862058 | G128: 0.5421080396 | H128: 0.162221343 | I128: 0.4661621113 | J128: 0.1394951527 | K128: 0.671209084 | L128: 0.2008537618 | M128: 0.006396209784 | N128: 0.001914012827
B129: 924 | C129: Retten på Bornholm | D129: Kontor | E129: 1.50886988 | F129: 0.2261607483 | G129: 1.098544905 | H129: 0.1646581598 | I129: 1.390208766 | J129: 0.2083749295 | K129: 1.552610745 | L129: 0.2327169577 | M129: 0.0754202885 | N129: 0.0113045592
B130: 924 | C130: Retten på Bornholm | D130: Elev | E130: 0.8217262742 | F130: 0.4317081659 | G130: 0.163655628 | H130: 0.08597932577 | I130: 0.4084125171 | J130: 0.2145666072 | K130: 0.03672626223 | L130: 0.01929477954 | M130: 0.001089011065 | N130: 0.0005721308715
B131: 924 | C131: Retten på Bornholm | D131: Fleks | E131: 0 | F131: 0 | G131: 0 | H131: 0 | I131: 0 | J131: 0 | K131: 0 | L131: 0 | M131: 0 | N131: 0
B132: 924 | C132: Retten på Bornholm | D132: Øvrige | E132: 0.004893216546 | F132: 0.002970644884 | G132: 0.00110659196 | H132: 0.0006718058995 | I132: 0.004470050159 | J132: 0.002713742895 | K132: 0.0006602597947 | L132: 0.0004008400942 | M132: 0 | N132: 0
B134: 1) Procenten er beregnet i forhold til det samlede årsværksforbrug ved retten inkl. generel ledelse og administration, hvorfor der ikke kan summes op til 100 % for den enkelte ret.
B135: 2) Ansatte under socialt kapitel (fleksjobbere mv.) uden tidsfordeling indgår ikke i denne opgørelse.
B136: 3) Det opgjorte årsværksforbrug er inkl. de korrektioner, der foretages som led i produktivitetsberegningen.

Sheet Dataark til 901-924 (hidden)
B11: Samlet produktivitet, retten | D11: Samlet produktivitet, jurister | F11: Samlet produktivitet, kontor | H11: ÅRVK ledelse og adm. | J11: Sagstider domsmandssager | L11: Sagstider hfh. alm. Civil | N11: Sagstid alm. fogedsag | P11: Målopfyldelse vold | R11: Målopfyldelse voldtægt | T11: Sygefravær | V11: Personaleomsætning | X11: Årsværk retten | Z11: Årsværk jurist | AB11: Årsværk kontor | AD11: Samlet lønsum
A12: Ret | B12: 2013 | C12: 2014 | D12: 2013 | E12: 2014 | F12: 2013 | G12: 2014 | H12: 2013 | I12: 2014 | J12: 2013 | K12: 2014 | L12: 2013 | M12: 2014 | N12: 2013 | O12: 2014 | P12: 2013 | Q12: 2014 | R12: 2013 | S12: 2014 | T12: 2013 | U12: 2014 | V12: 2013 | W12: 2014 | X12: 2013 | Y12: 2014 | Z12: 2013 | AA12: 2014 | AB12: 2013 | AC12: 2014 | AD12: 2013 | AE12: 2014
A13: Retten i Hjørring | B13: 102.9146793 | C13: 103.5231212 | D13: 101.4346809 | E13: 100.759754 | F13: 103.2149744 | G13: 103.3974315 | H13: 0.1868261939 | I13: 0.1665256771 | J13: 96 | K13: 95 | L13: 631.7745665 | M13: 525.5742574 | N13: 49.86269469 | O13: 49.91041129 | P13: 64 | Q13: 56.25 | R13: 75 | S13: 33.33333333 | T13: 5.7 | U13: 8.9 | V13: 12.7 | W13: 5.7 | X13: 53.476 | Y13: 50.05401 | Z13: 14.51677 | AA13: 13.73052 | AB13: 29.3254 | AC13: 28.51714 | AD13: 25.23077424 | AE13: 23.90913679 | AF13: Retten i Hjørring
A14: Retten i Aalborg | B14: 98.62855147 | C14: 96.6556053 | D14: 98.45801217 | E14: 89.37239006 | F14: 98.27397591 | G14: 106.1063077 | H14: 0.1339181623 | I14: 0.1197207669 | J14: 106 | K14: 114 | L14: 593.4757282 | M14: 527.4122807 | N14: 41.55710276 | O14: 43.94413408 | P14: 33.89830508 | Q14: 54.28571429 | R14: 60 | S14: 100 | T14: 5.1 | U14: 7.5 | V14: 12 | W14: 14.9 | X14: 75.60557 | Y14: 74.76297 | Z14: 20.77576 | AA14: 23.25516 | AB14: 43.97071 | AC14: 40.42406 | AD14: 36.32284163 | AE14: 36.63402749 | AF14: Retten i Aalborg
A15: Retten i Randers | B15: 97.0241151 | C15: 103.339095 | D15: 91.55018696 | E15: 96.00976208 | F15: 105.3368061 | G15: 117.9593277 | H15: 0.1980503732 | I15: 0.2099300769 | J15: 151 | K15: 124 | L15: 622.7865854 | M15: 555.5109489 | N15: 47.72560892 | O15: 58.37249399 | P15: 40 | Q15: 47.72727273 | R15: 0 | S15: 66.66666667 | T15: 6.9 | U15: 8.2 | V15: 10.8 | W15: 16.8 | X15: 51.35568 | Y15: 51.06822 | Z15: 14.54448 | AA15: 14.54934 | AB15: 28.09834 | AC15: 26.15055 | AD15: 26.74664964 | AE15: 25.62575263 | AF15: Retten i Randers
A16: Retten i Århus | B16: 98.14882931 | C16: 96.18247078 | D16: 94.28098483 | E16: 89.7982108 | F16: 104.1593869 | G16: 109.6431052 | H16: 0.1656399121 | I16: 0.1516882453 | J16: 140 | K16: 139 | L16: 494.8684211 | M16: 483.0638298 | N16: 56.95581015 | O16: 59.21347896 | P16: 38.46153846 | Q16: 27.08333333 | R16: 100 | S16: 14.28571429 | T16: 10.8 | U16: 9.6 | V16: 11.6 | W16: 13.7 | X16: 83.99051 | Y16: 81.20104 | Z16: 25.22725 | AA16: 25.26038 | AB16: 45.35235 | AC16: 41.33383 | AD16: 41.02113215 | AE16: 40.6273674 | AF16: Retten i Århus
A17: Retten i Viborg | B17: 97.24417792 | C17: 96.93034019 | D17: 92.31263346 | E17: 86.7549527 | F17: 105.8387295 | G17: 111.2954665 | H17: 0.1831987808 | I17: 0.1776954429 | J17: 108 | K17: 128 | L17: 534.7073171 | M17: 519.2689655 | N17: 47.35630204 | O17: 51.79351254 | P17: 67.74193548 | Q17: 62.16216216 | R17: 0 | S17: 100 | T17: 4.7 | U17: 5.9 | V17: 16.2 | W17: 19.2 | X17: 53.08464 | Y17: 52.03653 | Z17: 15.00269 | AA17: 15.44982 | AB17: 28.03999 | AC17: 26.36467 | AD17: 25.88336059 | AE17: 24.61018693 | AF17: Retten i Viborg
A18: Retten i Holstebro | B18: 103.5572491 | C18: 100.812459 | D18: 103.5300145 | E18: 99.45621923 | F18: 106.9435187 | G18: 105.1031682 | H18: 0.2155162205 | I18: 0.2143408913 | J18: 86 | K18: 84 | L18: 475.9032258 | M18: 413.4242424 | N18: 32.54022491 | O18: 34.27151899 | P18: 72.72727273 | Q18: 71.42857143 | R18: 100 | S18: 50 | T18: 5 | U18: 7.3 | V18: 16.2 | W18: 14.1 | X18: 38.40156 | Y18: 37.12805 | Z18: 9.67165 | AA18: 9.58671 | AB18: 20.53304 | AC18: 20.18777 | AD18: 19.40336905 | AE18: 19.09541128 | AF18: Retten i Holstebro
A19: Retten i Herning | B19: 92.5848018 | C19: 99.65816242 | D19: 82.04356593 | E19: 89.417041 | F19: 104.7436876 | G19: 111.3990738 | H19: 0.1955231872 | I19: 0.1893007858 | J19: 94 | K19: 91 | L19: 433.9708738 | M19: 520.7297297 | N19: 46.84155791 | O19: 46.73239437 | P19: 52.63157895 | Q19: 76.92307692 | R19: 16.66666667 | S19: 66.66666667 | T19: 8.6 | U19: 5.7 | V19: 15.3 | W19: 15.6 | X19: 38.76992 | Y19: 37.47035 | Z19: 11.84085 | AA19: 11.39788 | AB19: 20.75833 | AC19: 20.21608 | AD19: 20.02559767 | AE19: 19.00288448 | AF19: Retten i Herning
A20: Retten i Horsens | B20: 96.30874721 | C20: 89.74637006 | D20: 90.97352822 | E20: 80.99846156 | F20: 103.1020684 | G20: 100.8419553 | H20: 0.1979407442 | I20: 0.1918271636 | J20: 96 | K20: 111 | L20: 418 | M20: 434.1073826 | N20: 49.71742972 | O20: 46.29432687 | P20: 47.05882353 | Q20: 40 | R20: 0 | S20: 50 | T20: 5.3 | U20: 7.7 | V20: 13.3 | W20: 15.7 | X20: 49.88988 | Y20: 48.3814 | Z20: 14.06581 | AA20: 14.3927 | AB20: 25.31688 | AC20: 24.3045 | AD20: 24.53226103 | AE20: 24.09609649 | AF20: Retten i Horsens
A21: Retten i Kolding | B21: 103.4065127 | C21: 102.7438446 | D21: 93.44213967 | E21: 95.50833868 | F21: 112.1976912 | G21: 109.1412959 | H21: 0.1814648532 | I21: 0.1734292531 | J21: 105 | K21: 99 | L21: 510.0465116 | M21: 480.371134 | N21: 46.31372549 | O21: 52.97362322 | P21: 61.2244898 | Q21: 60 | R21: 100 | S21: 75 | T21: 11.7 | U21: 15.9 | V21: 6.6 | W21: 15.3 | X21: 67.53552 | Y21: 66.6538 | Z21: 21.33572 | AA21: 19.78779 | AB21: 37.2161 | AC21: 36.96165 | AD21: 35.21200134 | AE21: 33.98298785 | AF21: Retten i Kolding
A22: Retten i Esbjerg | B22: 99.69839621 | C22: 96.95557776 | D22: 95.03327915 | E22: 90.16354519 | F22: 101.4630039 | G22: 101.1639788 | H22: 0.1544399994 | I22: 0.1449473346 | J22: 143 | K22: 133 | L22: 631.4972067 | M22: 627.1860465 | N22: 58.91485835 | O22: 42.71642026 | P22: 30.86419753 | Q22: 40 | R22: 0 | S22: 0 | T22: 10.3 | U22: 8.5 | V22: 15 | W22: 15.2 | X22: 54.27444 | Y22: 51.83652 | Z22: 14.92874 | AA22: 14.62602 | AB22: 29.74744 | AC22: 27.96305 | AD22: 26.28483427 | AE22: 25.05472688 | AF22: Retten i Esbjerg
A23: Retten i Sønderborg | B23: 103.0055282 | C23: 106.4151909 | D23: 98.84884045 | E23: 103.7144091 | F23: 105.9415153 | G23: 108.6960709 | H23: 0.1968216784 | I23: 0.2000639601 | J23: 77 | K23: 81 | L23: 588.0246914 | M23: 405.7076923 | N23: 52.85101266 | O23: 51.7282204 | P23: 75.67567568 | Q23: 63.82978723 | R23: 100 | S23: - | T23: 7 | U23: 6.2 | V23: 10.2 | W23: 10.3 | X23: 58.41784 | Y23: 55.80884 | Z23: 17.36145 | AA23: 15.55415 | AB23: 33.50583 | AC23: 32.17316 | AD23: 32.07104816 | AE23: 30.87363142 | AF23: Retten i Sønderborg
A24: Retten i Odense | B24: 108.3800934 | C24: 96.5395286 | D24: 106.2807687 | E24: 89.58908157 | F24: 110.9626462 | G24: 104.5850874 | H24: 0.1610274217 | I24: 0.1668205188 | J24: 97 | K24: 92 | L24: 460.0165746 | M24: 410.88 | N24: 50.36748596 | O24: 60.92986425 | P24: 51.11111111 | Q24: 45.71428571 | R24: 40 | S24: 30.76923077 | T24: 7.7 | U24: 9.5 | V24: 8.3 | W24: 7.9 | X24: 77.86296 | Y24: 77.07732 | Z24: 21.81471 | AA24: 23.71285 | AB24: 45.22965 | AC24: 43.9482 | AD24: 38.81514503 | AE24: 38.61886183 | AF24: Retten i Odense
A25: Retten i Svendborg | B25: 98.99112703 | C25: 99.80214422 | D25: 96.48288534 | E25: 95.62400779 | F25: 103.5551398 | G25: 107.9791467 | H25: 0.1662743921 | I25: 0.1705922523 | J25: 105 | K25: 122 | L25: 479.2658228 | M25: 477.09375 | N25: 47.2630719 | O25: 56.18881119 | P25: 56.60377358 | Q25: 51.28205128 | R25: 40 | S25: 0 | T25: 14.2 | U25: 7.4 | V25: 17.7 | W25: 14.5 | X25: 36.96098 | Y25: 36.62017 | Z25: 10.30021 | AA25: 10.27236 | AB25: 21.70681 | AC25: 20.21508 | AD25: 19.70705955 | AE25: 18.51114105 | AF25: Retten i Svendborg
A26: Retten i Nykøbing F. | B26: 101.1958707 | C26: 99.31443827 | D26: 103.2506045 | E26: 101.3997252 | F26: 99.98645671 | G26: 96.93095285 | H26: 0.2136326657 | I26: 0.1807260383 | J26: 94 | K26: 80 | L26: 390.2222222 | M26: 382.2692308 | N26: 51.22872467 | O26: 46.03074305 | P26: 43.83561644 | Q26: 67.30769231 | R26: 100 | S26: 50 | T26: 3.8 | U26: 7.2 | V26: 15.8 | W26: 11.5 | X26: 49.93317 | Y26: 50.32492 | Z26: 13.97805 | AA26: 13.82973 | AB26: 30.55141 | AC26: 30.67865 | AD26: 25.6823684 | AE26: 25.17850572 | AF26: Retten i Nykøbing F.
A27: Retten i Næstved | B27: 106.4522251 | C27: 102.3117616 | D27: 101.2406033 | E27: 95.96222851 | F27: 111.6879755 | G27: 108.2319237 | H27: 0.2110018934 | I27: 0.2055415245 | J27: 132 | K27: 137 | L27: 524.7538462 | M27: 502.7627119 | N27: 59.44236241 | O27: 69.69931074 | P27: 38.0952381 | Q27: 31.81818182 | R27: 50 | S27: 22.22222222 | T27: 9 | U27: 8 | V27: 19.7 | W27: 12.6 | X27: 63.45753 | Y27: 60.64993 | Z27: 18.70124 | AA27: 17.55258 | AB27: 35.80973 | AC27: 34.2524 | AD27: 31.63077126 | AE27: 29.79163161 | AF27: Retten i Næstved
A28: Retten i Holbæk | B28: 97.5198651 | C28: 101.478968 | D28: 98.0654575 | E28: 98.97449175 | F28: 95.65987869 | G28: 102.2496137 | H28: 0.1791150763 | I28: 0.1726009196 | J28: 121 | K28: 92 | L28: 423.1904762 | M28: 406.2105263 | N28: 61.38024691 | O28: 62.59675489 | P28: 66.66666667 | Q28: 60 | R28: 66.66666667 | S28: 33.33333333 | T28: 7.3 | U28: 8.7 | V28: 14.1 | W28: 18.7 | X28: 49.02491 | Y28: 45.54094 | Z28: 12.88079 | AA28: 12.52644 | AB28: 27.5082 | AC28: 25.08951 | AD28: 23.08612638 | AE28: 22.46541318 | AF28: Retten i Holbæk
A29: Retten i Roskilde | B29: 101.069153 | C29: 101.644567 | D29: 93.84592474 | E29: 99.36044334 | F29: 107.666467 | G29: 101.7161825 | H29: 0.1856861136 | I29: 0.1794598483 | J29: 152 | K29: 133 | L29: 631.7375566 | M29: 468.0430108 | N29: 62.14235163 | O29: 56.66790871 | P29: 38.46153846 | Q29: 26.66666667 | R29: - | S29: 0 | T29: 8 | U29: 4.5 | V29: 19.9 | W29: 11.9 | X29: 73.92877 | Y29: 71.54561 | Z29: 22.48327 | AA29: 20.71814 | AB29: 41.59892 | AC29: 43.09007 | AD29: 38.57747683 | AE29: 37.60096141 | AF29: Retten i Roskilde
A30: Retten i Hillerød | B30: 98.37624366 | C30: 92.68948395 | D30: 93.0362009 | E30: 83.08629181 | F30: 111.8642549 | G30: 111.2224862 | H30: 0.2259331167 | I30: 0.1991529722 | J30: 93 | K30: 113 | L30: 457.4690265 | M30: 502.826087 | N30: 49.4952913 | O30: 52.278487 | P30: 56.25 | Q30: 41.37931034 | R30: 50 | S30: 50 | T30: 9.2 | U30: 11.2 | V30: 20.1 | W30: 12.9 | X30: 51.95118 | Y30: 51.27185 | Z30: 14.9175 | AA30: 15.82924 | AB30: 25.88941 | AC30: 24.89634 | AD30: 26.59530339 | AE30: 25.43023796 | AF30: Retten i Hillerød
A31: Retten i Helsingør | B31: 96.60724523 | C31: 95.73488114 | D31: 85.9110245 | E31: 81.20297998 | F31: 105.9668203 | G31: 112.4083829 | H31: 0.1578139783 | I31: 0.1449705115 | J31: 106 | K31: 112 | L31: 446.7733333 | M31: 559.9230769 | N31: 55.7016081 | O31: 68.93901858 | P31: 53.84615385 | Q31: 40 | R31: - | S31: 0 | T31: 13.1 | U31: 10.5 | V31: 17.9 | W31: 8.1 | X31: 47.84352 | Y31: 48.75499 | Z31: 14.47586 | AA31: 15.65373 | AB31: 25.18211 | AC31: 23.82526 | AD31: 25.17136882 | AE31: 24.29663369 | AF31: Retten i Helsingør
A32: Retten i Lyngby | B32: 96.82753324 | C32: 88.90590959 | D32: 86.51477605 | E32: 79.383929 | F32: 110.7851418 | G32: 101.3125505 | H32: 0.2167293196 | I32: 0.2029569311 | J32: 103 | K32: 105 | L32: 475.2258065 | M32: 385.046729 | N32: 39.57969813 | O32: 41.28764479 | P32: 72.72727273 | Q32: 60 | R32: 100 | S32: 33.33333333 | T32: 9.7 | U32: 8.8 | V32: 15.3 | W32: 16.5 | X32: 55.74239 | Y32: 55.26352 | Z32: 19.51242 | AA32: 18.80749 | AB32: 29.6227 | AC32: 29.49397 | AD32: 31.14209533 | AE32: 29.34078699 | AF32: Retten i Lyngby
A33: Retten i Glostrup | B33: 98.98202225 | C33: 104.7182355 | D33: 100.008897 | E33: 103.6593422 | F33: 99.29484206 | G33: 101.7834329 | H33: 0.2005362955 | I33: 0.1838177813 | J33: 146 | K33: 142 | L33: 614.8410405 | M33: 509.8187702 | N33: 75.69489089 | O33: 80.59972946 | P33: 43.75 | Q33: 32.89473684 | R33: 0 | S33: 0 | T33: 11.8 | U33: 7.5 | V33: 20.6 | W33: 17.3 | X33: 115.40872 | Y33: 106.84539 | Z33: 32.60759 | AA33: 30.84999 | AB33: 66.42532 | AC33: 63.61432 | AD33: 56.2588608 | AE33: 54.12637493 | AF33: Retten i Glostrup
A34: Retten på Frederiksberg | B34: 101.2561076 | C34: 103.1249909 | D34: 97.63529013 | E34: 96.62965753 | F34: 107.7453051 | G34: 112.175938 | H34: 0.2027823079 | I34: 0.1769760671 | J34: 180 | K34: 162 | L34: 551.3023256 | M34: 542.7112299 | N34: 86.15949623 | O34: 76.66579713 | P34: 8.695652174 | Q34: 26.47058824 | R34: 0 | S34: 40 | T34: 12 | U34: 10.9 | V34: 18.3 | W34: 15.6 | X34: 79.92535 | Y34: 80.89792 | Z34: 23.83584 | AA34: 25.78624 | AB34: 44.71399 | AC34: 43.13565 | AD34: 40.40890417 | AE34: 40.72638703 | AF34: Retten på Frederiksberg
A35: Københavns Byret | B35: 96.14494276 | C35: 94.63679124 | D35: 97.09472333 | E35: 93.86221962 | F35: 91.31934696 | G35: 91.19352344 | H35: 0.2065795179 | I35: 0.2060769464 | J35: 96 | K35: 104 | L35: 512.7992278 | M35: 529.8726592 | N35: 78.12335474 | O35: 73.15736591 | P35: 70 | Q35: 38.02816901 | R35: - | S35: 16.66666667 | T35: 8.1 | U35: 10.3 | V35: 9.6 | W35: 8.7 | X35: 190.18872 | Y35: 186.12346 | Z35: 58.73651 | AA35: 59.37777 | AB35: 113.64497 | AC35: 108.74881 | AD35: 102.9923745 | AE35: 101.9412044 | AF35: Københavns Byret
A36: Retten på Bornholm | B36: 63.43657445 | C36: 62.38123174 | D36: 64.7059556 | E36: 61.18431382 | F36: 66.6434586 | G36: 67.97281795 | H36: 0.3379421224 | I36: 0.3262324987 | J36: 46 | K36: 35 | L36: 291.3529412 | M36: 332.1111111 | N36: 27.57464366 | O36: 27.50285249 | P36: 94.73684211 | Q36: 78.94736842 | R36: 100 | S36: - | T36: 7.2 | U36: 8.7 | V36: 6.4 | W36: 19.4 | X36: 14.55013 | Y36: 14.58443 | Z36: 3.48785 | AA36: 3.77068 | AB36: 7.80507 | AC36: 7.52959 | AD36: 7.31 | AE36: 7.08154941 | AF36: Retten på Bornholm
B37: 0 | C37: 0 | D37: 0 | E37: 0 | F37: 0 | G37: 0 | H37: 0 | I37: 0 | J37: 0 | K37: 0 | L37: 0 | M37: 0 | N37: 0 | O37: 0 | P37: 0 | Q37: 0 | R37: 0 | S37: 0 | T37: 0 | U37: 0 | V37: 0 | W37: 0 | X37: 0 | Y37: 0 | Z37: 0 | AA37: 0 | AB37: 0 | AC37: 0 | AD37: 0 | AE37: 0
B41: Samlet produktivitet, retten | D41: Samlet produktivitet, jurister | F41: Samlet produktivitet, kontor | H41: ÅRVK ledelse og adm. | J41: Sagstider domsmandssager | L41: Sagstider hfh. alm. Civil | N41: Sagstid alm. fogedsag | P41: Målopfyldelse vold | R41: Målopfyldelse voldtægt | T41: Sygefravær | V41: Personaleomsætning | X41: Årsværk retten | Z41: Årsværk jurist | AB41: Årsværk kontor | AD41: Samlet lønsum
A42: Ret | B42: 2010 | C42: 2011 | D42: 2010 | E42: 2011 | F42: 2010 | G42: 2011 | H42: 2011 | J42: 2011 | L42: 2011 | N42: 2011 | P42: 2011 | R42: 2011 | T42: 2011 | V42: 2011 | X42: 2011 | Z42: 2011 | AB42: 2011 | AD42: 2011
A43: Retten i Hjørring | H43: 0.1808500373 | I43: =#REF!-H43 ->  | J43: 93 | K43: =J13-J43 -> 3 | L43: 588.737931 | M43: =L13-L43 -> 43.03663544 | N43: 59.02804965 | O43: =N13-N43 -> -9.165354958 | P43: 72.72727273 | Q43: =P13-P43 -> -8.727272727 | R43: 75 | S43: =R13-R43 -> 0 | T43: 9.195340336 | U43: =T13-T43 -> -3.495340336 | V43: 13.3 | W43: =V13-V43 -> -0.6 | X43: 59.79526 | Y43: =#REF!-X43 ->  | Z43: 13.34803 | AA43: =#REF!-Z43 ->  | AB43: 33.06976 | AC43: =#REF!-AB43 ->  | AD43: 25.84077727 | AE43: =AD13-AD43 -> -0.61000303
A44: Retten i Aalborg | H44: 0.1440885883 | I44: =#REF!-H44 ->  | J44: 89 | K44: =J14-J44 -> 17 | L44: 549.7346939 | M44: =L14-L44 -> 43.74103428 | N44: 81.29756381 | O44: =N14-N44 -> -39.74046105 | P44: 70 | Q44: =P14-P44 -> -36.10169492 | R44: 0 | S44: =R14-R44 -> 60 | T44: 7.44756948 | U44: =T14-T44 -> -2.34756948 | V44: 11.1 | W44: =V14-V44 -> 0.9 | X44: 80.50898 | Y44: =#REF!-X44 ->  | Z44: 22.18722 | AA44: =#REF!-Z44 ->  | AB44: 48.742 | AC44: =#REF!-AB44 ->  | AD44: 38.77436805 | AE44: =AD14-AD44 -> -2.45152642
A45: Retten i Randers | H45: 0.2242573374 | I45: =#REF!-H45 ->  | J45: 160 | K45: -9 | L45: 633.4363636 | M45: -10.64977827 | N45: 76.65538674 | O45: -28.92977782 | P45: 43.1372549 | Q45: -3.137254902 | R45: 0 | S45: 0 | T45: 7.923213529 | U45: -1.023213529 | V45: 6.1 | W45: 4.7 | X45: 58.17027 | Y45: =#REF!-X45 ->  | Z45: 16.642 | AA45: =#REF!-Z45 ->  | AB45: 31.602 | AC45: =#REF!-AB45 ->  | AD45: 28.27830635 | AE45: -1.53165671
A46: Retten i Århus | H46: 0.1740744916 | I46: =#REF!-H46 ->  | J46: 187 | K46: -47 | L46: 585.8815789 | M46: -91.01315789 | N46: 68.09649662 | O46: -11.14068647 | P46: 44.44444444 | Q46: -5.982905983 | R46: 0 | S46: 100 | T46: 10.94548768 | U46: -0.1454876758 | V46: 11.4 | W46: 0.2 | X46: 90.00205 | Y46: =#REF!-X46 ->  | Z46: 26.56876 | AA46: =#REF!-Z46 ->  | AB46: 50.61565 | AC46: =#REF!-AB46 ->  | AD46: 43.96941009 | AE46: -2.94827794
A47: Retten i Viborg | H47: 0.1869106164 | I47: =#REF!-H47 ->  | J47: 110 | K47: -2 | L47: 598.0942408 | M47: -63.38692376 | N47: 70.36160608 | O47: -23.00530404 | P47: 67.64705882 | Q47: 0.09487666034 | R47: 100 | S47: -100 | T47: 7.021671724 | U47: -2.321671724 | V47: 10.2 | W47: 6 | X47: 55.19659 | Y47: =#REF!-X47 ->  | Z47: 15.1701 | AA47: =#REF!-Z47 ->  | AB47: 30.18242 | AC47: =#REF!-AB47 ->  | AD47: 26.64360749 | AE47: -0.7602469
A48: Retten i Holstebro | H48: 0.2156894162 | I48: =#REF!-H48 ->  | J48: 99 | K48: -13 | L48: 517.1038961 | M48: -41.2006703 | N48: 33.32733875 | O48: -0.787113838 | P48: 44.06779661 | Q48: 28.65947612 | R48: 66.66666667 | S48: 33.33333333 | T48: 7.512563132 | U48: -2.512563132 | V48: 11.9 | W48: 4.3 | X48: 46.44103 | Y48: =#REF!-X48 ->  | Z48: 11.27 | AA48: =#REF!-Z48 ->  | AB48: 23.056 | AC48: =#REF!-AB48 ->  | AD48: 21.76629581 | AE48: -2.36292676
A49: Retten i Herning | H49: 0.2140891957 | I49: =#REF!-H49 ->  | J49: 93 | K49: 1 | L49: 504 | M49: -70.02912621 | N49: 46.15043463 | O49: 0.6911232819 | P49: 60.41666667 | Q49: -7.785087719 | R49: 0 | S49: 16.66666667 | T49: 12.53367166 | U49: -3.933671661 | V49: 17.4 | W49: -2.1 | X49: 42.52615 | Y49: =#REF!-X49 ->  | Z49: 11.84873 | AA49: =#REF!-Z49 ->  | AB49: 23.57106 | AC49: =#REF!-AB49 ->  | AD49: 21.11471095 | AE49: -1.08911328
A50: Retten i Horsens | H50: 0.1978894442 | I50: =#REF!-H50 ->  | J50: 75 | K50: 21 | L50: 454.2037037 | M50: -36.2037037 | N50: 53.19851049 | O50: -3.481080771 | P50: 54.23728814 | Q50: -7.178464606 | R50: 999 | S50: -999 | T50: 9.656788281 | U50: -4.356788281 | V50: 12.5 | W50: 0.8 | X50: 53.41053 | Y50: =#REF!-X50 ->  | Z50: 14.38903 | AA50: =#REF!-Z50 ->  | AB50: 26.41923 | AC50: =#REF!-AB50 ->  | AD50: 25.08928797 | AE50: -0.55702694
A51: Retten i Kolding | H51: 0.1649720064 | I51: =#REF!-H51 ->  | J51: 150 | K51: -45 | L51: 651.4146341 | M51: -141.3681225 | N51: 50.7865086 | O51: -4.47278311 | P51: 65.51724138 | Q51: -4.292751583 | R51: 999 | S51: -899 | T51: 8.675627926 | U51: 3.024372074 | V51: 6.1 | W51: 0.5 | X51: 76.6875 | Y51: =#REF!-X51 ->  | Z51: 20.54952 | AA51: =#REF!-Z51 ->  | AB51: 45.06554 | AC51: =#REF!-AB51 ->  | AD51: 36.12998449 | AE51: -0.91798315
A52: Retten i Esbjerg | H52: 0.160884098 | I52: =#REF!-H52 ->  | J52: 134 | K52: 9 | L52: 627.5329949 | M52: 3.96421178 | N52: 57.25041368 | O52: 1.664444668 | P52: 31.91489362 | Q52: -1.050696086 | R52: 20 | S52: -20 | T52: 9.830962196 | U52: 0.469037804 | V52: 12.2 | W52: 2.8 | X52: 56.23196 | Y52: =#REF!-X52 ->  | Z52: 15.1442 | AA52: =#REF!-Z52 ->  | AB52: 32.03157 | AC52: =#REF!-AB52 ->  | AD52: 27.40345038 | AE52: -1.11861611
A53: Retten i Sønderborg | H53: 0.2093655007 | I53: =#REF!-H53 ->  | J53: 146 | K53: -69 | L53: 670.3020134 | M53: -82.27732206 | N53: 66.74565217 | O53: -13.89463951 | P53: 51.25 | Q53: 24.42567568 | R53: 0 | S53: 100 | T53: 5.1 | U53: 1.9 | V53: 12.9 | W53: -2.7 | X53: 62.58565 | Y53: =#REF!-X53 ->  | Z53: 15.411 | AA53: =#REF!-Z53 ->  | AB53: 36.905 | AC53: =#REF!-AB53 ->  | AD53: 32.31378702 | AE53: -0.24273886
A54: Retten i Odense | H54: 0.1463671875 | I54: =#REF!-H54 ->  | J54: 86 | K54: 11 | L54: 428.4694836 | M54: 31.54709102 | N54: 66.62457364 | O54: -16.25708768 | P54: 60.46511628 | Q54: -9.354005168 | R54: 37.5 | S54: 2.5 | T54: 7.222463525 | U54: 0.4775364751 | V54: 20.8 | W54: -12.5 | X54: 89.18757 | Y54: =#REF!-X54 ->  | Z54: 24.26146 | AA54: =#REF!-Z54 ->  | AB54: 52.27552 | AC54: =#REF!-AB54 ->  | AD54: 42.19547545 | AE54: -3.38033042
A55: Retten i Svendborg | H55: 0.2310023534 | I55: =#REF!-H55 ->  | J55: 100 | K55: 5 | L55: 457.0487805 | M55: 22.2170423 | N55: 39.74894068 | O55: 7.514131217 | P55: 60.52631579 | Q55: -3.922542205 | R55: 0 | S55: 40 | T55: 7.534810135 | U55: 6.665189865 | V55: 13.5 | W55: 4.2 | X55: 46.62935 | Y55: =#REF!-X55 ->  | Z55: 12.16381 | AA55: =#REF!-Z55 ->  | AB55: 26.86367 | AC55: =#REF!-AB55 ->  | AD55: 21.33413431 | AE55: -1.62707476
A56: Retten i Nykøbing F. | H56: 0.2106800886 | I56: =#REF!-H56 ->  | J56: 89 | K56: 5 | L56: 511.1076923 | M56: -120.8854701 | N56: 58.32441823 | O56: -7.095693557 | P56: 75 | Q56: -31.16438356 | R56: 33.33333333 | S56: 66.66666667 | T56: 3.1 | U56: 0.7 | V56: 5.9 | W56: 9.9 | X56: 57.71872 | Y56: =#REF!-X56 ->  | Z56: 15.11914 | AA56: =#REF!-Z56 ->  | AB56: 36.06329 | AC56: =#REF!-AB56 ->  | AD56: 27.75952561 | AE56: -2.07715721
A57: Retten i Næstved | H57: 0.2009634119 | I57: =#REF!-H57 ->  | J57: 175 | K57: -43 | L57: 667.1578947 | M57: -142.4040486 | N57: 90.31952363 | O57: -30.87716122 | P57: 19.60784314 | Q57: 18.48739496 | R57: 42.85714286 | S57: 7.142857143 | T57: 9.143692893 | U57: -0.1436928928 | V57: 8.7 | W57: 11 | X57: 71.95559 | Y57: =#REF!-X57 ->  | Z57: 19.95737 | AA57: =#REF!-Z57 ->  | AB57: 40.2327 | AC57: =#REF!-AB57 ->  | AD57: 33.44395386 | AE57: -1.8131826
A58: Retten i Holbæk | H58: 0.2013305659 | I58: =#REF!-H58 ->  | J58: 129 | K58: -8 | L58: 492.7288136 | M58: -69.53833737 | N58: 79.91707956 | O58: -18.53683265 | P58: 45.90163934 | Q58: 20.76502732 | R58: 0 | S58: 66.66666667 | T58: 10.0927266 | U58: -2.792726598 | V58: 3.7 | W58: 10.4 | X58: 52.84805 | Y58: =#REF!-X58 ->  | Z58: 12.96697 | AA58: =#REF!-Z58 ->  | AB58: 31.22812 | AC58: =#REF!-AB58 ->  | AD58: 24.06054675 | AE58: -0.97442037
A59: Retten i Roskilde | H59: 0.1985138754 | I59: =#REF!-H59 ->  | J59: 161 | K59: -9 | L59: 580.0681818 | M59: 51.66937474 | N59: 78.76805332 | O59: -16.62570169 | P59: 57.69230769 | Q59: -19.23076923 | R59: 0 | T59: 8.041632025 | U59: -0.04163202497 | V59: 8.1 | W59: 11.8 | X59: 81.93291 | Y59: =#REF!-X59 ->  | Z59: 20.991 | AA59: =#REF!-Z59 ->  | AB59: 50.15184 | AC59: =#REF!-AB59 ->  | AD59: 40.35202857 | AE59: -1.77455174
A60: Retten i Hillerød | H60: 0.1966681251 | I60: =#REF!-H60 ->  | J60: 94 | K60: =J30-J60 -> -1 | L60: 535.2297297 | M60: -77.76070318 | N60: 69.77698997 | O60: -20.28169867 | P60: 67.56756757 | Q60: -11.31756757 | R60: 0 | S60: 50 | T60: 10.53646297 | U60: -1.33646297 | V60: 15.7 | W60: 4.4 | X60: 59.93847 | Y60: =#REF!-X60 ->  | Z60: 15.51429 | AA60: =#REF!-Z60 ->  | AB60: 31.81079 | AC60: =#REF!-AB60 ->  | AD60: 28.1485882 | AE60: -1.55328481
A61: Retten i Helsingør | H61: 0.1747076542 | I61: =#REF!-H61 ->  | J61: 91 | K61: 15 | L61: 625.1616766 | M61: -178.3883433 | N61: 80.56226998 | O61: -24.86066188 | P61: 65.71428571 | Q61: -11.86813187 | R61: 33.33333333 | T61: 8.100239201 | U61: 4.999760799 | V61: 11 | W61: 6.9 | X61: 59.49472 | Y61: =#REF!-X61 ->  | Z61: 16.67005 | AA61: =#REF!-Z61 ->  | AB61: 30.65085 | AC61: =#REF!-AB61 ->  | AD61: 27.2421141 | AE61: -2.07074528
A62: Retten i Lyngby | H62: 0.215369746 | I62: =#REF!-H62 ->  | J62: 97 | K62: 6 | L62: 681.4340426 | M62: -206.2082361 | N62: 48.64405845 | O62: -9.064360324 | P62: 92 | Q62: -19.27272727 | R62: 0 | S62: 100 | T62: 13.96319244 | U62: -4.263192438 | V62: 11.4 | W62: 3.9 | X62: 64.72881 | Y62: =#REF!-X62 ->  | Z62: 18.96953 | AA62: =#REF!-Z62 ->  | AB62: 37.24601 | AC62: =#REF!-AB62 ->  | AD62: 32.28066977 | AE62: -1.13857444
A63: Retten i Glostrup | H63: 0.1969059645 | I63: =#REF!-H63 ->  | J63: 204 | K63: -58 | L63: 771.7123746 | M63: -156.8713341 | N63: 86.84454431 | O63: -11.14965342 | P63: 31.86813187 | Q63: 11.88186813 | R63: 0 | S63: 0 | T63: 10.93379043 | U63: 0.8662095749 | V63: 11.7 | W63: 8.9 | X63: 130.88573 | Y63: =#REF!-X63 ->  | Z63: 35.62068 | AA63: =#REF!-Z63 ->  | AB63: 77.10199 | AC63: =#REF!-AB63 ->  | AD63: 61.81072972 | AE63: -5.55186892
A64: Retten på Frederiksberg | H64: 0.174762062 | I64: =#REF!-H64 ->  | J64: 165 | K64: 15 | L64: 581.0327869 | M64: -29.7304613 | N64: 111.6069617 | O64: -25.44746547 | P64: 13.79310345 | Q64: -5.097451274 | R64: 0 | S64: 0 | T64: 13.6 | U64: -1.6 | V64: 6.9 | W64: 11.4 | X64: 85.6221 | Y64: =#REF!-X64 ->  | Z64: 23.5809 | AA64: =#REF!-Z64 ->  | AB64: 50.499 | AC64: =#REF!-AB64 ->  | AD64: 41.59169201 | AE64: -1.18278784
A65: Københavns Byret | H65: 0.2193251818 | I65: =#REF!-H65 ->  | J65: 149 | K65: -53 | L65: 545 | M65: -32.2007722 | N65: 119.5509634 | O65: -41.42760866 | P65: 31.50684932 | Q65: 38.49315068 | R65: 12.5 | T65: 9.68431915 | U65: -1.58431915 | V65: 7 | W65: 2.6 | X65: 193.76867 | Y65: =#REF!-X65 ->  | Z65: 57.94189 | AA65: =#REF!-Z65 ->  | AB65: 116.4215 | AC65: =#REF!-AB65 ->  | AD65: 102.5840725 | AE65: 0.40830193
A66: Retten på Bornholm | H66: 0.3437150824 | I66: =#REF!-H66 ->  | J66: 37 | K66: 9 | L66: 359.8181818 | M66: -68.46524064 | N66: 39.08944028 | O66: -11.51479662 | P66: 100 | Q66: -5.263157895 | R66: 999 | S66: -899 | T66: 6.887992143 | U66: 0.3120078568 | V66: 6.4 | W66: 0 | X66: 15.32718 | Y66: =#REF!-X66 ->  | Z66: 3.68583 | AA66: =#REF!-Z66 ->  | AB66: 8.36564 | AC66: =#REF!-AB66 ->  | AD66: 7.34 | AE66: -0.03
B67: 0 | C67: 0 | D67: 0 | E67: 0 | F67: 0 | G67: 0 | H67: 0 | I67: 0 | J67: 0 | K67: 0 | L67: 0 | M67: 0 | N67: 0 | O67: 0 | P67: 0 | Q67: 0 | R67: 0 | S67: 0 | T67: 0 | U67: 0 | V67: 0 | W67: 0 | X67: 0 | Y67: 0 | Z67: 0 | AA67: 0 | AB67: 0 | AC67: 0 | AD67: 0 | AE67: 0
